{"text_format":"1","workbook":"xlsx","n_sheets":12,"sheets":["1-MPN","2-MPI","3-MCN","4-MCI","5-STB","6-STE","7-TRAN","8-DIP-DIE","9a-BOLSAS - TT","9b-BOLSA PD - APR","CONSOLIDADA","DADOS"],"not_rendered":{"charts":0,"images":14,"macros":1,"external_links":0,"defined_names":155,"comments":0,"pivot_tables":0},"unopened":[],"bounds":{"document_bytes":16777216,"sheet_cells":100000,"rows_first":2000,"rows_last":500,"rows_between":2000,"halvings":0,"cell_chars":16384,"cell_head_chars":4096},"cells_cut":0,"cells_raw":0,"read":"whole","date_system":"1900"}

{"sheet":"1-MPN","index":0,"n_rows":198,"n_cols":34,"rows_kept":198,"cut":false,"hidden":false,"merged":[[112,3,112,10],[113,3,113,10],[114,3,114,10],[103,3,103,10],[192,3,192,10],[47,3,47,10],[81,3,81,10],[80,3,80,10],[50,3,50,10],[98,3,98,10],[99,3,99,10],[100,3,100,10],[101,3,101,10],[102,3,102,10],[74,3,74,10],[83,3,83,10],[75,3,75,10],[52,3,52,10],[69,3,69,10],[196,1,196,11],[194,3,194,10],[195,3,195,10],[117,1,117,14],[110,3,110,10],[96,3,96,10],[97,3,97,10],[191,3,191,10],[189,11,190,11],[193,3,193,10],[170,1,170,14],[167,1,167,13],[168,1,168,13],[115,3,115,10],[108,3,108,10],[189,13,190,13],[189,12,190,12],[189,3,190,10],[189,14,190,14],[189,1,190,1],[189,2,190,2],[184,1,184,14],[109,3,109,10],[111,3,111,10],[67,1,68,1],[105,3,105,10],[106,3,106,10],[107,3,107,10],[93,3,93,10],[95,3,95,10],[94,3,94,10],[48,3,48,10],[90,3,90,10],[85,3,85,10],[84,3,84,10],[78,3,78,10],[79,3,79,10],[71,3,71,10],[82,3,82,10],[104,3,104,10],[72,3,72,10],[88,3,88,10],[87,3,87,10],[86,3,86,10],[89,3,89,10],[76,3,76,10],[73,3,73,10],[197,1,197,14],[67,12,68,12],[67,13,68,13],[67,14,68,14],[64,1,64,14],[51,3,51,10],[67,11,68,11],[67,3,68,10],[49,3,49,10],[61,3,61,10],[59,3,59,10],[60,3,60,10],[58,3,58,10],[57,3,57,10],[55,3,55,10],[56,3,56,10],[70,3,70,10],[53,3,53,10],[54,3,54,10],[62,3,62,10],[92,3,92,10],[77,3,77,10],[91,3,91,10],[67,2,68,2],[39,3,39,10],[22,3,22,10],[30,3,30,10],[10,5,10,14],[12,3,12,5],[14,3,14,5],[16,3,17,10],[16,13,17,13],[37,3,37,10],[38,3,38,10],[32,3,32,10],[2,13,2,14],[25,3,25,10],[26,3,26,10],[27,3,27,10],[16,11,17,11],[16,12,17,12],[16,1,17,1],[16,2,17,2],[16,14,17,14],[12,12,14,14],[42,3,42,10],[43,3,43,10],[44,3,44,10],[45,3,45,10],[46,3,46,10],[0,7,0,8],[18,3,18,10],[29,3,29,10],[20,3,20,10],[23,3,23,10],[40,3,40,10],[41,3,41,10],[6,1,6,11],[33,3,33,10],[34,3,34,10],[12,1,12,2],[14,1,14,2],[21,3,21,10],[24,3,24,10],[28,3,28,10],[19,3,19,10],[35,3,35,10],[36,3,36,10],[31,3,31,10]]}
[]
[null,null,null,null,null,null,null,null,null,null,null,null,null,null,null,null,null,null,null,null,"CÓDIGO EM VBA PRA DESPROTEGER QUALQUER PLANILHA"]
[]
[]
[]
[]
[null,"AUXÍLIO À PESQUISA - REGULAR"]
[]
[null,"1- MATERIAL PERMANENTE NACIONAL"]
[]
[null,"NOME DO INTERESSADO:"]
[]
[null,"PROCESSO: ",null,null,null,null,null,null,null,null,null,null,"Chamada FAPESP-FCT 2017"]
[]
[null,"TOTAL:  ",null,{"$f":"IF(SUM(N19:N63,N70:N116)=0,\"\",SUM(N19:N63,N70:N116))","v":""}]
[]
[null,"item","quant.","descrição (somente 1 linha para cada item)",null,null,null,null,null,null,null,"referência do orçamento","preço unitário","custo do item","FAPESP",null,null,"DOCUMENTAÇÃO",null,null,null,null,null,null,null,null,null,null,null,null,null,"Bolsas regulares FAPESP","a partir de 1º/4/2011"]
[null,null,null,null,null,null,null,null,null,null,null,null,null,null,null,null,null,null,null,null,null,null,null,null,null,null,null,null,null,null,null,"Iniciação Científica/Tecnológica (IC)",502.8]
[null,null,null,null,null,null,null,null,null,null,null,null,null,{"$f":"IF(C19=0,\"\",C19*M19)","v":""},null,null,null,"INÍCIO - FORMATAÇÃO CONDICIONAL.",null,null,null,null,null,null,null,null,null,null,null,null,null,"Mestrado 1 (MS 1) e Doutorado Direto 1 (DD 1)",1477.2]
[null,null,null,null,null,null,null,null,null,null,null,null,null,"",null,null,null,"AS CÉLULAS COM FUNDO CINZA CONTEM FORMULAS (ESTÃO PROTEGIDAS). AS COM FUNDO AMARELO SÃO DESPROTEGIDAS",null,null,null,null,null,null,null,null,null,null,null,null,null,"Mestrado 2 (MS 2) e Doutorado Direto 2 (DD 2)",1568.4]
[null,null,null,null,null,null,null,null,null,null,null,null,null,"",null,null,null,"AS CORES SÃO DEFINIDAS POR FORMATAÇÃO CONDICIONAL",null,null,null,null,null,null,null,null,null,null,null,null,null,"Doutorado 1 (DR 1) e Doutorado Direto 3 (DD 3)",2177.6999999999998]
[null,null,null,null,null,null,null,null,null,null,null,null,null,"",null,null,null,null,null,null,null,null,null,null,null,null,null,null,null,null,null,"Doutorado 2 (DR 2) e Doutorado Direto 4 (DD 4)",2695.2]
[null,null,null,null,null,null,null,null,null,null,null,null,null,"",null,null,null,"CONTÉM FÓRMULAS DE TOTALIZAÇÃO ",null,null,null,null,null,null,null,null,null,null,null,null,null,"Pós-Doutorado (PD-BR)",5333.4]
[null,null,null,null,null,null,null,null,null,null,null,null,null,"",null,null,null,null,null,null,null,null,null,null,null,null,null,null,null,null,null,"Capacitação de recursos humanos de apoio à pesquisa"]
[null,null,null,null,null,null,null,null,null,null,null,null,null,"",null,null,null,"IMAGENS NA PLANILHA",null,null,null,null,null,null,null,null,null,null,null,null,null,"Treinamento Técnico 1 (TT 1)",317.39999999999998]
[null,null,null,null,null,null,null,null,null,null,null,null,null,"",null,null,null,"A IMAGEM  PARA IR À INSTRUÇÃO  PARA PREENCHIMENTO TEM LINK PARA A LINHA 184",null,null,null,null,null,null,null,null,null,null,null,null,null,"Treinamento Técnico 2 (TT 2)",634.79999999999995]
[null,null,null,null,null,null,null,null,null,null,null,null,null,"",null,null,null,"SOMENTE A IMAGEM DE 50 ANOS DA FAPESP SERÁ IMPRESSA, AS DEMAIS SÃO INFORMATIVAS",null,null,null,null,null,null,null,null,null,null,null,null,null,"Treinamento Técnico 3 (TT 3)",888.3]
[null,null,null,null,null,null,null,null,null,null,null,null,null,"",null,null,null,null,null,null,null,null,null,null,null,null,null,null,null,null,null,"Treinamento Técnico 4 (TT 4)",2246.1]
[null,null,null,null,null,null,null,null,null,null,null,null,null,"",null,null,null,"COMUNICAÇAO ENTRE AS PLANILHAS",null,null,null,null,null,null,null,null,null,null,null,null,null,"Treinamento Técnico 4A (TT 4A)",3679.8]
[null,null,null,null,null,null,null,null,null,null,null,null,null,"",null,null,null,"A ÚNICA PLANILHA QUE SE COMUNICA COM TODAS AS OUTRAS É A CONSOLIDADA, O MÊS DEVE SER INSERIDO SOMENTE EM 1-MPN",null,null,null,null,null,null,null,null,null,null,null,null,null,"Treinamento Técnico 5 (TT 5)",5333.4]
[null,null,null,null,null,null,null,null,null,null,null,null,null,""]
[null,null,null,null,null,null,null,null,null,null,null,null,null,"",null,null,null,"INFORMAÇÕES GERAIS"]
[null,null,null,null,null,null,null,null,null,null,null,null,null,"",null,null,null,"AS PLANILHAS FORAM VERTICALIZADAS ENTRE MAIO E JUNHO DE 2010"]
[null,null,null,null,null,null,null,null,null,null,null,null,null,"",null,null,null,"NAS PLANILHAS \"NACIONAIS\", AS DUAS PÁGINAS TEM 47 LINHAS "]
[null,null,null,null,null,null,null,null,null,null,null,null,null,"",null,null,null,"NAS PLANILAS \"INTERNACIONAIS\", A PRIMEIRA PÁGINA TEM 40 LINHAS E A SEGUNDA 47."]
[null,null,null,null,null,null,null,null,null,null,null,null,null,"",null,null,null,"AS LINHAS DE TODAS AS PLANILHAS TEM ALTURA DE \"23,25\"."]
[null,null,null,null,null,null,null,null,null,null,null,null,null,"",null,null,null,"ELAS FORAM FORMATADAS PRA APARECER INTEGRALMENTE NA TELA COM ZOOM DE 100%"]
[null,null,null,null,null,null,null,null,null,null,null,null,null,""]
[null,null,null,null,null,null,null,null,null,null,null,null,null,"",null,null,null,"CONFIGURAÇÃO DE MARGEM"]
[null,null,null,null,null,null,null,null,null,null,null,null,null,"",null,null,null,1]
[null,null,null,null,null,null,null,null,null,null,null,null,null,"",null,null,null,"1,9                                                   0,7       "]
[null,null,null,null,null,null,null,null,null,null,null,null,null,"",null,null,null,1]
[null,null,null,null,null,null,null,null,null,null,null,null,null,"",null,null,null,"ALINHAR - HORIZONTAL E VERTICAL"]
[null,null,null,null,null,null,null,null,null,null,null,null,null,""]
[null,null,null,null,null,null,null,null,null,null,null,null,null,"",null,null,null,"CLIQUE AQUI E SELECIONE A MODALIDADE DO AUXÍLIO SOLICITADO"]
[null,null,null,null,null,null,null,null,null,null,null,null,null,"",null,null,46,"AUXÍLIO À PESQUISA - PROJETO TEMÁTICO"]
[null,null,null,null,null,null,null,null,null,null,null,null,null,"",null,null,47,"AUXÍLIO À PESQUISA - JOVENS PESQUISADORES"]
[null,null,null,null,null,null,null,null,null,null,null,null,null,"",null,null,48,"AUXÍLIO À PESQUISA - ENSINO PÚBLICO"]
[null,null,null,null,null,null,null,null,null,null,null,null,null,"",null,null,49,"AUXÍLIO À PESQUISA - POLÍTICAS PÚBLICAS"]
[null,null,null,null,null,null,null,null,null,null,null,null,null,"",null,null,50,"AUXÍLIO À PESQUISA - REGULAR"]
[null,null,null,null,null,null,null,null,null,null,null,null,null,""]
[null,null,null,null,null,null,null,null,null,null,null,null,null,""]
[null,null,null,null,null,null,null,null,null,null,null,null,null,""]
[null,null,null,null,null,null,null,null,null,null,null,null,null,""]
[null,null,null,null,null,null,null,null,null,null,null,null,null,""]
[null,null,null,null,null,null,null,null,null,null,null,null,null,""]
[null,null,null,null,null,null,null,null,null,null,null,null,null,""]
[null,null,null,null,null,null,null,null,null,null,null,null,null,""]
[null,null,null,null,null,null,null,null,null,null,null,null,null,""]
[null,null,null,null,null,null,null,null,null,null,null,null,null,""]
[null,null,null,null,null,null,null,null,null,null,null,null,null,""]
[null,null,null,null,null,null,null,null,null,null,null,null,null,""]
[null,null,null,null,null,null,null,null,null,null,null,null,null,""]
[]
[null,"- JUSTIFIQUE EM ANEXO A UTILIDADE DE CADA MATERIAL SOLICITADO PARA O DESENVOLVIMENTO DO PROJETO DE PESQUISA PROPOSTO.  "]
[null,"FAPESP, MARÇO DE 2017",null,null,null,null,null,null,null,null,null,null,null,null,1]
[null,"MATERIAL PERMANENTE NACIONAL",null,null,null,null,null,null,null,null,null,null,null,null,null,null,null,null,null,null,null,null,null,null,null,null,null,null,null,null,null,null,"Valores vigentes até 31/3/2011","Valores vigentes a partir de 1º/4/2011"]
[null,"item","quant.","descrição (somente 1 linha para cada item)",null,null,null,null,null,null,null,"referência do orçamento","preço unitário","custo do item","FAPESP"]
[null,null,null,null,null,null,null,null,null,null,null,null,null,null,null,null,null,null,null,null,null,null,null,null,null,null,null,null,null,null,null,null,474,502.8]
[null,null,null,null,null,null,null,null,null,null,null,null,null,{"$f":"IF(C70=0,\"\",C70*M70)","v":""},null,null,null,null,null,null,null,null,null,null,null,null,null,null,null,null,null,null,1392.9,1477.2]
[null,null,null,null,null,null,null,null,null,null,null,null,null,"",null,null,null,null,null,null,null,null,null,null,null,null,null,null,null,null,null,null,1478.7,1568.4]
[null,null,null,null,null,null,null,null,null,null,null,null,null,"",null,null,null,null,null,null,null,null,null,null,null,null,null,null,null,null,null,null,2053.1999999999998,2177.6999999999998]
[null,null,null,null,null,null,null,null,null,null,null,null,null,"",null,null,null,null,null,null,null,null,null,null,null,null,null,null,null,null,null,null,2541.3000000000002,2695.2]
[null,null,null,null,null,null,null,null,null,null,null,null,null,"",null,null,null,null,null,null,null,null,null,null,null,null,null,null,null,null,null,null,5028.8999999999996,5333.4]
[null,null,null,null,null,null,null,null,null,null,null,null,null,""]
[null,null,null,null,null,null,null,null,null,null,null,null,null,"",null,null,null,null,null,null,null,null,null,null,null,null,null,null,null,null,null,null,299.10000000000002,317.39999999999998]
[null,null,null,null,null,null,null,null,null,null,null,null,null,"",null,null,null,null,null,null,null,null,null,null,null,null,null,null,null,null,null,null,598.5,634.79999999999995]
[null,null,null,null,null,null,null,null,null,null,null,null,null,"",null,null,null,null,null,null,null,null,null,null,null,null,null,null,null,null,null,null,837.6,888.3]
[null,null,null,null,null,null,null,null,null,null,null,null,null,"",null,null,null,null,null,null,null,null,null,null,null,null,null,null,null,null,null,null,2117.6999999999998,2246.1]
[null,null,null,null,null,null,null,null,null,null,null,null,null,"",null,null,null,null,null,null,null,null,null,null,null,null,null,null,null,null,null,null,3469.8,3679.8]
[null,null,null,null,null,null,null,null,null,null,null,null,null,"",null,null,null,null,null,null,null,null,null,null,null,null,null,null,null,null,null,null,5028.8999999999996,5333.4]
[null,null,null,null,null,null,null,null,null,null,null,null,null,"",null,null,null,null,null,null,null,null,null,null,null,null,null,null,null,null,null,null,478.5,507.6]
[null,null,null,null,null,null,null,null,null,null,null,null,null,"",null,null,null,null,null,null,null,null,null,null,null,null,null,null,null,null,null,null,717.9,761.4]
[null,null,null,null,null,null,null,null,null,null,null,null,null,"",null,null,null,null,null,null,null,null,null,null,null,null,null,null,null,null,null,null,"US$ 1.200,00","US$ 1.200,00"]
[null,null,null,null,null,null,null,null,null,null,null,null,null,""]
[null,null,null,null,null,null,null,null,null,null,null,null,null,"",null,null,null,null,null,null,null,null,null,null,null,null,null,null,null,null,null,null,5714.4,6060.3]
[null,null,null,null,null,null,null,null,null,null,null,null,null,""]
[null,null,null,null,null,null,null,null,null,null,null,null,null,"",null,null,null,null,null,null,null,null,null,null,null,null,null,null,null,null,null,null,215.4,228.6]
[null,null,null,null,null,null,null,null,null,null,null,null,null,"",null,null,null,null,null,null,null,null,null,null,null,null,null,null,null,null,null,null,430.8,456.9]
[null,null,null,null,null,null,null,null,null,null,null,null,null,"",null,null,null,null,null,null,null,null,null,null,null,null,null,null,null,null,null,null,646.20000000000005,685.5]
[null,null,null,null,null,null,null,null,null,null,null,null,null,"",null,null,null,null,null,null,null,null,null,null,null,null,null,null,null,null,null,null,861.3,913.5]
[null,null,null,null,null,null,null,null,null,null,null,null,null,"",null,null,null,null,null,null,null,null,null,null,null,null,null,null,null,null,null,null,1077,1142.4000000000001]
[null,null,null,null,null,null,null,null,null,null,null,null,null,"",null,null,null,null,null,null,null,null,null,null,null,null,null,null,null,null,null,null,1722.9,1827.3]
[null,null,null,null,null,null,null,null,null,null,null,null,null,""]
[null,null,null,null,null,null,null,null,null,null,null,null,null,"",null,null,null,null,null,null,null,null,null,null,null,null,null,null,null,null,null,null,2760.9,2928]
[null,null,null,null,null,null,null,null,null,null,null,null,null,"",null,null,null,null,null,null,null,null,null,null,null,null,null,null,null,null,null,null,4085.7,4332.8999999999996]
[null,null,null,null,null,null,null,null,null,null,null,null,null,"",null,null,null,null,null,null,null,null,null,null,null,null,null,null,null,null,null,null,5714.4,6060.3]
[null,null,null,null,null,null,null,null,null,null,null,null,null,""]
[null,null,null,null,null,null,null,null,null,null,null,null,null,"",null,null,null,null,null,null,null,null,null,null,null,null,null,null,null,null,null,null,474,502.8]
[null,null,null,null,null,null,null,null,null,null,null,null,null,"",null,null,null,null,null,null,null,null,null,null,null,null,null,null,null,null,null,null,1392.9,1477.2]
[null,null,null,null,null,null,null,null,null,null,null,null,null,"",null,null,null,null,null,null,null,null,null,null,null,null,null,null,null,null,null,null,2053.1999999999998,2177.6999999999998]
[null,null,null,null,null,null,null,null,null,null,null,null,null,"",null,null,null,null,null,null,null,null,null,null,null,null,null,null,null,null,null,null,5028,5333.4]
[null,null,null,null,null,null,null,null,null,null,null,null,null,""]
[null,null,null,null,null,null,null,null,null,null,null,null,null,""]
[null,null,null,null,null,null,null,null,null,null,null,null,null,""]
[null,null,null,null,null,null,null,null,null,null,null,null,null,""]
[null,null,null,null,null,null,null,null,null,null,null,null,null,""]
[null,null,null,null,null,null,null,null,null,null,null,null,null,""]
[null,null,null,null,null,null,null,null,null,null,null,null,null,""]
[null,null,null,null,null,null,null,null,null,null,null,null,null,""]
[null,null,null,null,null,null,null,null,null,null,null,null,null,""]
[null,null,null,null,null,null,null,null,null,null,null,null,null,""]
[null,null,null,null,null,null,null,null,null,null,null,null,null,""]
[null,null,null,null,null,null,null,null,null,null,null,null,null,""]
[null,null,null,null,null,null,null,null,null,null,null,null,null,""]
[null,null,null,null,null,null,null,null,null,null,null,null,null,""]
[]
[null,"- JUSTIFIQUE EM ANEXO A UTILIDADE DE CADA MATERIAL SOLICITADO PARA O DESENVOLVIMENTO DO PROJETO DE PESQUISA PROPOSTO.  "]
[null,{"$f":"B66","v":"FAPESP, MARÇO DE 2017"},null,null,null,null,null,null,null,null,null,null,null,null,2]
[]
[]
[]
[]
[]
[]
[]
[]
[]
[]
[]
[]
[]
[]
[]
[]
[]
[]
[]
[]
[]
[]
[]
[]
[]
[]
[]
[]
[]
[]
[]
[]
[]
[]
[]
[]
[]
[]
[]
[]
[]
[]
[]
[]
[null,"PARA IMPRIMIR A INSTRUÇÃO ABAIXO, SELECIONE A ÁREA A SER IMPRESSA"]
[null,"DIGITE \"CTRL\" P, E DEPOIS CLIQUE EM SELEÇÃO."]
[]
[]
[null," INSTRUÇÕES PARA PREENCHIMENTO – LEIA ATENTAMENTE AS INSTRUÇÕES ABAIXO."]
[null,"MATERIAL PERMANENTE NACIONAL (MPN) "]
[]
[null,"NÃO SERÃO ACEITOS FORMULÁRIOS PREENCHIDOS EM DESACORDO COM ESTA INSTRUÇÃO"]
[]
[null,"- Não incluir aquisição de publicações, materiais administrativos (móveis, etc.). O Auxílio destina-se exclusivamente a materiais de pesquisa.  "]
[null,"- Devem ser incluídos neste formulário, todos os materiais permanentes que se pretendam adquirir no Brasil, independente de serem eles de fabricação estrangeira ou nacional."]
[null,"- Coluna (item) - cada material solicitado deve ser numerado seqüencialmente. Considere um item para cada material (equipamento e componentes) e um sub-item para cada"]
[null,"   um dos seus acessórios, deixando claro quais são os acessórios correspondentes a um determinado item, com letras seqüenciais. (Ver exemplo abaixo). "]
[null,"- Coluna (quant.) - quantidade de cada um dos itens solicitados.  "]
[null,"- Coluna (descrição) - descreva os materiais a  serem adquiridos, indicando  nome,  modelo, tipo, etc. Toda a descrição deve ser feita em PORTUGUÊS.  "]
[null,"- Coluna (referência do orçamento) - número do orçamento (faça a correlação entre o item solicitado e o orçamento apresentado)."]
[null,"- Coluna (preço unitário)- valor unitário em moeda nacional  "]
[null,"- Coluna (custo do item) - total parcial em  moeda nacional, do material solicitado em cada item. (O preenchimento  e totalização desta coluna é automático).  "]
[null,"- Coluna (FAPESP) - para uso exclusivo da FAPESP.  "]
[]
[null,"OBSERVAÇÕES: "]
[null,"1) Três orçamentos (não é necessário apresentar proformas na submissão) para cada um dos itens de Material Permanente Nacional ou Importado cujo\n valor supere dez  vezes o salário mínimo nacional. "]
[null,"2) Recomenda-se uma verificação de preços antes da solicitação, a fim de evitar alterações no decorrer do projeto e demoras indesejáveis."]
[null,"3) Justifique em anexo a utilidade de cada material solicitado para o desenvolvimento do projeto de pesquisa proposto.  "]
[]
[null,"EXEMPLO  "]
[null,"item","quant.","descrição (somente 1 linha para cada item)",null,null,null,null,null,null,null,"referência do orçamento","preço unitário","custo do item","FAPESP"]
[]
[null,1,1,"Cuba de eletroforese horizontal",null,null,null,null,null,null,null,null,500,{"$f":"IF(C192=0,0,C192*M192)","v":500}]
[null,"1a",2,"Pente 30 dentes, 1 mm espessura, para uso com a cuba acima",null,null,null,null,null,null,null,null,46,{"$f":"IF(C193=0,0,C193*M193)","v":92}]
[null,"1b",2,"Pente 30 dentes, 2 mm espessura, para uso com a cuba acima",null,null,null,null,null,null,null,null,46,{"$f":"IF(C194=0,0,C194*M194)","v":92}]
[null,2,1,"Transdutor ultrasônico",null,null,null,null,null,null,null,null,1100,{"$f":"IF(C195=0,0,C195*M195)","v":1100}]
[null,"2a",1,"cabo padrão a prova d'água",null,null,null,null,null,null,null,null,50,{"$f":"IF(C196=0,0,C196*M196)","v":50}]
[null,null,null,null,null,null,null,null,null,null,null,null,"TOTAL",{"$f":"SUM(N192:O196)","v":1834}]
[null,{"$f":"B118","v":"- JUSTIFIQUE EM ANEXO A UTILIDADE DE CADA MATERIAL SOLICITADO PARA O DESENVOLVIMENTO DO PROJETO DE PESQUISA PROPOSTO.  "}]

{"sheet":"2-MPI","index":1,"n_rows":193,"n_cols":23,"rows_kept":193,"cut":false,"hidden":false,"merged":[[65,1,66,1],[39,14,39,15],[186,16,186,17],[43,16,43,18],[33,3,33,10],[91,3,91,10],[88,3,88,10],[88,14,88,15],[71,14,71,15],[70,3,70,10],[68,16,68,18],[84,3,84,10],[71,3,71,10],[73,3,73,10],[75,14,75,15],[69,14,69,15],[69,3,69,10],[69,16,69,18],[70,14,70,15],[39,16,39,18],[70,16,70,18],[82,16,82,18],[73,16,73,18],[72,14,72,15],[72,16,72,18],[65,19,66,19],[34,3,34,10],[34,14,34,15],[37,3,37,10],[37,14,37,15],[37,16,37,18],[38,3,38,10],[38,14,38,15],[38,16,38,18],[39,3,39,10],[44,3,44,10],[59,16,59,18],[50,16,50,18],[48,3,48,10],[51,14,51,15],[51,16,51,18],[51,3,51,10],[57,3,57,10],[65,11,66,11],[65,14,66,15],[52,16,52,18],[58,16,58,18],[36,16,36,18],[43,3,43,10],[188,3,188,10],[189,3,189,10],[190,3,190,10],[185,11,186,11],[98,16,98,18],[102,14,102,15],[102,16,102,18],[103,14,103,15],[103,16,103,18],[103,3,103,10],[112,14,112,15],[160,1,160,19],[187,14,187,15],[188,14,188,15],[185,2,186,2],[185,1,186,1],[185,16,185,17],[74,14,74,15],[79,14,79,15],[100,16,100,18],[98,3,98,10],[99,3,99,10],[96,3,96,10],[77,14,77,15],[89,3,89,10],[89,14,89,15],[96,14,96,15],[99,14,99,15],[76,16,76,18],[90,3,90,10],[90,14,90,15],[90,16,90,18],[97,3,97,10],[95,3,95,10],[94,14,94,15],[94,16,94,18],[97,14,97,15],[97,16,97,18],[93,3,93,10],[93,14,93,15],[93,16,93,18],[67,3,67,10],[77,16,77,18],[75,16,75,18],[67,14,67,15],[92,14,92,15],[91,14,91,15],[91,16,91,18],[74,16,74,18],[85,16,85,18],[87,3,87,10],[87,14,87,15],[87,16,87,18],[75,3,75,10],[74,3,74,10],[68,3,68,10],[73,14,73,15],[72,3,72,10],[71,16,71,18],[79,3,79,10],[86,3,86,10],[83,16,83,18],[92,16,92,18],[86,14,86,15],[86,16,86,18],[59,3,59,10],[59,14,59,15],[54,3,54,10],[28,14,28,15],[56,3,56,10],[50,14,50,15],[42,14,42,15],[54,14,54,15],[58,14,58,15],[40,3,40,10],[41,3,41,10],[43,14,43,15],[76,3,76,10],[76,14,76,15],[101,14,101,15],[158,2,158,19],[157,2,157,19],[109,14,109,15],[108,16,108,18],[108,3,108,10],[108,14,108,15],[109,3,109,10],[77,3,77,10],[85,3,85,10],[85,14,85,15],[78,16,78,18],[83,3,83,10],[83,14,83,15],[115,1,115,19],[94,3,94,10],[112,16,112,18],[111,3,111,10],[110,3,110,10],[110,14,110,15],[110,16,110,18],[113,16,113,18],[112,3,112,10],[116,12,116,17],[191,1,191,2],[191,14,191,15],[111,14,111,15],[113,3,113,10],[113,14,113,15],[191,16,191,17],[185,18,186,19],[187,16,187,17],[188,16,188,17],[189,16,189,17],[190,16,190,17],[189,14,189,15],[190,14,190,15],[185,14,186,15],[185,3,186,10],[187,3,187,10],[111,16,111,18],[107,16,107,18],[106,3,106,10],[109,16,109,18],[107,3,107,10],[107,14,107,15],[100,3,100,10],[100,14,100,15],[106,14,106,15],[101,3,101,10],[106,16,106,18],[104,3,104,10],[104,14,104,15],[104,16,104,18],[102,3,102,10],[105,3,105,10],[105,14,105,15],[105,16,105,18],[78,3,78,10],[78,14,78,15],[81,16,81,18],[80,3,80,10],[80,14,80,15],[80,16,80,18],[92,3,92,10],[95,14,95,15],[95,16,95,18],[101,16,101,18],[99,16,99,18],[89,16,89,18],[96,16,96,18],[98,14,98,15],[82,3,82,10],[82,14,82,15],[79,16,79,18],[81,3,81,10],[81,14,81,15],[88,16,88,18],[84,16,84,18],[67,16,67,18],[68,14,68,15],[42,16,42,18],[46,16,46,18],[47,16,47,18],[48,16,48,18],[45,16,45,18],[63,12,63,17],[62,1,62,19],[56,14,56,15],[57,14,57,15],[60,3,60,10],[60,14,60,15],[58,3,58,10],[49,3,49,10],[55,3,55,10],[55,14,55,15],[53,3,53,10],[49,14,49,15],[49,16,49,18],[42,3,42,10],[47,3,47,10],[52,3,52,10],[50,3,50,10],[19,3,20,10],[19,2,20,2],[19,1,20,1],[7,6,7,19],[22,16,22,18],[26,3,26,10],[27,3,27,10],[13,1,13,2],[15,1,15,2],[13,8,13,9],[17,1,17,2],[23,3,23,10],[22,3,22,10],[27,16,27,18],[25,16,25,18],[24,14,24,15],[13,14,13,15],[15,14,15,15],[15,8,15,9],[17,3,17,7],[9,4,9,6],[13,13,15,13],[19,14,20,15],[34,16,34,18],[30,16,30,18],[31,16,31,18],[30,3,30,10],[13,18,13,19],[15,18,15,19],[32,3,32,10],[32,14,32,15],[33,14,33,15],[33,16,33,18],[32,16,32,18],[29,16,29,18],[30,14,30,15],[31,14,31,15],[29,3,29,10],[19,12,20,12],[19,13,20,13],[23,16,23,18],[19,11,20,11],[21,16,21,18],[28,16,28,18],[28,3,28,10],[52,14,52,15],[19,19,20,19],[29,14,29,15],[35,3,35,10],[36,14,36,15],[35,14,35,15],[35,16,35,18],[36,3,36,10],[45,3,45,10],[24,16,24,18],[40,14,40,15],[40,16,40,18],[19,16,20,18],[21,14,21,15],[22,14,22,15],[23,14,23,15],[26,16,26,18],[31,3,31,10],[26,14,26,15],[27,14,27,15],[24,3,24,10],[25,3,25,10],[25,14,25,15],[21,3,21,10],[9,14,11,19],[178,1,178,19],[65,2,66,2],[41,14,41,15],[65,3,66,10],[65,12,66,12],[65,13,66,13],[65,16,66,18],[56,16,56,18],[54,16,54,18],[55,16,55,18],[44,14,44,15],[44,16,44,18],[45,14,45,15],[53,14,53,15],[46,14,46,15],[47,14,47,15],[53,16,53,18],[41,16,41,18],[46,3,46,10],[60,16,60,18],[84,14,84,15],[57,16,57,18],[48,14,48,15]]}
[]
[]
[]
[]
[]
[null,"2- MATERIAL PERMANENTE IMPORTADO"]
[]
[null,"NOME DO INTERESSADO:"]
[]
[null,"PROCESSO: ",null,null,null,null,null,null,null,null,null,null,null,null,"Chamada FAPESP-FCT 2017"]
[]
[null,"CÂMBIO (INFORME A SIGLA DA MOEDA E O VALOR DE SUA TAXA EM DÓLAR)"]
[]
[null,"MOEDA 1:",null,"USD","TAXA:",1,null,null,"MOEDA 2:",null,null,"TAXA:",null,null,"MOEDA 3:",null,null,"TAXA:"]
[]
[null,"MOEDA 4:",null,null,"TAXA:",null,null,null,"MOEDA 5:",null,null,"TAXA:",null,null,"MOEDA 6:",null,null,"TAXA:"]
[]
[null,"TOTAL: ",null,{"$f":"IF(SUM(Q22:S61,Q68:S114)=0,\"\",SUM(Q22:S61,Q68:S114))","v":""}]
[]
[null,"item","quant.","descrição (somente 1 linha para cada item)",null,null,null,null,null,null,null,"referência do orçamento","moeda de origem","preço unitário","custo do item moeda original",null,"custo do item US$",null,null,"FAPESP"]
[]
[null,null,null,null,null,null,null,null,null,null,null,null,null,null,{"$f":"IF(C22*N22=0,\"\",C22*N22)","v":""},null,{"$f":"IF(ISERROR(INDEX($W$22:$W$27,MATCH(M22,$V$22:$V$27,0))*O22),\"\",INDEX($W$22:$W$27,MATCH(M22,$V$22:$V$27,0))*O22)","v":""},null,null,null,null,{"$f":"D14","v":"USD"},{"$f":"F14","v":1}]
[null,null,null,null,null,null,null,null,null,null,null,null,null,null,{"$f":"IF(C23*N23=0,\"\",C23*N23)","v":""},null,{"$f":"IF(ISERROR(INDEX($W$22:$W$27,MATCH(M23,$V$22:$V$27,0))*O23),\"\",INDEX($W$22:$W$27,MATCH(M23,$V$22:$V$27,0))*O23)","v":""},null,null,null,null,{"$f":"IF(K14=0,\"\",K14)","v":""},{"$f":"M14","v":0}]
[null,null,null,null,null,null,null,null,null,null,null,null,null,null,"",null,"",null,null,null,null,{"$f":"IF(Q14=0,\"\",Q14)","v":""},{"$f":"S14","v":0}]
[null,null,null,null,null,null,null,null,null,null,null,null,null,null,"",null,"",null,null,null,null,{"$f":"IF(D16=0,\"\",D16)","v":""},{"$f":"F16","v":0}]
[null,null,null,null,null,null,null,null,null,null,null,null,null,null,"",null,"",null,null,null,null,{"$f":"IF(K16=0,\"\",K16)","v":""},{"$f":"M16","v":0}]
[null,null,null,null,null,null,null,null,null,null,null,null,null,null,"",null,"",null,null,null,null,{"$f":"IF(Q16=0,\"\", Q16)","v":""},{"$f":"S16","v":0}]
[null,null,null,null,null,null,null,null,null,null,null,null,null,null,"",null,""]
[null,null,null,null,null,null,null,null,null,null,null,null,null,null,"",null,""]
[null,null,null,null,null,null,null,null,null,null,null,null,null,null,"",null,""]
[null,null,null,null,null,null,null,null,null,null,null,null,null,null,"",null,""]
[null,null,null,null,null,null,null,null,null,null,null,null,null,null,"",null,""]
[null,null,null,null,null,null,null,null,null,null,null,null,null,null,"",null,""]
[null,null,null,null,null,null,null,null,null,null,null,null,null,null,"",null,""]
[null,null,null,null,null,null,null,null,null,null,null,null,null,null,"",null,""]
[null,null,null,null,null,null,null,null,null,null,null,null,null,null,"",null,""]
[null,null,null,null,null,null,null,null,null,null,null,null,null,null,"",null,""]
[null,null,null,null,null,null,null,null,null,null,null,null,null,null,"",null,""]
[null,null,null,null,null,null,null,null,null,null,null,null,null,null,"",null,""]
[null,null,null,null,null,null,null,null,null,null,null,null,null,null,"",null,""]
[null,null,null,null,null,null,null,null,null,null,null,null,null,null,"",null,""]
[null,null,null,null,null,null,null,null,null,null,null,null,null,null,"",null,""]
[null,null,null,null,null,null,null,null,null,null,null,null,null,null,"",null,""]
[null,null,null,null,null,null,null,null,null,null,null,null,null,null,"",null,""]
[null,null,null,null,null,null,null,null,null,null,null,null,null,null,"",null,""]
[null,null,null,null,null,null,null,null,null,null,null,null,null,null,"",null,""]
[null,null,null,null,null,null,null,null,null,null,null,null,null,null,"",null,""]
[null,null,null,null,null,null,null,null,null,null,null,null,null,null,"",null,""]
[null,null,null,null,null,null,null,null,null,null,null,null,null,null,"",null,""]
[null,null,null,null,null,null,null,null,null,null,null,null,null,null,"",null,""]
[null,null,null,null,null,null,null,null,null,null,null,null,null,null,"",null,""]
[null,null,null,null,null,null,null,null,null,null,null,null,null,null,"",null,""]
[null,null,null,null,null,null,null,null,null,null,null,null,null,null,"",null,""]
[null,null,null,null,null,null,null,null,null,null,null,null,null,null,"",null,""]
[null,null,null,null,null,null,null,null,null,null,null,null,null,null,"",null,""]
[null,null,null,null,null,null,null,null,null,null,null,null,null,null,"",null,""]
[null,null,null,null,null,null,null,null,null,null,null,null,null,null,"",null,""]
[null,null,null,null,null,null,null,null,null,null,null,null,null,null,"",null,""]
[null,null,null,null,null,null,null,null,null,null,null,null,null,null,"",null,""]
[null,null,null,null,null,null,null,null,null,null,null,null,null,null,"",null,""]
[null,null,null,null,null,null,null,null,null,null,null,null,null,null,"",null,""]
[]
[null,"- JUSTIFIQUE EM ANEXO A UTILIDADE DE CADA MATERIAL SOLICITADO PARA O DESENVOLVIMENTO DO PROJETO DE PESQUISA PROPOSTO.  "]
[null,{"$f":"'1-MPN'!B119","v":"FAPESP, MARÇO DE 2017"},null,null,null,null,null,null,null,null,null,null,null,null,null,null,null,null,null,1]
[null,"MATERIAL PERMANENTE IMPORTADO"]
[null,"item","quant.","descrição (somente 1 linha para cada item)",null,null,null,null,null,null,null,"referência do orçamento","moeda de origem","preço unitário","custo do item moeda original",null,"custo do item US$",null,null,"FAPESP"]
[]
[null,null,null,null,null,null,null,null,null,null,null,null,null,null,{"$f":"IF(C68*N68=0,\"\",C68*N68)","v":""},null,{"$f":"IF(ISERROR(INDEX($W$22:$W$27,MATCH(M68,$V$22:$V$27,0))*O68),\"\",INDEX($W$22:$W$27,MATCH(M68,$V$22:$V$27,0))*O68)","v":""}]
[null,null,null,null,null,null,null,null,null,null,null,null,null,null,"",null,{"$f":"IF(ISERROR(INDEX($W$22:$W$27,MATCH(M69,$V$22:$V$27,0))*O69),\"\",INDEX($W$22:$W$27,MATCH(M69,$V$22:$V$27,0))*O69)","v":""}]
[null,null,null,null,null,null,null,null,null,null,null,null,null,null,"",null,""]
[null,null,null,null,null,null,null,null,null,null,null,null,null,null,"",null,""]
[null,null,null,null,null,null,null,null,null,null,null,null,null,null,"",null,""]
[null,null,null,null,null,null,null,null,null,null,null,null,null,null,"",null,""]
[null,null,null,null,null,null,null,null,null,null,null,null,null,null,"",null,""]
[null,null,null,null,null,null,null,null,null,null,null,null,null,null,"",null,""]
[null,null,null,null,null,null,null,null,null,null,null,null,null,null,"",null,""]
[null,null,null,null,null,null,null,null,null,null,null,null,null,null,"",null,""]
[null,null,null,null,null,null,null,null,null,null,null,null,null,null,"",null,""]
[null,null,null,null,null,null,null,null,null,null,null,null,null,null,"",null,""]
[null,null,null,null,null,null,null,null,null,null,null,null,null,null,"",null,""]
[null,null,null,null,null,null,null,null,null,null,null,null,null,null,"",null,""]
[null,null,null,null,null,null,null,null,null,null,null,null,null,null,"",null,""]
[null,null,null,null,null,null,null,null,null,null,null,null,null,null,"",null,""]
[null,null,null,null,null,null,null,null,null,null,null,null,null,null,"",null,""]
[null,null,null,null,null,null,null,null,null,null,null,null,null,null,"",null,""]
[null,null,null,null,null,null,null,null,null,null,null,null,null,null,"",null,""]
[null,null,null,null,null,null,null,null,null,null,null,null,null,null,"",null,""]
[null,null,null,null,null,null,null,null,null,null,null,null,null,null,"",null,""]
[null,null,null,null,null,null,null,null,null,null,null,null,null,null,"",null,""]
[null,null,null,null,null,null,null,null,null,null,null,null,null,null,"",null,""]
[null,null,null,null,null,null,null,null,null,null,null,null,null,null,"",null,""]
[null,null,null,null,null,null,null,null,null,null,null,null,null,null,"",null,""]
[null,null,null,null,null,null,null,null,null,null,null,null,null,null,"",null,""]
[null,null,null,null,null,null,null,null,null,null,null,null,null,null,"",null,""]
[null,null,null,null,null,null,null,null,null,null,null,null,null,null,"",null,""]
[null,null,null,null,null,null,null,null,null,null,null,null,null,null,"",null,""]
[null,null,null,null,null,null,null,null,null,null,null,null,null,null,"",null,""]
[null,null,null,null,null,null,null,null,null,null,null,null,null,null,"",null,""]
[null,null,null,null,null,null,null,null,null,null,null,null,null,null,"",null,""]
[null,null,null,null,null,null,null,null,null,null,null,null,null,null,"",null,""]
[null,null,null,null,null,null,null,null,null,null,null,null,null,null,"",null,""]
[null,null,null,null,null,null,null,null,null,null,null,null,null,null,"",null,""]
[null,null,null,null,null,null,null,null,null,null,null,null,null,null,"",null,""]
[null,null,null,null,null,null,null,null,null,null,null,null,null,null,"",null,""]
[null,null,null,null,null,null,null,null,null,null,null,null,null,null,"",null,""]
[null,null,null,null,null,null,null,null,null,null,null,null,null,null,"",null,""]
[null,null,null,null,null,null,null,null,null,null,null,null,null,null,"",null,""]
[null,null,null,null,null,null,null,null,null,null,null,null,null,null,"",null,""]
[null,null,null,null,null,null,null,null,null,null,null,null,null,null,"",null,""]
[null,null,null,null,null,null,null,null,null,null,null,null,null,null,"",null,""]
[null,null,null,null,null,null,null,null,null,null,null,null,null,null,"",null,""]
[null,null,null,null,null,null,null,null,null,null,null,null,null,null,"",null,""]
[null,null,null,null,null,null,null,null,null,null,null,null,null,null,"",null,""]
[null,null,null,null,null,null,null,null,null,null,null,null,null,null,"",null,""]
[]
[null,{"$f":"B63","v":"- JUSTIFIQUE EM ANEXO A UTILIDADE DE CADA MATERIAL SOLICITADO PARA O DESENVOLVIMENTO DO PROJETO DE PESQUISA PROPOSTO.  "}]
[null,{"$f":"B64","v":"FAPESP, MARÇO DE 2017"},null,null,null,null,null,null,null,null,null,null,null,null,null,null,null,null,7]
[]
[]
[]
[]
[]
[]
[]
[]
[]
[]
[]
[]
[]
[]
[]
[]
[]
[]
[]
[]
[]
[]
[]
[]
[]
[]
[]
[]
[]
[]
[]
[]
[]
[]
[]
[null,"PARA IMPRIMIR A INSTRUÇÃO ABAIXO, SELECIONE A ÁREA A SER IMPRESSA"]
[null,"DIGITE \"CTRL\" P, E DEPOIS CLIQUE EM SELEÇÃO."]
[]
[]
[]
[null,null,"FORMULÁRIO 2 - INSTRUÇÕES PARA PREENCHIMENTO – LEIA ATENTAMENTE AS INSTRUÇÕES ABAIXO."]
[null,null,"MATERIAL  PERMANENTE IMPORTADO (MPI) "]
[]
[null,"NÃO SERÃO ACEITOS FORMULÁRIOS PREENCHIDOS EM DESACORDO COM ESTA INSTRUÇÃO"]
[]
[null,"- Não incluir aquisição de publicações, materiais administrativos, etc. O Auxílio destina-se exclusivamente a materiais de pesquisa. "]
[null,"- Devem ser incluídos nesta folha todos os materiais permanentes que se pretendam adquirir diretamente no exterior (importação direta). "]
[null,"- Coluna (item) - cada material solicitado deve ser numerado seqüencialmente. Considere um item para cada material (equipamento e componentes) e um sub-item para"]
[null,"   cada um dos seus acessórios, deixando claro quais são os acessórios correspondentes a um determinado item (Ver exemplo abaixo)"]
[null,"- Coluna (quant.) - quantidade de cada um dos itens solicitados. "]
[null,"- Coluna (descrição) - descreva os materiais que se pretende adquirir, indicando nome, modelo, tipo, etc. e país de procedência, descreva despesas cobradas pelo"]
[null,"    exportador (ex.: embalagem, documentação, etc). Toda a descrição deve ser feita em PORTUGUÊS. "]
[null,"- Coluna (referência do orçamento) - faça a correlação entre o item solicitado e o orçamento apresentado."]
[null,"- Coluna (moeda de origem) – indique a moeda de origem, como fornecido no orçamento do exportador/representante autorizado. "]
[null,"- Coluna (preço unitário) – valor unitário do item, na moeda de origem (indicar a moeda na coluna anterior). "]
[null,"- Coluna (custo do item-moeda original) - custo total parcial,na moeda de origem,do material solicitado em cada item. "]
[null,"    Não incluir despesas como embalagem. Frete interno, etc..,"]
[null,"- Coluna (custo do item - US$) conversão automática para dólar americano, do valor calculado na coluna anterior."]
[null,"- Coluna (FAPESP) – para uso exclusivo da FAPESP. "]
[]
[null," OBSERVAÇÕES:"]
[null,"1) Três orçamentos (não é necessário apresentar proformas na submissão) para cada um dos itens de Material Permanente Nacional ou Importado cujo\n valor supere dez  vezes o salário mínimo nacional. "]
[null,"2) Todo valor remetido ao exterior é deduzido dos recursos concedidos;"]
[null,"3 Justifique em anexo a utilidade de cada material solicitado para o desenvolvimento do projeto de pesquisa proposto;"]
[null,"4) Despesas com importação devem ser inseridas logo após a descrição de cada item (Ver exemplo abaixo)."]
[]
[null,"EXEMPLO"]
[]
[null,"item","quant.","descrição (somente 1 linha para cada item)",null,null,null,null,null,null,null,"referência do orçamento","moeda de","preço","custo do item  moeda original",null,"custo do item",null,"FAPESP"]
[null,null,null,null,null,null,null,null,null,null,null,null,"origem","unitário",null,null,"US$"]
[null,1,1,"CUBA DE ELETROFORESE HORIZONTAL,  PROCEDÊNCIA ALEMÃ",null,null,null,null,null,null,null,null,"EUR",1000,{"$f":"N188*C188","v":1000},null,1240,null," "]
[null,"1a",2,"PENTE 30 DENTES,  MM ESPESSURA, PARA USO COM A CUBA ACIMA, PROC. ALEMÃ   ",null,null,null,null,null,null,null,null,"EUR",92,{"$f":"N189*C189","v":184},null,228.16900000000001,null," "]
[null,"1b",1,"PENTE 30 DENTES, 2 MM ESPESSURA PARA USO COM A CUBA ACIMA PROC. ALEMÃ   ",null,null,null,null,null,null,null,null,"EUR",40,{"$f":"N190*C190","v":40},null,49.6,null," "]
[null,"1c",1,"DESPESAS COM FRETE, EMBALAGEM, DOCUMENTAÇÃO    ",null,null,null,null,null,null,null,null,"EUR",40,{"$f":"N191*C191","v":40},null,49.6,null," "]
[null,null,null,null,null,null,null,null,null,null,null,null,null,null,"TOTAL",null,{"$f":"SUM(Q188:Q191)","v":1567.3689999999999},null," "]
[null,{"$f":"B116","v":"- JUSTIFIQUE EM ANEXO A UTILIDADE DE CADA MATERIAL SOLICITADO PARA O DESENVOLVIMENTO DO PROJETO DE PESQUISA PROPOSTO.  "}]

{"sheet":"3-MCN","index":2,"n_rows":203,"n_cols":14,"rows_kept":203,"cut":false,"hidden":false,"merged":[[85,2,85,11],[84,2,84,11],[80,2,80,11],[81,2,81,11],[83,2,83,11],[183,1,183,13],[175,1,175,13],[181,1,181,13],[172,1,172,13],[173,1,173,13],[95,2,95,11],[96,2,96,11],[89,2,89,11],[86,2,86,11],[101,2,101,11],[94,2,94,11],[91,2,91,11],[87,2,87,11],[90,2,90,11],[97,2,97,11],[201,1,201,13],[82,2,82,11],[76,2,76,11],[78,2,78,11],[79,2,79,11],[104,14,105,14],[88,2,88,11],[98,2,98,11],[99,2,99,11],[100,2,100,11],[110,2,110,11],[112,2,112,11],[113,2,113,11],[114,2,114,11],[115,2,115,11],[116,2,116,11],[104,1,104,13],[93,2,93,11],[92,2,92,11],[108,1,109,1],[108,2,109,11],[108,12,109,12],[108,13,109,13],[102,2,102,11],[46,2,46,11],[47,2,47,11],[48,2,48,11],[49,2,49,11],[75,2,75,11],[70,2,70,11],[71,2,71,11],[51,2,51,11],[72,2,72,11],[73,2,73,11],[74,2,74,11],[67,2,67,11],[68,2,68,11],[69,2,69,11],[60,2,61,11],[63,2,63,11],[64,2,64,11],[65,2,65,11],[66,2,66,11],[189,1,189,13],[196,2,196,10],[196,11,196,12],[193,2,193,10],[182,1,182,13],[111,2,111,11],[179,1,179,13],[180,1,180,13],[178,1,178,13],[177,1,177,13],[184,1,184,13],[188,1,188,12],[141,2,141,11],[142,2,142,11],[144,2,144,11],[145,2,145,11],[146,2,146,11],[147,2,147,11],[148,2,148,11],[149,2,149,11],[198,2,198,10],[198,11,198,12],[193,11,193,12],[197,11,197,12],[194,2,194,10],[194,11,194,12],[195,2,195,10],[195,11,195,12],[18,2,18,11],[19,2,19,11],[197,2,197,10],[130,2,130,11],[131,2,131,11],[132,2,132,11],[133,2,133,11],[134,2,134,11],[150,2,150,11],[152,1,152,13],[135,2,135,11],[136,2,136,11],[137,2,137,11],[138,2,138,11],[139,2,139,11],[140,2,140,11],[199,1,199,10],[199,11,199,12],[37,2,37,11],[40,2,40,11],[39,2,39,11],[54,2,54,11],[53,2,53,11],[13,2,13,11],[29,2,29,11],[24,2,24,11],[25,2,25,11],[26,2,26,11],[27,2,27,11],[28,2,28,11],[15,2,15,11],[16,2,16,11],[17,2,17,11],[60,1,61,1],[60,12,61,12],[143,2,143,11],[126,2,126,11],[127,2,127,11],[128,2,128,11],[129,2,129,11],[7,4,7,13],[11,1,11,2],[11,3,11,6],[30,2,30,11],[31,2,31,11],[41,2,41,11],[35,2,35,11],[32,2,32,11],[14,2,14,11],[33,2,33,11],[21,2,21,11],[22,2,22,11],[23,2,23,11],[38,2,38,11],[9,10,11,13],[60,13,61,13],[36,2,36,11],[42,2,42,11],[34,2,34,11],[123,2,123,11],[124,2,124,11],[125,2,125,11],[9,1,9,2],[9,3,9,5],[52,2,52,11],[62,2,62,11],[56,1,56,13],[43,2,43,11],[20,2,20,11],[117,2,117,11],[118,2,118,11],[119,2,119,11],[120,2,120,11],[121,2,121,11],[122,2,122,11],[77,2,77,11],[50,2,50,11],[44,2,44,11],[45,2,45,11]]}
["MM"]
[]
[]
[]
[]
[null,"3- MATERIAL DE CONSUMO A SER ADQUIRIDO NO BRASIL"]
[]
[null,"NOME DO INTERESSADO:"]
[]
[7,"PROCESSO: ",null,null,null,null,null,null,null,null,"Chamada FAPESP-FCT 2017"]
[]
[null,"TOTAL:  ",null,{"$f":"IF(SUM(M15:M55,M63:M103,M111:M151)=0,\"\",SUM(M15:M55,M63:M103,M111:M151))","v":""}]
[]
[null,"item","descrição (somente 1 linha para cada item)",null,null,null,null,null,null,null,null,null,"custo do item ","FAPESP"]
[7]
[]
[]
[]
[]
[]
[]
[]
[]
[]
[]
[]
[]
[]
[]
[]
[]
[]
[7]
[7]
[7]
[7]
[7]
[7]
[7]
[7]
[7]
[]
[]
[]
[]
[]
[]
[]
[]
[]
[]
[7]
[7]
[7]
[7]
[7]
[7,"- JUSTIFIQUE EM ANEXO A UTILIDADE DE CADA MATERIAL SOLICITADO PARA O DESENVOLVIMENTO DO PROJETO DE PESQUISA"]
[null,{"$f":"'1-MPN'!B66","v":"FAPESP, MARÇO DE 2017"},null,null,null,null,null,null,null,null,null,null,null,1]
[]
[null,{"$f":"B6","v":"3- MATERIAL DE CONSUMO A SER ADQUIRIDO NO BRASIL"}]
[null,"item","descrição (somente 1 linha para cada item)",null,null,null,null,null,null,null,null,null,"custo do item ","FAPESP"]
[]
[7]
[]
[]
[]
[]
[]
[]
[]
[]
[]
[]
[]
[]
[]
[]
[]
[]
[]
[]
[]
[]
[]
[]
[]
[]
[]
[]
[]
[]
[]
[]
[]
[]
[]
[]
[]
[]
[]
[]
[]
[]
[]
[null,"- JUSTIFIQUE EM ANEXO A UTILIDADE DE CADA MATERIAL SOLICITADO PARA O DESENVOLVIMENTO DO PROJETO DE PESQUISA"]
[null,{"$f":"B58","v":"FAPESP, MARÇO DE 2017"},null,null,null,null,null,null,null,null,null,null,null,2]
[]
[null,{"$f":"B60","v":"3- MATERIAL DE CONSUMO A SER ADQUIRIDO NO BRASIL"}]
[null,"item","descrição (somente 1 linha para cada item)",null,null,null,null,null,null,null,null,null,"custo do item ","FAPESP"]
[]
[]
[]
[]
[]
[]
[]
[]
[]
[]
[]
[]
[]
[]
[]
[]
[]
[]
[]
[]
[]
[]
[]
[]
[]
[]
[]
[]
[]
[]
[]
[]
[]
[]
[]
[]
[]
[]
[]
[]
[]
[]
[]
[null,"- JUSTIFIQUE EM ANEXO A UTILIDADE DE CADA MATERIAL SOLICITADO PARA O DESENVOLVIMENTO DO PROJETO DE PESQUISA"]
[null,{"$f":"B106","v":"FAPESP, MARÇO DE 2017"},null,null,null,null,null,null,null,null,null,null,null,3]
[]
[]
[]
[]
[]
[]
[]
[]
[]
[]
[]
[]
[]
[null,"PARA IMPRIMIR A INSTRUÇÃO ABAIXO, SELECIONE A ÁREA A SER IMPRESSA"]
[null,"DIGITE \"CTRL\" P, E DEPOIS CLIQUE EM SELEÇÃO."]
[]
[]
[]
[null,"FORMULÁRIO 3 - INSTRUÇÕES PARA PREENCHIMENTO – LEIA ATENTAMENTE AS INSTRUÇÕES ABAIXO."]
[null,"MATERIAL DE CONSUMO A SER ADQUIRIDO NO BRASIL (MCN)"]
[]
[null,"NÃO SERÃO ACEITOS FORMULÁRIOS PREENCHIDOS EM DESACORDO COM ESTA INSTRUÇÃO"]
[]
[null,"- A FAPESP somente autoriza a aquisição de produtos para uso exclusivo na pesquisa/programa objeto desta solicitação, excluindo-se materiais de"]
[null,"   escritório, insumos computacionais, etc.  "]
[null,"- Não solicitar recursos sem especificar o que se pretende adquirir (Itens como \"diversos\", \"outros materiais\", etc., não serão considerados).  "]
[null,"- Os produtos devem ser agrupados por tipo, não havendo necessidade de detalhamento dos mesmos (Ver exemplo abaixo).  "]
[null,"- Coluna (item) - cada grupo de materiais  deve ser numerado seqüencialmente. Considere um item para cada grupo.  "]
[null,"- Coluna (decrição)- descreva o grupo de material que se pretende adquirir,como exemplificado abaixo. Toda a descrição deve ser feita em  PORTUGUÊS.  "]
[null,"- Coluna (custo do item) - custo total do material solicitado em cada item"]
[null,"- Coluna (FAPESP) - para uso exclusivo da FAPESP.  "]
[null," "]
[null," OBSERVAÇÕES"]
[]
[null,"1) Recomenda-se uma verificação de preços antes da solicitação, a fim de evitar alterações no decorrer do projeto e demoras indesejáveis."]
[null,"2) Justifique em anexo a utilidade de cada grupo de materiais solicitado para o desenvolvimento do projeto de pesquisa proposto.  "]
[]
[null," EXEMPLO "]
[]
[null,"item","descrição (somente 1 linha para cada item)",null,null,null,null,null,null,null,null,"custo do item",null,"FAPESP"]
[null,1,"Vidraria para laboratório",null,null,null,null,null,null,null,null,1000]
[null,2,"Reagentes",null,null,null,null,null,null,null,null,2000]
[null,3,"Tubos para centrífuga",null,null,null,null,null,null,null,null,800]
[null,4,"Material plástico descartável",null,null,null,null,null,null,null,null,500]
[null,5,"Material radioativo",null,null,null,null,null,null,null,null,2000]
[null,null,null,null,null,null,null,null,null,null,null,6300]
[]
[null,"- JUSTIFIQUE EM ANEXO A UTILIDADE DE CADA MATERIAL SOLICITADO PARA O DESENVOLVIMENTO DO PROJETO DE PESQUISA"]
[null,{"$f":"B154","v":"FAPESP, MARÇO DE 2017"}]

{"sheet":"4-MCI","index":3,"n_rows":201,"n_cols":22,"rows_kept":201,"cut":false,"hidden":false,"merged":[[19,12,20,12],[22,16,22,17],[24,16,24,17],[21,14,21,15],[22,14,22,15],[19,13,20,15],[19,16,20,17],[19,18,20,18],[25,14,25,15],[21,2,21,11],[197,1,197,15],[199,1,199,18],[55,16,55,17],[54,2,54,11],[54,16,54,17],[29,16,29,17],[31,2,31,11],[32,14,32,15],[35,16,35,17],[31,16,31,17],[33,14,33,15],[38,2,38,11],[38,16,38,17],[39,2,39,11],[39,16,39,17],[36,2,36,11],[36,16,36,17],[21,16,21,17],[106,16,106,17],[100,2,100,11],[100,14,100,15],[197,16,197,17],[196,13,196,15],[195,16,195,17],[194,13,194,15],[195,13,195,15],[1,16,1,18],[70,2,70,11],[70,16,70,17],[70,14,70,15],[71,2,71,11],[71,16,71,17],[71,14,71,15],[47,16,47,17],[48,16,48,17],[49,16,49,17],[50,16,50,17],[51,16,51,17],[60,1,60,18],[41,16,41,17],[42,16,42,17],[35,2,35,11],[23,2,23,11],[26,2,26,11],[26,16,26,17],[24,2,24,11],[24,14,24,15],[196,2,196,11],[196,16,196,17],[193,2,193,11],[192,2,192,11],[194,2,194,11],[194,16,194,17],[191,13,191,15],[111,16,111,18],[189,18,190,18],[162,1,162,18],[163,1,163,18],[193,16,193,17],[193,13,193,15],[192,13,192,15],[189,2,190,11],[189,1,190,1],[189,12,190,12],[189,13,190,15],[189,16,190,17],[192,16,192,17],[191,2,191,11],[191,16,191,17],[165,1,165,18],[195,2,195,11],[40,2,40,11],[37,2,37,11],[63,1,64,1],[63,2,64,11],[63,18,64,18],[63,13,64,15],[63,16,64,17],[43,16,43,17],[44,16,44,17],[45,16,45,17],[46,16,46,17],[56,16,56,17],[52,16,52,17],[53,16,53,17],[54,14,54,15],[37,16,37,17],[57,16,57,17],[58,16,58,17],[76,16,76,17],[72,2,72,11],[72,16,72,17],[72,14,72,15],[58,14,58,15],[65,14,65,15],[66,14,66,15],[68,2,68,11],[61,16,61,18],[69,2,69,11],[69,16,69,17],[69,14,69,15],[58,2,58,11],[65,2,65,11],[67,2,67,11],[67,16,67,17],[67,14,67,15],[68,16,68,17],[68,14,68,15],[65,16,65,17],[87,2,87,11],[87,16,87,17],[90,2,90,11],[90,14,90,15],[90,16,90,17],[91,2,91,11],[91,14,91,15],[80,14,80,15],[78,14,78,15],[80,16,80,17],[88,2,88,11],[88,14,88,15],[88,16,88,17],[85,16,85,17],[87,14,87,15],[80,2,80,11],[78,2,78,11],[83,14,83,15],[86,2,86,11],[86,16,86,17],[89,2,89,11],[89,14,89,15],[89,16,89,17],[91,16,91,17],[17,3,17,5],[29,2,29,11],[9,3,9,5],[81,2,81,11],[82,2,82,11],[73,2,73,11],[34,2,34,11],[55,14,55,15],[57,14,57,15],[37,14,37,15],[38,14,38,15],[39,14,39,15],[34,14,34,15],[36,14,36,15],[35,14,35,15],[73,14,73,15],[76,14,76,15],[77,2,77,11],[28,2,28,11],[27,2,27,11],[63,12,64,12],[66,2,66,11],[23,14,23,15],[77,14,77,15],[77,16,77,17],[74,2,74,11],[74,16,74,17],[74,14,74,15],[75,2,75,11],[19,1,20,1],[19,2,20,11],[25,2,25,11],[30,2,30,11],[22,2,22,11],[28,14,28,15],[29,14,29,15],[30,14,30,15],[31,14,31,15],[55,2,55,11],[57,2,57,11],[33,2,33,11],[33,16,33,17],[34,16,34,17],[32,2,32,11],[32,16,32,17],[75,16,75,17],[75,14,75,15],[76,2,76,11],[17,1,17,2],[40,16,40,17],[40,14,40,15],[26,14,26,15],[27,14,27,15],[79,14,79,15],[85,14,85,15],[79,2,79,11],[79,16,79,17],[81,14,81,15],[83,2,83,11],[85,2,85,11],[84,2,84,11],[82,16,82,17],[83,16,83,17],[84,14,84,15],[84,16,84,17],[28,16,28,17],[30,16,30,17],[73,16,73,17],[66,16,66,17],[23,16,23,17],[25,16,25,17],[27,16,27,17],[99,2,99,11],[100,16,100,17],[110,1,110,18],[105,2,105,11],[105,14,105,15],[105,16,105,17],[106,2,106,11],[106,14,106,15],[107,2,107,11],[107,14,107,15],[107,16,107,17],[99,14,99,15],[99,16,99,17],[101,2,101,11],[101,14,101,15],[101,16,101,17],[108,2,108,11],[108,16,108,17],[108,14,108,15],[94,16,94,17],[95,2,95,11],[95,14,95,15],[95,16,95,17],[96,2,96,11],[96,14,96,15],[98,2,98,11],[97,14,97,15],[97,16,97,17],[94,2,94,11],[96,16,96,17],[97,2,97,11],[9,14,11,18],[92,2,92,11],[92,14,92,15],[92,16,92,17],[93,2,93,11],[93,14,93,15],[93,16,93,17],[7,4,7,18],[104,2,104,11],[104,14,104,15],[104,16,104,17],[102,2,102,11],[102,14,102,15],[102,16,102,17],[103,2,103,11],[103,14,103,15],[103,16,103,17],[81,16,81,17],[86,14,86,15],[82,14,82,15],[78,16,78,17],[98,14,98,15],[98,16,98,17],[94,14,94,15]]}
[]
[]
[]
[]
[]
[null,"4- MATERIAL DE CONSUMO IMPORTADO"]
[]
[null,"NOME DO INTERESSADO:",null,null,null,null,null,null,null,null,null,null,null,null,null,null,null,null,null,7]
[]
[null,"PROCESSO:",null,null,null,null,null,null,null,null,null,null,null,null,"Chamada FAPESP-FCT 2017"]
[]
[null,"CÂMBIO (INFORME A SIGLA DA MOEDA E O VALOR DE SUA TAXA EM DÓLAR)"]
[]
[null,"MOEDA 1:","USD","TAXA:",1,null,null,"MOEDA 2:",null,"TAXA:",null,null,null,null,"MOEDA 3:",null,"TAXA:"]
[]
[null,"MOEDA 4:",null,"TAXA:",null,null,null,"MOEDA 5:",null,"TAXA:",null,null,null,null,"MOEDA 6:",null,"TAXA:"]
[]
[null,"TOTAL:",null,{"$f":"IF(SUM(Q22:R59,Q66:R109)=0,\"\",SUM(Q22:R59,Q66:R109))","v":""}]
[]
[null,"item","descrição (somente 1 linha para cada item)",null,null,null,null,null,null,null,null,null,"moeda de origem","custo do item moeda original",null,null,"custo do item US$",null,"FAPESP"]
[]
[null,null,null,null,null,null,null,null,null,null,null,null,null,null,null,null,{"$f":"IF(ISERROR(INDEX($V$22:$V$27,MATCH(M22,$U$22:$U$27,0))*O22),\"\",INDEX($V$22:$V$27,MATCH(M22,$U$22:$U$27,0))*O22)","v":""},null,null,null,{"$f":"IF($C$14=0,\"\",C$14)","v":"USD"},{"$f":"IF(E14=0,\"\",E14)","v":1}]
[null,null,null,null,null,null,null,null,null,null,null,null,null,null,null,null,{"$f":"IF(ISERROR(INDEX($V$22:$V$27,MATCH(M23,$U$22:$U$27,0))*O23),\"\",INDEX($V$22:$V$27,MATCH(M23,$U$22:$U$27,0))*O23)","v":""},null,null,null,{"$f":"IF($I$14=0,\"\",$I$14)","v":""},{"$f":"IF(K14=0,\"\",K14)","v":""}]
[null,null,null,null,null,null,null,null,null,null,null,null,null,null,null,null,"",null,null,null,{"$f":"IF($P$14=0,\"\",$P$14)","v":""},{"$f":"IF(R14=0,\"\",R14)","v":""}]
[null,null,null,null,null,null,null,null,null,null,null,null,null,null,null,null,"",null,null,null,{"$f":"IF($C$16=0,\"\",$C$16)","v":""},{"$f":"IF(E16=0,\"\",E16)","v":""}]
[null,null,null,null,null,null,null,null,null,null,null,null,null,null,null,null,"",null,null,null,{"$f":"IF(I16=0,\"\",I16)","v":""},{"$f":"IF(K16=0,\"\",K16)","v":""}]
[null,null,null,null,null,null,null,null,null,null,null,null,null,null,null,null,"",null,null,null,{"$f":"IF($P$16=0,\"\",$P$16)","v":""},{"$f":"IF(R16=0,\"\",R16)","v":""}]
[null,null,null,null,null,null,null,null,null,null,null,null,null,null,null,null,""]
[null,null,null,null,null,null,null,null,null,null,null,null,null,null,null,null,""]
[null,null,null,null,null,null,null,null,null,null,null,null,null,null,null,null,""]
[null,null,null,null,null,null,null,null,null,null,null,null,null,null,null,null,""]
[null,null,null,null,null,null,null,null,null,null,null,null,null,null,null,null,""]
[null,null,null,null,null,null,null,null,null,null,null,null,null,null,null,null,""]
[null,null,null,null,null,null,null,null,null,null,null,null,null,null,null,null,""]
[null,null,null,null,null,null,null,null,null,null,null,null,null,null,null,null,""]
[null,null,null,null,null,null,null,null,null,null,null,null,null,null,null,null,""]
[null,null,null,null,null,null,null,null,null,null,null,null,null,null,null,null,""]
[null,null,null,null,null,null,null,null,null,null,null,null,null,null,null,null,""]
[null,null,null,null,null,null,null,null,null,null,null,null,null,null,null,null,""]
[null,null,null,null,null,null,null,null,null,null,null,null,null,null,null,null,""]
[null,null,null,null,null,null,null,null,null,null,null,null,null,null,null,null,""]
[null,null,null,null,null,null,null,null,null,null,null,null,null,null,null,null,""]
[null,null,null,null,null,null,null,null,null,null,null,null,null,null,null,null,""]
[null,null,null,null,null,null,null,null,null,null,null,null,null,null,null,null,""]
[null,null,null,null,null,null,null,null,null,null,null,null,null,null,null,null,""]
[null,null,null,null,null,null,null,null,null,null,null,null,null,null,null,null,""]
[null,null,null,null,null,null,null,null,null,null,null,null,null,null,null,null,""]
[null,null,null,null,null,null,null,null,null,null,null,null,null,null,null,null,""]
[null,null,null,null,null,null,null,null,null,null,null,null,null,null,null,null,""]
[null,null,null,null,null,null,null,null,null,null,null,null,null,null,null,null,""]
[null,null,null,null,null,null,null,null,null,null,null,null,null,null,null,null,""]
[null,null,null,null,null,null,null,null,null,null,null,null,null,null,null,null,""]
[null,null,null,null,null,null,null,null,null,null,null,null,null,null,null,null,""]
[null,null,null,null,null,null,null,null,null,null,null,null,null,null,null,null,""]
[null,null,null,null,null,null,null,null,null,null,null,null,null,null,null,null,""]
[null,null,null,null,null,null,null,null,null,null,null,null,null,null,null,null,""]
[null,null,null,null,null,null,null,null,null,null,null,null,null,null,null,null,""]
[null,null,null,null,null,null,null,null,null,null,null,null,null,null,null,null,""]
[null,null,null,null,null,null,null,null,null,null,null,null,null,null,null,null,""]
[]
[null,"- JUSTIFIQUE EM ANEXO A UTILIDADE DE CADA MATERIAL SOLICITADO PARA O DESENVOLVIMENTO DO PROJETO DE PESQUISA"]
[null,{"$f":"'3-MCN'!B58","v":"FAPESP, MARÇO DE 2017"},null,null,null,null,null,null,null,null,null,null,null,null,null,null,1]
[null,{"$f":"B6","v":"4- MATERIAL DE CONSUMO IMPORTADO"}]
[null,"item","descrição (somente 1 linha para cada item)",null,null,null,null,null,null,null,null,null,"moeda de origem","custo do item moeda original",null,null,"custo do item US$",null,"FAPESP"]
[]
[null,null,null,null,null,null,null,null,null,null,null,null,null,null,null,null,{"$f":"IF(ISERROR(INDEX($V$22:$V$27,MATCH(M66,$U$22:$U$27,0))*O66),\"\",INDEX($V$22:$V$27,MATCH(M66,$U$22:$U$27,0))*O66)","v":""}]
[null,null,null,null,null,null,null,null,null,null,null,null,null,null,null,null,{"$f":"IF(ISERROR(INDEX($V$22:$V$27,MATCH(M67,$U$22:$U$27,0))*O67),\"\",INDEX($V$22:$V$27,MATCH(M67,$U$22:$U$27,0))*O67)","v":""}]
[null,null,null,null,null,null,null,null,null,null,null,null,null,null,null,null,""]
[null,null,null,null,null,null,null,null,null,null,null,null,null,null,null,null,""]
[null,null,null,null,null,null,null,null,null,null,null,null,null,null,null,null,""]
[null,null,null,null,null,null,null,null,null,null,null,null,null,null,null,null,""]
[null,null,null,null,null,null,null,null,null,null,null,null,null,null,null,null,""]
[null,null,null,null,null,null,null,null,null,null,null,null,null,null,null,null,""]
[null,null,null,null,null,null,null,null,null,null,null,null,null,null,null,null,""]
[null,null,null,null,null,null,null,null,null,null,null,null,null,null,null,null,""]
[null,null,null,null,null,null,null,null,null,null,null,null,null,null,null,null,""]
[null,null,null,null,null,null,null,null,null,null,null,null,null,null,null,null,""]
[null,null,null,null,null,null,null,null,null,null,null,null,null,null,null,null,""]
[null,null,null,null,null,null,null,null,null,null,null,null,null,null,null,null,""]
[null,null,null,null,null,null,null,null,null,null,null,null,null,null,null,null,""]
[null,null,null,null,null,null,null,null,null,null,null,null,null,null,null,null,""]
[null,null,null,null,null,null,null,null,null,null,null,null,null,null,null,null,""]
[null,null,null,null,null,null,null,null,null,null,null,null,null,null,null,null,""]
[null,null,null,null,null,null,null,null,null,null,null,null,null,null,null,null,""]
[null,null,null,null,null,null,null,null,null,null,null,null,null,null,null,null,""]
[null,null,null,null,null,null,null,null,null,null,null,null,null,null,null,null,""]
[null,null,null,null,null,null,null,null,null,null,null,null,null,null,null,null,""]
[null,null,null,null,null,null,null,null,null,null,null,null,null,null,null,null,""]
[null,null,null,null,null,null,null,null,null,null,null,null,null,null,null,null,""]
[null,null,null,null,null,null,null,null,null,null,null,null,null,null,null,null,""]
[null,null,null,null,null,null,null,null,null,null,null,null,null,null,null,null,""]
[null,null,null,null,null,null,null,null,null,null,null,null,null,null,null,null,""]
[null,null,null,null,null,null,null,null,null,null,null,null,null,null,null,null,""]
[null,null,null,null,null,null,null,null,null,null,null,null,null,null,null,null,""]
[null,null,null,null,null,null,null,null,null,null,null,null,null,null,null,null,""]
[null,null,null,null,null,null,null,null,null,null,null,null,null,null,null,null,""]
[null,null,null,null,null,null,null,null,null,null,null,null,null,null,null,null,""]
[null,null,null,null,null,null,null,null,null,null,null,null,null,null,null,null,""]
[null,null,null,null,null,null,null,null,null,null,null,null,null,null,null,null,""]
[null,null,null,null,null,null,null,null,null,null,null,null,null,null,null,null,""]
[null,null,null,null,null,null,null,null,null,null,null,null,null,null,null,null,""]
[null,null,null,null,null,null,null,null,null,null,null,null,null,null,null,null,""]
[null,null,null,null,null,null,null,null,null,null,null,null,null,null,null,null,""]
[null,null,null,null,null,null,null,null,null,null,null,null,null,null,null,null,""]
[null,null,null,null,null,null,null,null,null,null,null,null,null,null,null,null,""]
[null,null,null,null,null,null,null,null,null,null,null,null,null,null,null,null,""]
[null,null,null,null,null,null,null,null,null,null,null,null,null,null,null,null,""]
[null,null,null,null,null,null,null,null,null,null,null,null,null,null,null,null,""]
[null,null,null,null,null,null,null,null,null,null,null,null,null,null,null,null,""]
[]
[null,"- JUSTIFIQUE EM ANEXO A UTILIDADE DE CADA MATERIAL SOLICITADO PARA O DESENVOLVIMENTO DO PROJETO DE PESQUISA"]
[null,{"$f":"B62","v":"FAPESP, MARÇO DE 2017"},null,null,null,null,null,null,null,null,null,null,null,null,null,null,2]
[]
[]
[]
[]
[]
[]
[]
[]
[]
[]
[]
[]
[]
[]
[]
[]
[]
[]
[]
[]
[]
[]
[]
[]
[]
[]
[]
[]
[]
[]
[]
[]
[]
[]
[]
[]
[]
[]
[]
[]
[]
[]
[]
[]
[]
[null,"PARA IMPRIMIR A INSTRUÇÃO ABAIXO, SELECIONE A ÁREA A SER IMPRESSA"]
[null,"DIGITE \"CTRL\" P, E DEPOIS CLIQUE EM SELEÇÃO."]
[]
[]
[]
[null,"FORMULÁRIO 4 - INSTRUÇÕES PARA PREENCHIMENTO – LEIA ATENTAMENTE AS INSTRUÇÕES ABAIXO."]
[null,"MATERIAL DE CONSUMO IMPORTADO (MCI) "]
[]
[null,"NÃO SERÃO ACEITOS FORMULÁRIOS PREENCHIDOS EM DESACORDO COM ESTA INSTRUÇÃO"]
[]
[null,"- A FAPESP somente autoriza a aquisição de produtos para uso exclusivo na pesquisa/programa objeto desta solicitação, excluindo-se materiais de escritório, insumos"]
[null,"   computacionais, etc."]
[null,"- Não solicitar recursos sem especificar o que se pretende adquirir (itens como \"diversos\", \"outros materiais\", etc, não serão considerados)."]
[null,"- Os produtos devem ser agrupados por tipo, não havendo necessidade de detalhamento dos mesmos."]
[null,"- Coluna (item) -  cada grupo de materiais deve ser numerado sequencialmente. Considere um item para cada grupo."]
[null,"- Coluna (descrição) - descreva o grupo de material que se pretende adquirir. Descreva despesas cobradas pelo exportador (ex.: embalagem, documentação, etc)."]
[null,"   Toda a descrição deve ser feita em  PORTUGUÊS, (Ver exemplo abaixo). "]
[null,"- Coluna (moeda de origem) -  indique a moeda de origem, como fornecido no orçamento do exportador/representante autorizado.  "]
[null,"- Coluna (custo do item - moeda original) -  custo total do material solicitado em cada item a moeda original."]
[null,"- Coluna (custo do item US$) -  conversão automática para dólar americano, do valor informado na coluna anterior."]
[null,"- Coluna (FAPESP) - para uso exclusivo da FAPESP."]
[]
[null," OBSERVAÇÕES: "]
[null,"1) Todo o valor remetido ao exterior é deduzido dos recursos concedidos; "]
[null,"2) Justifique em anexo a utilidade de cada grupo de material solicitado para o desenvolvimento do projeto de pesquisa proposto."]
[]
[null,"EXEMPLO :"]
[]
[null,"CÂMBIO (DIGITE A SIGLA DA MOEDA E O VALOR DE SUA TAXA EM DÓLAR)"]
[]
[null,"MOEDA 1:","USD","TAXA:",1,null,null,"MOEDA 2:","DEM","TAXA:",1.83487,null,null,null,"MOEDA 3:","GBP","TAXA:",1.74]
[]
[null,"item","descrição (somente 1 linha para cada item)",null,null,null,null,null,null,null,null,null,"moeda de origem","custo do item moeda original",null,null,"custo do item US$",null,"FAPESP"]
[]
[null,1,"Vidraria, procedência alemã",null,null,null,null,null,null,null,null,null,"DEM",10000,null,null,{"$f":"N192*$K$188","v":18348.7}]
[null,"1a","Despesas com frete, embalagem, documentação",null,null,null,null,null,null,null,null,null,"DEM",{"$f":"N192-1234","v":8766},null,null,16084.47042]
[null,2,"Vidraria, procedência americana",null,null,null,null,null,null,null,null,null,"USD",{"$f":"N193-1234","v":7532},null,null,13820.24084]
[null,"2a","Despesas com frete, embalagem, documentação",null,null,null,null,null,null,null,null,null,"USD",{"$f":"N194-1234","v":6298},null,null,11556.011259999999]
[null,3,"Isótopos radiotivos, procedência inglesa",null,null,null,null,null,null,null,null,null,"GBP",{"$f":"N195-1234","v":5064},null,null,9291.7816800000001]
[null,"3a","Despesas com frete, embalagem, documentação",null,null,null,null,null,null,null,null,null,"GBP",{"$f":"N196-1234","v":3830},null,null,7027.5520999999999]
[null,null,null,null,null,null,null,null,null,null,null,null,null,null,null,null,{"$f":"SUM(Q192:R197)","v":76128.756300000008}]
[]
[null,"- JUSTIFIQUE EM ANEXO A UTILIDADE DE CADA MATERIAL SOLICITADO PARA O DESENVOLVIMENTO DO PROJETO DE PESQUISA"]
[null,{"$f":"B112","v":"FAPESP, MARÇO DE 2017"}]

{"sheet":"5-STB","index":4,"n_rows":204,"n_cols":16,"rows_kept":204,"cut":false,"hidden":false,"merged":[[22,4,22,12],[13,1,14,2],[13,3,14,3],[13,4,14,12],[23,1,23,2],[22,1,22,2],[28,4,28,12],[62,1,63,2],[13,14,14,14],[62,13,63,13],[62,14,63,14],[62,3,63,3],[62,4,63,12],[39,4,39,12],[40,1,40,2],[40,4,40,12],[46,1,46,2],[46,4,46,12],[44,4,44,12],[56,1,56,2],[55,1,55,2],[13,15,14,15],[43,4,43,12],[50,1,50,2],[50,4,50,12],[51,1,51,2],[13,13,14,13],[24,1,24,2],[33,1,33,2],[32,1,32,2],[18,1,18,2],[19,1,19,2],[19,4,19,12],[29,1,29,2],[28,1,28,2],[26,1,26,2],[24,4,24,12],[25,4,25,12],[26,4,26,12],[27,4,27,12],[41,1,41,2],[41,4,41,12],[47,4,47,12],[48,1,48,2],[48,4,48,12],[62,15,63,15],[15,1,15,2],[23,4,23,12],[31,4,31,12],[32,4,32,12],[34,1,34,2],[34,4,34,12],[42,1,42,2],[42,4,42,12],[43,1,43,2],[60,14,60,15],[36,1,36,2],[36,4,36,12],[37,1,37,2],[35,1,35,2],[35,4,35,12],[21,4,21,12],[20,1,20,2],[20,4,20,12],[21,1,21,2],[39,1,39,2],[47,1,47,2],[53,1,53,2],[53,4,53,12],[84,1,84,2],[86,1,86,2],[80,1,80,2],[80,4,80,12],[81,1,81,2],[81,4,81,12],[83,1,83,2],[64,4,64,12],[68,1,68,2],[69,1,69,2],[70,1,70,2],[69,4,69,12],[70,4,70,12],[65,1,65,2],[85,1,85,2],[85,4,85,12],[66,4,66,12],[76,4,76,12],[86,4,86,12],[72,1,72,2],[66,1,66,2],[64,1,64,2],[90,1,90,2],[93,1,93,2],[94,1,94,2],[101,4,101,12],[102,4,102,12],[103,1,103,2],[91,1,91,2],[95,4,95,12],[103,4,103,12],[101,1,101,2],[95,1,95,2],[96,1,96,2],[94,4,94,12],[93,4,93,12],[100,4,100,12],[96,4,96,12],[97,4,97,12],[98,4,98,12],[99,4,99,12],[99,1,99,2],[98,1,98,2],[100,1,100,2],[92,1,92,2],[97,1,97,2],[68,4,68,12],[191,4,191,12],[189,15,190,15],[189,13,190,13],[189,1,190,2],[189,3,190,3],[189,4,190,12],[189,14,190,14],[104,4,104,12],[105,4,105,12],[108,1,108,2],[104,1,104,2],[105,1,105,2],[106,1,106,2],[169,1,169,15],[170,1,170,15],[111,14,111,15],[106,4,106,12],[107,4,107,12],[87,1,87,2],[87,4,87,12],[89,1,89,2],[88,1,88,2],[88,4,88,12],[15,4,15,12],[16,4,16,12],[17,4,17,12],[16,1,16,2],[17,1,17,2],[18,4,18,12],[194,1,194,3],[191,1,191,2],[192,1,192,2],[193,1,193,2],[172,1,172,15],[192,4,192,12],[193,4,193,12],[83,4,83,12],[51,4,51,12],[52,1,52,2],[74,4,74,12],[108,4,108,12],[89,4,89,12],[90,4,90,12],[91,4,91,12],[92,4,92,12],[84,4,84,12],[78,4,78,12],[107,1,107,2],[55,4,55,12],[56,4,56,12],[65,4,65,12],[57,4,57,12],[76,1,76,2],[71,4,71,12],[72,4,72,12],[73,1,73,2],[75,1,75,2],[73,4,73,12],[82,4,82,12],[75,4,75,12],[77,1,77,2],[77,4,77,12],[78,1,78,2],[57,1,57,2],[67,1,67,2],[67,4,67,12],[79,1,79,2],[79,4,79,12],[82,1,82,2],[74,1,74,2],[71,1,71,2],[9,13,11,15],[7,5,7,15],[11,3,11,5],[52,4,52,12],[44,1,44,2],[45,1,45,2],[45,4,45,12],[49,4,49,12],[102,1,102,2],[9,4,9,6],[29,4,29,12],[30,4,30,12],[33,4,33,12],[37,4,37,12],[38,1,38,2],[38,4,38,12],[54,1,54,2],[54,4,54,12],[27,1,27,2],[25,1,25,2],[31,1,31,2],[30,1,30,2],[49,1,49,2],[11,1,11,2]]}
[]
[]
[]
[]
[]
[null,"5- SERVIÇOS DE TERCEIROS NO BRASIL"]
[]
[null,"NOME DO INTERESSADO:"]
[]
[null,"PROCESSO: ",null,null,null,null,null,null,null,null,null,null,null,"Chamada FAPESP-FCT 2017"]
[]
[null,"TOTAL:",null,{"$f":"IF(SUM(O16:O58,O65:O109)=0,\"\",SUM(O16:O58,O65:O109))","v":""}]
[]
[null,"item",null,"quant.","descrição (somente 1 linha para cada item)",null,null,null,null,null,null,null,null,"preço unitário","custo do item","FAPESP"]
[]
[null,null,null,null,null,null,null,null,null,null,null,null,null,null,{"$f":"IF(N16*D16=0,\"\",N16*D16)","v":""}]
[null,null,null,null,null,null,null,null,null,null,null,null,null,null,""]
[null,null,null,null,null,null,null,null,null,null,null,null,null,null,""]
[null,null,null,null,null,null,null,null,null,null,null,null,null,null,""]
[null,null,null,null,null,null,null,null,null,null,null,null,null,null,""]
[null,null,null,null,null,null,null,null,null,null,null,null,null,null,""]
[null,null,null,null,null,null,null,null,null,null,null,null,null,null,""]
[null,null,null,null,null,null,null,null,null,null,null,null,null,null,""]
[null,null,null,null,null,null,null,null,null,null,null,null,null,null,""]
[null,null,null,null,null,null,null,null,null,null,null,null,null,null,""]
[null,null,null,null,null,null,null,null,null,null,null,null,null,null,""]
[null,null,null,null,null,null,null,null,null,null,null,null,null,null,""]
[null,null,null,null,null,null,null,null,null,null,null,null,null,null,""]
[null,null,null,null,null,null,null,null,null,null,null,null,null,null,""]
[null,null,null,null,null,null,null,null,null,null,null,null,null,null,""]
[null,null,null,null,null,null,null,null,null,null,null,null,null,null,""]
[null,null,null,null,null,null,null,null,null,null,null,null,null,null,""]
[null,null,null,null,null,null,null,null,null,null,null,null,null,null,""]
[null,null,null,null,null,null,null,null,null,null,null,null,null,null,""]
[null,null,null,null,null,null,null,null,null,null,null,null,null,null,""]
[null,null,null,null,null,null,null,null,null,null,null,null,null,null,""]
[null,null,null,null,null,null,null,null,null,null,null,null,null,null,""]
[null,null,null,null,null,null,null,null,null,null,null,null,null,null,""]
[null,null,null,null,null,null,null,null,null,null,null,null,null,null,""]
[null,null,null,null,null,null,null,null,null,null,null,null,null,null,""]
[null,null,null,null,null,null,null,null,null,null,null,null,null,null,""]
[null,null,null,null,null,null,null,null,null,null,null,null,null,null,""]
[null,null,null,null,null,null,null,null,null,null,null,null,null,null,""]
[null,null,null,null,null,null,null,null,null,null,null,null,null,null,""]
[null,null,null,null,null,null,null,null,null,null,null,null,null,null,""]
[null,null,null,null,null,null,null,null,null,null,null,null,null,null,""]
[null,null,null,null,null,null,null,null,null,null,null,null,null,null,""]
[null,null,null,null,null,null,null,null,null,null,null,null,null,null,""]
[null,null,null,null,null,null,null,null,null,null,null,null,null,null,""]
[null,null,null,null,null,null,null,null,null,null,null,null,null,null,""]
[null,null,null,null,null,null,null,null,null,null,null,null,null,null,""]
[null,null,null,null,null,null,null,null,null,null,null,null,null,null,""]
[null,null,null,null,null,null,null,null,null,null,null,null,null,null,""]
[null,null,null,null,null,null,null,null,null,null,null,null,null,null,""]
[null,null,null,null,null,null,null,null,null,null,null,null,null,null,""]
[null,null,null,null,null,null,null,null,null,null,null,null,null,null,""]
[null,null,null,null,null,null,null,null,null,null,null,null,null,null,""]
[null,null,null,null,null,null,null,null,null,null,null,null,null,null,""]
[]
[null,"- JUSTIFIQUE EM ANEXO A UTILIDADE DOS SERVIÇOS SOLICITADOS PARA O DESENVOLVIMENTO DO PROJETO DE PESQUISA"]
[null,{"$f":"'1-MPN'!B66","v":"FAPESP, MARÇO DE 2017"},null,null,null,null,null,null,null,null,null,null,null,null,1]
[null,{"$f":"B6","v":"5- SERVIÇOS DE TERCEIROS NO BRASIL"}]
[null,"Item",null,"Quant.","descrição (somente 1 linha para cada item)",null,null,null,null,null,null,null,null,"preço unitário","custo do item","FAPESP"]
[]
[null,null,null,null,null,null,null,null,null,null,null,null,null,null,{"$f":"IF(N65*D65=0,\"\",N65*D65)","v":""}]
[null,null,null,null,null,null,null,null,null,null,null,null,null,null,""]
[null,null,null,null,null,null,null,null,null,null,null,null,null,null,""]
[null,null,null,null,null,null,null,null,null,null,null,null,null,null,""]
[null,null,null,null,null,null,null,null,null,null,null,null,null,null,""]
[null,null,null,null,null,null,null,null,null,null,null,null,null,null,""]
[null,null,null,null,null,null,null,null,null,null,null,null,null,null,""]
[null,null,null,null,null,null,null,null,null,null,null,null,null,null,""]
[null,null,null,null,null,null,null,null,null,null,null,null,null,null,""]
[null,null,null,null,null,null,null,null,null,null,null,null,null,null,""]
[null,null,null,null,null,null,null,null,null,null,null,null,null,null,""]
[null,null,null,null,null,null,null,null,null,null,null,null,null,null,""]
[null,null,null,null,null,null,null,null,null,null,null,null,null,null,""]
[null,null,null,null,null,null,null,null,null,null,null,null,null,null,""]
[null,null,null,null,null,null,null,null,null,null,null,null,null,null,""]
[null,null,null,null,null,null,null,null,null,null,null,null,null,null,""]
[null,null,null,null,null,null,null,null,null,null,null,null,null,null,""]
[null,null,null,null,null,null,null,null,null,null,null,null,null,null,""]
[null,null,null,null,null,null,null,null,null,null,null,null,null,null,""]
[null,null,null,null,null,null,null,null,null,null,null,null,null,null,""]
[null,null,null,null,null,null,null,null,null,null,null,null,null,null,""]
[null,null,null,null,null,null,null,null,null,null,null,null,null,null,""]
[null,null,null,null,null,null,null,null,null,null,null,null,null,null,""]
[null,null,null,null,null,null,null,null,null,null,null,null,null,null,""]
[null,null,null,null,null,null,null,null,null,null,null,null,null,null,""]
[null,null,null,null,null,null,null,null,null,null,null,null,null,null,""]
[null,null,null,null,null,null,null,null,null,null,null,null,null,null,""]
[null,null,null,null,null,null,null,null,null,null,null,null,null,null,""]
[null,null,null,null,null,null,null,null,null,null,null,null,null,null,""]
[null,null,null,null,null,null,null,null,null,null,null,null,null,null,""]
[null,null,null,null,null,null,null,null,null,null,null,null,null,null,""]
[null,null,null,null,null,null,null,null,null,null,null,null,null,null,""]
[null,null,null,null,null,null,null,null,null,null,null,null,null,null,""]
[null,null,null,null,null,null,null,null,null,null,null,null,null,null,""]
[null,null,null,null,null,null,null,null,null,null,null,null,null,null,""]
[null,null,null,null,null,null,null,null,null,null,null,null,null,null,""]
[null,null,null,null,null,null,null,null,null,null,null,null,null,null,""]
[null,null,null,null,null,null,null,null,null,null,null,null,null,null,""]
[null,null,null,null,null,null,null,null,null,null,null,null,null,null,""]
[null,null,null,null,null,null,null,null,null,null,null,null,null,null,""]
[null,null,null,null,null,null,null,null,null,null,null,null,null,null,""]
[null,null,null,null,null,null,null,null,null,null,null,null,null,null,""]
[null,null,null,null,null,null,null,null,null,null,null,null,null,null,""]
[null,null,null,null,null,null,null,null,null,null,null,null,null,null,""]
[null,null,null,null,null,null,null,null,null,null,null,null,null,null,""]
[]
[null,"- JUSTIFIQUE EM ANEXO A UTILIDADE DOS SERVIÇOS SOLICITADOS PARA O DESENVOLVIMENTO DO PROJETO DE PESQUISA"]
[null,{"$f":"B61","v":"FAPESP, MARÇO DE 2017"},null,null,null,null,null,null,null,null,null,null,null,null,2]
[]
[]
[]
[]
[]
[]
[]
[]
[]
[]
[]
[]
[]
[]
[]
[]
[]
[]
[]
[]
[]
[]
[]
[]
[]
[]
[]
[]
[]
[]
[]
[]
[]
[]
[]
[]
[]
[]
[]
[]
[]
[]
[]
[]
[]
[]
[]
[]
[]
[]
[]
[]
[null,"PARA IMPRIMIR A INSTRUÇÃO ABAIXO, SELECIONE A ÁREA A SER IMPRESSA"]
[null,"DIGITE \"CTRL\" P, E DEPOIS CLIQUE EM SELEÇÃO."]
[]
[]
[]
[null,"FORMULÁRIO 5 - INSTRUÇÕES PARA PREENCHIMENTO – LEIA ATENTAMENTE AS INSTRUÇÕES ABAIXO."]
[null,"SERVIÇOS DE TERCEIROS NO BRASIL (STB)"]
[]
[null,"NÃO SERÃO ACEITOS FORMULÁRIOS PREENCHIDOS EM DESACORDO COM ESTA INSTRUÇÃO"]
[]
[null," - Somente são analisadas solicitações de recursos para serviços especializados e de curta duração. Não incluir salários de qualquer natureza, bolsas no País ou no exterior,"]
[null,"   serviços administrativos ou contratos para manutenção de equipamentos."]
[null," - Coluna (item) - cada tipo de serviço deve ser numerado seqüencialmente. (ver exemplo abaixo)."]
[null," - Coluna (quant.) - quantidade de cada serviço, quando possível  "]
[null," - Coluna (descrição) - descrição detalhada do serviço e executor a ser contratado.  Toda a descrição deve ser feita em  PORTUGUÊS.  "]
[null," - Coluna (preço unitário) - valor unitário em moeda nacional.  "]
[null," - Coluna (custo do item)  - custo total de cada item solicitado, em moeda nacional. (a totalização desta coluna é automática).  "]
[null," - Coluna (FAPESP) - para uso exclusivo da FAPESP.  "]
[]
[null," OBSERVAÇÕES: "]
[null,"1) Para a contratação de recursos humanos de apoio à pesquisa, ver  Programa FAPESP de Capacitação Técnica.  "]
[null,"2) Justifique em anexo a utilidade de cada um dos serviços solicitados para o desenvolvimento do projeto de pesquisa proposto.  "]
[null," "]
[null," EXEMPLO  "]
[]
[null,"item",null,"quant.","descrição (somente 1 linha para cada item)",null,null,null,null,null,null,null,null,"preço unitário","custo do item","FAPESP"]
[]
[null,1,null,1,"Ensaios em campo e em casas de vegetação para obtenção das sementes a serem realizadas pelo instituto.",null,null,null,null,null,null,null,null,4000,{"$f":"N192*D192","v":4000}]
[null,2,null,30,"Horas de uso da microssonda do Instituto ..........",null,null,null,null,null,null,null,null,240,{"$f":"N193*D193","v":7200}]
[null,3,null,1,"Conserto do evaporador, a ser realizado pela empresa .......",null,null,null,null,null,null,null,null,600,{"$f":"N194*D194","v":600}]
[null,null,null,null,null,null,null,null,null,null,null,null,null,"TOTAL",{"$f":"SUM(O192:O194)","v":11800}]
[]
[null,"- JUSTIFIQUE EM ANEXO A UTILIDADE DOS SERVIÇOS SOLICITADOS PARA O DESENVOLVIMENTO DO PROJETO DE PESQUISA"]
[]
[]
[]
[]
[]
[]
[null,{"$f":"B112","v":"FAPESP, MARÇO DE 2017"}]

{"sheet":"6-STE","index":5,"n_rows":195,"n_cols":19,"rows_kept":195,"cut":false,"hidden":false,"merged":[[188,3,188,9],[84,3,84,9],[85,3,85,9],[86,3,86,9],[91,3,91,9],[79,3,79,9],[193,1,193,15],[191,12,191,13],[187,12,187,13],[187,3,187,9],[190,3,190,9],[191,8,191,11],[189,3,189,9],[188,12,188,13],[189,12,189,13],[190,12,190,13],[185,1,186,1],[185,2,186,2],[185,3,186,9],[108,12,108,13],[92,12,92,13],[185,15,186,15],[86,12,86,13],[87,3,87,9],[46,3,46,9],[38,12,38,13],[73,12,73,13],[70,3,70,9],[101,3,101,9],[101,12,101,13],[52,3,52,9],[39,3,39,9],[39,12,39,13],[40,3,40,9],[40,12,40,13],[48,12,48,13],[49,12,49,13],[43,3,43,9],[44,3,44,9],[46,12,46,13],[77,3,77,9],[74,3,74,9],[69,3,69,9],[96,3,96,9],[72,3,72,9],[97,12,97,13],[76,3,76,9],[83,3,83,9],[20,10,21,10],[23,12,23,13],[24,3,24,9],[24,12,24,13],[25,3,25,9],[25,12,25,13],[66,12,66,13],[66,3,66,9],[56,3,56,9],[56,12,56,13],[35,12,35,13],[36,3,36,9],[57,12,57,13],[55,12,55,13],[50,3,50,9],[47,3,47,9],[51,12,51,13],[50,12,50,13],[49,3,49,9],[48,3,48,9],[47,12,47,13],[52,12,52,13],[37,12,37,13],[37,3,37,9],[33,12,33,13],[34,3,34,9],[34,12,34,13],[35,3,35,9],[26,3,26,9],[26,12,26,13],[33,3,33,9],[22,3,22,9],[22,12,22,13],[23,3,23,9],[63,1,64,1],[63,2,64,2],[63,3,64,9],[63,10,64,10],[63,11,64,11],[75,3,75,9],[73,3,73,9],[9,1,9,2],[9,3,9,5],[28,3,28,9],[29,3,29,9],[71,3,71,9],[67,3,67,9],[55,3,55,9],[57,3,57,9],[58,3,58,9],[45,3,45,9],[68,3,68,9],[32,3,32,9],[27,3,27,9],[17,1,17,2],[20,1,21,1],[20,2,21,2],[20,3,21,9],[79,12,79,13],[98,3,98,9],[98,12,98,13],[99,12,99,13],[97,3,97,9],[100,3,100,9],[82,3,82,9],[103,3,103,9],[104,3,104,9],[102,3,102,9],[92,3,92,9],[93,3,93,9],[20,11,21,11],[20,12,21,13],[44,12,44,13],[43,12,43,13],[38,3,38,9],[76,12,76,13],[78,3,78,9],[78,12,78,13],[77,12,77,13],[28,12,28,13],[29,12,29,13],[74,12,74,13],[75,12,75,13],[67,12,67,13],[58,12,58,13],[65,12,65,13],[54,12,54,13],[45,12,45,13],[69,12,69,13],[70,12,70,13],[71,12,71,13],[72,12,72,13],[32,12,32,13],[27,12,27,13],[84,12,84,13],[109,3,109,9],[109,12,109,13],[161,1,161,14],[106,3,106,9],[106,12,106,13],[160,1,160,14],[185,14,186,14],[185,12,186,13],[185,11,186,11],[185,10,186,10],[104,12,104,13],[102,12,102,13],[103,12,103,13],[93,12,93,13],[163,1,163,15],[91,12,91,13],[99,3,99,9],[31,12,31,13],[105,12,105,13],[108,3,108,9],[107,3,107,9],[107,12,107,13],[105,3,105,9],[96,12,96,13],[90,3,90,9],[90,12,90,13],[41,3,41,9],[41,12,41,13],[42,3,42,9],[42,12,42,13],[80,3,80,9],[80,12,80,13],[81,3,81,9],[81,12,81,13],[94,3,94,9],[94,12,94,13],[95,3,95,9],[95,12,95,13],[100,12,100,13],[82,12,82,13],[83,12,83,13],[9,12,11,15],[7,5,7,15],[17,3,17,5],[87,12,87,13],[88,3,88,9],[88,12,88,13],[89,3,89,9],[89,12,89,13],[54,3,54,9],[53,3,53,9],[65,3,65,9],[51,3,51,9],[68,12,68,13],[20,15,21,15],[53,12,53,13],[63,12,64,13],[63,14,64,14],[63,15,64,15],[85,12,85,13],[20,14,21,14],[36,12,36,13],[30,3,30,9],[30,12,30,13],[31,3,31,9]]}
[]
[]
[]
[]
[null,null,null,null,null,null,null,null,null,null,null,null,""]
[null,"6- SERVIÇOS DE TERCEIROS NO EXTERIOR"]
[]
[null,"NOME DO INTERESSADO:"]
[]
[null,"PROCESSO:",null,null,null,null,null,null,null,null,null,null,"Chamada FAPESP-FCT 2017"]
[]
[]
[null,"CÂMBIO (DIGITE A SIGLA DA MOEDA E O VALOR DE SUA TAXA EM DÓLAR)"]
[null,"MOEDA 1:","USD","TAXA:",1,null,"MOEDA 2:",null,"TAXA:",null,null,"MOEDA 3:",null,"TAXA:"]
[]
[null,"MOEDA 4:",null,"TAXA:",null,null,"MOEDA 5:",null,"TAXA:",null,null,"MOEDA 6:",null,"TAXA:"]
[]
[null,"TOTAL",null,{"$f":"IF(SUM(O23:O59,O66:O110)=0,\"\",SUM(O23:O59,O66:O110))","v":""}]
[]
[]
[null,"item","quant.","descrição (somente 1 linha para cada item)",null,null,null,null,null,null,"moeda de origem","preço unitário","custo do item moeda original",null,"custo do item US$","FAPESP",null,"SE(ÉERROS(ÍNDICE($U$43:$U$48;CORRESP(K22;$T$43:$T$48;0))*M22);\"\";ÍNDICE($U$43:$U$48;CORRESP(K22;$T$43:$T$48;0))*M22)"]
[]
[null,null,null,null,null,null,null,null,null,null,null,null,{"$f":"IF(C23*L23=0,\"\",C23*L23)","v":""},null,{"$f":"IF(ISERROR(INDEX($S$23:$S$28,MATCH(K23,$R$23:$R$28,0))*M23),\"\",INDEX($S$23:$S$28,MATCH(K23,$R$23:$R$28,0))*M23)","v":""},null,null,{"$f":"IF($C$14=0,\"\",$C$14)","v":"USD"},{"$f":"$E$14","v":1}]
[null,null,null,null,null,null,null,null,null,null,null,null,{"$f":"IF(C24*L24=0,\"\",C24*L24)","v":""},null,{"$f":"IF(ISERROR(INDEX($S$23:$S$28,MATCH(K24,$R$23:$R$28,0))*M24),\"\",INDEX($S$23:$S$28,MATCH(K24,$R$23:$R$28,0))*M24)","v":""},null,null,{"$f":"IF($H$14=0,\"\",$H$14)","v":""},{"$f":"$J$14","v":0}]
[null,null,null,null,null,null,null,null,null,null,null,null,"",null,"",null,null,{"$f":"IF($M$14=0,\"\",$M$14)","v":""},{"$f":"$O$14","v":0}]
[null,null,null,null,null,null,null,null,null,null,null,null,"",null,"",null,null,{"$f":"IF($C$16=0,\"\",$C$16)","v":""},{"$f":"$E$16","v":0}]
[null,null,null,null,null,null,null,null,null,null,null,null,"",null,"",null,null,{"$f":"IF($H$16=0,\"\")","v":""},{"$f":"$J$16","v":0}]
[null,null,null,null,null,null,null,null,null,null,null,null,"",null,"",null,null,{"$f":"IF($M$16=0,\"\",$M$16)","v":""},{"$f":"$O$16","v":0}]
[null,null,null,null,null,null,null,null,null,null,null,null,"",null,""]
[null,null,null,null,null,null,null,null,null,null,null,null,"",null,""]
[null,null,null,null,null,null,null,null,null,null,null,null,"",null,""]
[null,null,null,null,null,null,null,null,null,null,null,null,"",null,""]
[null,null,null,null,null,null,null,null,null,null,null,null,"",null,""]
[null,null,null,null,null,null,null,null,null,null,null,null,"",null,""]
[null,null,null,null,null,null,null,null,null,null,null,null,"",null,""]
[null,null,null,null,null,null,null,null,null,null,null,null,"",null,""]
[null,null,null,null,null,null,null,null,null,null,null,null,"",null,""]
[null,null,null,null,null,null,null,null,null,null,null,null,"",null,""]
[null,null,null,null,null,null,null,null,null,null,null,null,"",null,""]
[null,null,null,null,null,null,null,null,null,null,null,null,"",null,""]
[null,null,null,null,null,null,null,null,null,null,null,null,"",null,""]
[null,null,null,null,null,null,null,null,null,null,null,null,"",null,""]
[null,null,null,null,null,null,null,null,null,null,null,null,"",null,""]
[null,null,null,null,null,null,null,null,null,null,null,null,"",null,""]
[null,null,null,null,null,null,null,null,null,null,null,null,"",null,""]
[null,null,null,null,null,null,null,null,null,null,null,null,"",null,""]
[null,null,null,null,null,null,null,null,null,null,null,null,"",null,""]
[null,null,null,null,null,null,null,null,null,null,null,null,"",null,""]
[null,null,null,null,null,null,null,null,null,null,null,null,"",null,""]
[null,null,null,null,null,null,null,null,null,null,null,null,"",null,""]
[null,null,null,null,null,null,null,null,null,null,null,null,"",null,""]
[null,null,null,null,null,null,null,null,null,null,null,null,"",null,""]
[null,null,null,null,null,null,null,null,null,null,null,null,"",null,""]
[null,null,null,null,null,null,null,null,null,null,null,null,"",null,""]
[null,null,null,null,null,null,null,null,null,null,null,null,"",null,""]
[null,null,null,null,null,null,null,null,null,null,null,null,"",null,""]
[null,null,null,null,null,null,null,null,null,null,null,null,"",null,""]
[null,null,null,null,null,null,null,null,null,null,null,null,"",null,""]
[null,null,null,null,null,null,null,null,null,null,null,null,"",null,""]
[]
[null,"- JUSTIFIQUE EM ANEXO A UTILIDADE DOS SERVIÇOS  SOLICITADOS PARA O DESENVOLVIMENTO DO PROJETO DE PESQUISA"]
[null,{"$f":"'5-STB'!B112","v":"FAPESP, MARÇO DE 2017"},null,null,null,null,null,null,null,null,null,null,null,null,null,1]
[null,{"$f":"B6","v":"6- SERVIÇOS DE TERCEIROS NO EXTERIOR"}]
[null,"item","quant.","descrição (somente 1 linha para cada item)",null,null,null,null,null,null,"moeda de origem","preço unitário","custo do item moeda original",null,"custo do item US$","FAPESP"]
[]
[null,null,null,null,null,null,null,null,null,null,null,null,{"$f":"IF(C66*L66=0,\"\",C66*L66)","v":""},null,{"$f":"IF(ISERROR(INDEX($S$23:$S$28,MATCH(K66,$R$23:$R$28,0))*M66),\"\",INDEX($S$23:$S$28,MATCH(K66,$R$23:$R$28,0))*M66)","v":""}]
[null,null,null,null,null,null,null,null,null,null,null,null,"",null,{"$f":"IF(ISERROR(INDEX($S$23:$S$28,MATCH(K67,$R$23:$R$28,0))*M67),\"\",INDEX($S$23:$S$28,MATCH(K67,$R$23:$R$28,0))*M67)","v":""}]
[null,null,null,null,null,null,null,null,null,null,null,null,"",null,""]
[null,null,null,null,null,null,null,null,null,null,null,null,"",null,""]
[null,null,null,null,null,null,null,null,null,null,null,null,"",null,""]
[null,null,null,null,null,null,null,null,null,null,null,null,"",null,""]
[null,null,null,null,null,null,null,null,null,null,null,null,"",null,""]
[null,null,null,null,null,null,null,null,null,null,null,null,"",null,""]
[null,null,null,null,null,null,null,null,null,null,null,null,"",null,""]
[null,null,null,null,null,null,null,null,null,null,null,null,"",null,""]
[null,null,null,null,null,null,null,null,null,null,null,null,"",null,""]
[null,null,null,null,null,null,null,null,null,null,null,null,"",null,""]
[null,null,null,null,null,null,null,null,null,null,null,null,"",null,""]
[null,null,null,null,null,null,null,null,null,null,null,null,"",null,""]
[null,null,null,null,null,null,null,null,null,null,null,null,"",null,""]
[null,null,null,null,null,null,null,null,null,null,null,null,"",null,""]
[null,null,null,null,null,null,null,null,null,null,null,null,"",null,""]
[null,null,null,null,null,null,null,null,null,null,null,null,"",null,""]
[null,null,null,null,null,null,null,null,null,null,null,null,"",null,""]
[null,null,null,null,null,null,null,null,null,null,null,null,"",null,""]
[null,null,null,null,null,null,null,null,null,null,null,null,"",null,""]
[null,null,null,null,null,null,null,null,null,null,null,null,"",null,""]
[null,null,null,null,null,null,null,null,null,null,null,null,"",null,""]
[null,null,null,null,null,null,null,null,null,null,null,null,"",null,""]
[null,null,null,null,null,null,null,null,null,null,null,null,"",null,""]
[null,null,null,null,null,null,null,null,null,null,null,null,"",null,""]
[null,null,null,null,null,null,null,null,null,null,null,null,"",null,""]
[null,null,null,null,null,null,null,null,null,null,null,null,"",null,""]
[null,null,null,null,null,null,null,null,null,null,null,null,"",null,""]
[null,null,null,null,null,null,null,null,null,null,null,null,"",null,""]
[null,null,null,null,null,null,null,null,null,null,null,null,"",null,""]
[null,null,null,null,null,null,null,null,null,null,null,null,"",null,""]
[null,null,null,null,null,null,null,null,null,null,null,null,"",null,""]
[null,null,null,null,null,null,null,null,null,null,null,null,"",null,""]
[null,null,null,null,null,null,null,null,null,null,null,null,"",null,""]
[null,null,null,null,null,null,null,null,null,null,null,null,"",null,""]
[null,null,null,null,null,null,null,null,null,null,null,null,"",null,""]
[null,null,null,null,null,null,null,null,null,null,null,null,"",null,""]
[null,null,null,null,null,null,null,null,null,null,null,null,"",null,""]
[null,null,null,null,null,null,null,null,null,null,null,null,"",null,""]
[null,null,null,null,null,null,null,null,null,null,null,null,"",null,""]
[null,null,null,null,null,null,null,null,null,null,null,null,"",null,""]
[null,null,null,null,null,null,null,null,null,null,null,null,"",null,""]
[null,null,null,null,null,null,null,null,null,null,null,null,"",null,""]
[null,null,null,null,null,null,null,null,null,null,null,null,"",null,""]
[]
[null,"- JUSTIFIQUE EM ANEXO A UTILIDADE DOS SERVIÇOS  SOLICITADOS PARA O DESENVOLVIMENTO DO PROJETO DE PESQUISA"]
[null,{"$f":"B62","v":"FAPESP, MARÇO DE 2017"},null,null,null,null,null,null,null,null,null,null,null,null,null,2]
[]
[]
[]
[]
[]
[]
[]
[]
[]
[]
[]
[]
[]
[]
[]
[]
[]
[]
[]
[]
[]
[]
[]
[]
[]
[]
[]
[]
[]
[]
[]
[]
[]
[]
[]
[]
[]
[]
[]
[]
[]
[]
[null,"PARA IMPRIMIR A INSTRUÇÃO ABAIXO, SELECIONE A ÁREA A SER IMPRESSA"]
[null,"DIGITE \"CTRL\" P, E DEPOIS CLIQUE EM SELEÇÃO."]
[]
[]
[]
[null,"FORMULÁRIO 6 - INSTRUÇÕES PARA PREENCHIMENTO – LEIA ATENTAMENTE AS INSTRUÇÕES ABAIXO."]
[null,"SERVIÇOS DE TERCEIROS A SEREM CONTRATADOS NO EXTERIOR (STE)"]
[]
[null,"NÃO SERÃO ACEITOS FORMULÁRIOS PREENCHIDOS EM DESACORDO COM ESTA INSTRUÇÃO"]
[null,"- Somente são analisadas solicitações de recursos para serviços especializados e de curta duração. Não incluir salários de qualquer natureza, bolsas no País ou no exterior,"]
[null,"  serviços administrativos ou contratos  para manutenção de equipamentos. "]
[null,"- Coluna (item) - cada tipo de serviço deve ser numerado seqüencialmente. (Ver exemplo abaixo). "]
[null,"- Coluna (quant.) - quantidade de cada serviço, quando possível. "]
[null,"- Coluna (descrição) - descrição detalhada do serviço e executor a ser contratado. Descreva despesas cobradas pelo executor (ex.: embalagem, documentação, etc), "]
[null,"  toda a descrição  deve ser feita em  PORTUGUÊS, (ver exemplo abaixo). "]
[null,"- Coluna (moeda de origem) - indique a moeda de origem. "]
[null,"- Coluna (preço do item) - valor unitário na moeda de origem (indicar moeda na coluna anterior). "]
[null,"- Coluna (custo do item - moeda original) - custo total, na moeda de origem,  de cada item solicitado. "]
[null,"- Coluna (custo do item - US$) -  conversão automática para o dólar americano, do valor lançado na Coluna custo do item. "]
[null,"- Coluna (FAPESP) - para uso exclusivo da FAPESP "]
[null," OBSERVAÇÕES: "]
[null,"1) Para a contratação de recursos humanos de apoio à pesquisa, ver Programa FAPESP de Capacitação Técnica;  "]
[null,"2) Justifique em anexo a utilidade de cada um dos serviços solicitados para o desenvolvimento do projeto de pesquisa proposto;  "]
[null,"3) Todo o valor remetido ao exterior é deduzido dos recursos concedidos. "]
[null,"EXEMPLO "]
[]
[null,"CÂMBIO (DIGITE A SIGLA DA MOEDA E O VALOR DE SUA TAXA EM DÓLAR)"]
[]
[null,"MOEDA 1:","USD","TAXA:",1,null,"MOEDA 2:","EUR","TAXA",1.24,null,"MOEDA 3:","GBP","TAXA:",1.78]
[]
[null,"item","quant.","descrição (somente 1 linha para cada item)",null,null,null,null,null,null,"moeda de origem","preço unitário","custo do item moeda original",null,"custo do item US$","FAPESP"]
[null,null,null,null,null,null,null,null,null,null,null,null,null,null,null,null,null,{"$f":"R23","v":"USD"},{"$f":"$E$14","v":1}]
[null,1,1,"Reparo de equipamento a ser feito pela empresa... Na Alemanha",null,null,null,null,null,null,"USD",1200,{"$f":"C188*L188","v":1200},null,{"$f":"IF(M188<>0,INDEX($S$187:$S$190,MATCH(K188,$R$187:$R$190,0))*M188,\"\")","v":1200},null,null,"GBP",{"$f":"O184","v":1.78}]
[null,"1a",1,"Despesas com frete, embalagem, documentação",null,null,null,null,null,null,"EUR",240,{"$f":"C189*L189","v":240},null,{"$f":"M189*J184","v":297.60000000000002},null,null,"EUR",{"$f":"J184","v":1.24}]
[null,2,1,"Análise de amostras de ... a  serem realizadas pelo Laboratório, ... na Inglaterra",null,null,null,null,null,null,"GBP",456,{"$f":"C190*L190","v":456},null,{"$f":"IF(M190<>0,INDEX($S$187:$S$190,MATCH(K190,$R$187:$R$190,0))*M190,\"\")","v":811.68000000000006},null,null,{"$f":"R26","v":""}]
[null,"2a",1,"Despesas com frete, embalagem, documentação",null,null,null,null,null,null,"GBP",45,{"$f":"C191*L191","v":45},null,{"$f":"IF(M191<>0,INDEX($S$187:$S$190,MATCH(K191,$R$187:$R$190,0))*M191,\"\")","v":80.099999999999994},null,null,""]
[null,null,null,null,null,null,null,null,null,null,null,null,"TOTAL",null,{"$f":"SUM(O188:O191)","v":2389.3799999999997},null,null,""]
[]
[null,"- JUSTIFIQUE EM ANEXO A UTILIDADE DOS SERVIÇOS  SOLICITADOS PARA O DESENVOLVIMENTO DO PROJETO DE PESQUISA"]
[null,{"$f":"B113","v":"FAPESP, MARÇO DE 2017"}]

{"sheet":"7-TRAN","index":6,"n_rows":196,"n_cols":243,"rows_kept":196,"cut":false,"hidden":false,"merged":[[18,4,18,13],[17,1,17,2],[18,1,18,2],[7,5,7,16],[15,1,15,2],[16,1,16,2],[20,1,20,2],[20,4,20,13],[23,1,23,2],[19,1,19,2],[19,4,19,13],[12,1,12,2],[12,3,12,6],[9,14,12,16],[50,4,50,13],[27,1,27,2],[27,4,27,13],[28,1,28,2],[9,4,9,6],[14,1,14,2],[14,4,14,13],[15,4,15,13],[16,4,16,13],[17,4,17,13],[26,1,26,2],[26,4,26,13],[21,1,21,2],[22,1,22,2],[21,4,21,13],[22,4,22,13],[23,4,23,13],[42,1,42,2],[42,4,42,13],[43,1,43,2],[43,4,43,13],[38,1,38,2],[38,4,38,13],[39,1,39,2],[51,4,51,13],[47,1,47,2],[47,4,47,13],[48,1,48,2],[48,4,48,13],[49,1,49,2],[49,4,49,13],[50,1,50,2],[24,4,24,13],[25,4,25,13],[51,1,51,2],[25,1,25,2],[24,1,24,2],[28,4,28,13],[29,1,29,2],[29,4,29,13],[30,1,30,2],[30,4,30,13],[31,1,31,2],[31,4,31,13],[36,1,36,2],[36,4,36,13],[41,1,41,2],[41,4,41,13],[78,1,78,2],[78,4,78,13],[79,1,79,2],[84,1,84,2],[84,4,84,13],[71,4,71,13],[72,1,72,2],[69,4,69,13],[70,1,70,2],[79,4,79,13],[74,1,74,2],[74,4,74,13],[76,4,76,13],[71,1,71,2],[75,1,75,2],[75,4,75,13],[76,1,76,2],[187,1,187,2],[188,1,188,2],[189,1,189,2],[187,4,187,13],[110,1,110,4],[167,1,167,16],[169,1,169,16],[166,1,166,16],[190,1,190,2],[191,1,191,2],[192,1,192,2],[188,4,188,13],[189,4,189,13],[190,4,190,13],[191,4,191,13],[53,1,53,2],[57,4,57,13],[57,1,57,2],[55,4,55,13],[54,1,54,2],[65,1,65,2],[64,1,64,2],[64,4,64,13],[63,4,63,13],[95,1,95,2],[95,4,95,13],[93,1,93,2],[93,4,93,13],[94,1,94,2],[94,4,94,13],[73,4,73,13],[70,4,70,13],[67,1,67,2],[52,4,52,13],[53,4,53,13],[54,4,54,13],[55,1,55,2],[56,1,56,2],[56,4,56,13],[60,1,60,4],[52,1,52,2],[92,1,92,2],[92,4,92,13],[59,1,59,16],[89,4,89,13],[90,1,90,2],[90,4,90,13],[91,1,91,2],[91,4,91,13],[66,1,66,2],[66,4,66,13],[89,1,89,2],[68,1,68,2],[65,4,65,13],[63,1,63,2],[72,4,72,13],[73,1,73,2],[67,4,67,13],[68,4,68,13],[69,1,69,2],[32,4,32,13],[45,1,45,2],[45,4,45,13],[46,1,46,2],[46,4,46,13],[85,1,85,2],[77,1,77,2],[77,4,77,13],[82,1,82,2],[82,4,82,13],[37,1,37,2],[37,4,37,13],[32,1,32,2],[44,1,44,2],[44,4,44,13],[33,1,33,2],[33,4,33,13],[34,1,34,2],[34,4,34,13],[35,1,35,2],[35,4,35,13],[96,4,96,13],[97,1,97,2],[88,1,88,2],[88,4,88,13],[85,4,85,13],[80,4,80,13],[83,4,83,13],[83,1,83,2],[81,1,81,2],[81,4,81,13],[80,1,80,2],[86,1,86,2],[86,4,86,13],[87,1,87,2],[87,4,87,13],[97,4,97,13],[98,1,98,2],[98,4,98,13],[39,4,39,13],[40,1,40,2],[40,4,40,13],[107,1,107,2],[107,4,107,13],[101,1,101,2],[101,4,101,13],[102,1,102,2],[102,4,102,13],[103,1,103,2],[103,4,103,13],[104,1,104,2],[104,4,104,13],[99,1,99,2],[99,4,99,13],[100,1,100,2],[100,4,100,13],[106,1,106,2],[106,4,106,13],[105,1,105,2],[105,4,105,13],[96,1,96,2]]}
[]
[]
[]
[]
[]
[null,"7- DESPESAS DE TRANSPORTE"]
[]
[null,"NOME DO INTERESSADO:"]
[]
[null,"PROCESSO: ",null,null,null,null,null,null,null,null,null,null,null,null,"Chamada FAPESP-FCT 2017"]
[]
[]
[null,"TOTAL:",null,{"$f":"IF(SUM(P16:P58:P65:P108)=0,\"\",SUM(P16:P58:P65:P108))","v":""}]
[]
[null,"item",null,"quant.","descrição (somente 1 linha para cada item)",null,null,null,null,null,null,null,null,null,"preço unitário","custo do item","FAPESP"]
[null,null,null,null,null,null,null,null,null,null,null,null,null,null,null,{"$f":"IF(O16*D16=0,\"\",O16*D16)","v":""}]
[null,null,null,null,null,null,null,null,null,null,null,null,null,null,null,""]
[null,null,null,null,null,null,null,null,null,null,null,null,null,null,null,""]
[null,null,null,null,null,null,null,null,null,null,null,null,null,null,null,""]
[null,null,null,null,null,null,null,null,null,null,null,null,null,null,null,""]
[null,null,null,null,null,null,null,null,null,null,null,null,null,null,null,""]
[null,null,null,null,null,null,null,null,null,null,null,null,null,null,null,""]
[null,null,null,null,null,null,null,null,null,null,null,null,null,null,null,""]
[null,null,null,null,null,null,null,null,null,null,null,null,null,null,null,""]
[null,null,null,null,null,null,null,null,null,null,null,null,null,null,null,""]
[null,null,null,null,null,null,null,null,null,null,null,null,null,null,null,""]
[null,null,null,null,null,null,null,null,null,null,null,null,null,null,null,""]
[null,null,null,null,null,null,null,null,null,null,null,null,null,null,null,""]
[null,null,null,null,null,null,null,null,null,null,null,null,null,null,null,{"$f":"IF(O29*D29=0,\"\",O29*D29)","v":""}]
[null,null,null,null,null,null,null,null,null,null,null,null,null,null,null,""]
[null,null,null,null,null,null,null,null,null,null,null,null,null,null,null,""]
[null,null,null,null,null,null,null,null,null,null,null,null,null,null,null,""]
[null,null,null,null,null,null,null,null,null,null,null,null,null,null,null,""]
[null,null,null,null,null,null,null,null,null,null,null,null,null,null,null,""]
[null,null,null,null,null,null,null,null,null,null,null,null,null,null,null,""]
[null,null,null,null,null,null,null,null,null,null,null,null,null,null,null,""]
[null,null,null,null,null,null,null,null,null,null,null,null,null,null,null,""]
[null,null,null,null,null,null,null,null,null,null,null,null,null,null,null,""]
[null,null,null,null,null,null,null,null,null,null,null,null,null,null,null,""]
[null,null,null,null,null,null,null,null,null,null,null,null,null,null,null,{"$f":"IF(O40*D40=0,\"\",O40*D40)","v":""}]
[null,null,null,null,null,null,null,null,null,null,null,null,null,null,null,{"$f":"IF(O41*D41=0,\"\",O41*D41)","v":""}]
[null,null,null,null,null,null,null,null,null,null,null,null,null,null,null,""]
[null,null,null,null,null,null,null,null,null,null,null,null,null,null,null,""]
[null,null,null,null,null,null,null,null,null,null,null,null,null,null,null,""]
[null,null,null,null,null,null,null,null,null,null,null,null,null,null,null,""]
[null,null,null,null,null,null,null,null,null,null,null,null,null,null,null,""]
[null,null,null,null,null,null,null,null,null,null,null,null,null,null,null,""]
[null,null,null,null,null,null,null,null,null,null,null,null,null,null,null,""]
[null,null,null,null,null,null,null,null,null,null,null,null,null,null,null,""]
[null,null,null,null,null,null,null,null,null,null,null,null,null,null,null,""]
[null,null,null,null,null,null,null,null,null,null,null,null,null,null,null,""]
[null,null,null,null,null,null,null,null,null,null,null,null,null,null,null,{"$f":"IF(O52*D52=0,\"\",O52*D52)","v":""}]
[null,null,null,null,null,null,null,null,null,null,null,null,null,null,null,""]
[null,null,null,null,null,null,null,null,null,null,null,null,null,null,null,""]
[null,null,null,null,null,null,null,null,null,null,null,null,null,null,null,""]
[null,null,null,null,null,null,null,null,null,null,null,null,null,null,null,""]
[null,null,null,null,null,null,null,null,null,null,null,null,null,null,null,""]
[null,null,null,null,null,null,null,null,null,null,null,null,null,null,null,""]
[]
[null,"- JUSTIFIQUE EM ANEXO A UTILIDADE DE CADA ITEM SOLICITADO PARA O DESENVOLVIMENTO DO PROJETO DE PESQUISA"]
[null,{"$f":"'1-MPN'!B66","v":"FAPESP, MARÇO DE 2017"},null,null,null,null,null,null,null,null,null,null,null,null,null,null,1]
[]
[null,{"$f":"B6","v":"7- DESPESAS DE TRANSPORTE"}]
[null,"item",null,"quant.","descrição (somente 1 linha para cada item)",null,null,null,null,null,null,null,null,null,"preço unitário","custo do item","FAPESP"]
[null,null,null,null,null,null,null,null,null,null,null,null,null,null,null,{"$f":"IF(O65*D65=0,\"\",O65*D65)","v":""}]
[null,null,null,null,null,null,null,null,null,null,null,null,null,null,null,{"$f":"IF(O66*D66=0,\"\",O66*D66)","v":""}]
[null,null,null,null,null,null,null,null,null,null,null,null,null,null,null,""]
[null,null,null,null,null,null,null,null,null,null,null,null,null,null,null,""]
[null,null,null,null,null,null,null,null,null,null,null,null,null,null,null,""]
[null,null,null,null,null,null,null,null,null,null,null,null,null,null,null,""]
[null,null,null,null,null,null,null,null,null,null,null,null,null,null,null,""]
[null,null,null,null,null,null,null,null,null,null,null,null,null,null,null,{"$f":"IF(O72*D72=0,\"\",O72*D72)","v":""}]
[null,null,null,null,null,null,null,null,null,null,null,null,null,null,null,""]
[null,null,null,null,null,null,null,null,null,null,null,null,null,null,null,""]
[null,null,null,null,null,null,null,null,null,null,null,null,null,null,null,""]
[null,null,null,null,null,null,null,null,null,null,null,null,null,null,null,""]
[null,null,null,null,null,null,null,null,null,null,null,null,null,null,null,""]
[null,null,null,null,null,null,null,null,null,null,null,null,null,null,null,""]
[null,null,null,null,null,null,null,null,null,null,null,null,null,null,null,""]
[null,null,null,null,null,null,null,null,null,null,null,null,null,null,null,""]
[null,null,null,null,null,null,null,null,null,null,null,null,null,null,null,""]
[null,null,null,null,null,null,null,null,null,null,null,null,null,null,null,""]
[null,null,null,null,null,null,null,null,null,null,null,null,null,null,null,""]
[null,null,null,null,null,null,null,null,null,null,null,null,null,null,null,""]
[null,null,null,null,null,null,null,null,null,null,null,null,null,null,null,""]
[null,null,null,null,null,null,null,null,null,null,null,null,null,null,null,""]
[null,null,null,null,null,null,null,null,null,null,null,null,null,null,null,{"$f":"IF(O87*D87=0,\"\",O87*D87)","v":""}]
[null,null,null,null,null,null,null,null,null,null,null,null,null,null,null,{"$f":"IF(O88*D88=0,\"\",O88*D88)","v":""}]
[null,null,null,null,null,null,null,null,null,null,null,null,null,null,null,""]
[null,null,null,null,null,null,null,null,null,null,null,null,null,null,null,""]
[null,null,null,null,null,null,null,null,null,null,null,null,null,null,null,""]
[null,null,null,null,null,null,null,null,null,null,null,null,null,null,null,""]
[null,null,null,null,null,null,null,null,null,null,null,null,null,null,null,""]
[null,null,null,null,null,null,null,null,null,null,null,null,null,null,null,""]
[null,null,null,null,null,null,null,null,null,null,null,null,null,null,null,""]
[null,null,null,null,null,null,null,null,null,null,null,null,null,null,null,""]
[null,null,null,null,null,null,null,null,null,null,null,null,null,null,null,""]
[null,null,null,null,null,null,null,null,null,null,null,null,null,null,null,""]
[null,null,null,null,null,null,null,null,null,null,null,null,null,null,null,""]
[null,null,null,null,null,null,null,null,null,null,null,null,null,null,null,""]
[null,null,null,null,null,null,null,null,null,null,null,null,null,null,null,""]
[null,null,null,null,null,null,null,null,null,null,null,null,null,null,null,""]
[null,null,null,null,null,null,null,null,null,null,null,null,null,null,null,""]
[null,null,null,null,null,null,null,null,null,null,null,null,null,null,null,""]
[null,null,null,null,null,null,null,null,null,null,null,null,null,null,null,""]
[null,null,null,null,null,null,null,null,null,null,null,null,null,null,null,""]
[null,null,null,null,null,null,null,null,null,null,null,null,null,null,null,""]
[null,null,null,null,null,null,null,null,null,null,null,null,null,null,null,""]
[]
[null,"- JUSTIFIQUE EM ANEXO A UTILIDADE DE CADA ITEM SOLICITADO PARA O DESENVOLVIMENTO DO PROJETO DE PESQUISA"]
[null,{"$f":"B61","v":"FAPESP, MARÇO DE 2017"},null,null,null,null,null,null,null,null,null,null,null,null,null,null,2]
[]
[]
[]
[]
[]
[]
[]
[]
[]
[]
[]
[]
[]
[]
[]
[]
[]
[]
[]
[]
[]
[]
[]
[]
[]
[]
[]
[]
[]
[]
[]
[]
[]
[]
[]
[]
[]
[]
[]
[]
[]
[]
[]
[]
[]
[]
[]
[]
[]
[]
[null,"PARA IMPRIMIR A INSTRUÇÃO ABAIXO, SELECIONE A ÁREA A SER IMPRESSA"]
[null,"DIGITE \"CTRL\" P, E DEPOIS CLIQUE EM SELEÇÃO."]
[]
[]
[]
[null,"FORMULÁRIO 7 - INSTRUÇÕES PARA PREENCHIMENTO – LEIA ATENTAMENTE AS INSTRUÇÕES ABAIXO."]
[null,"DESPESAS DE TRANSPORTE (DET)"]
[]
[null,"NÃO SERÃO ACEITOS FORMULÁRIOS PREENCHIDOS EM DESACORDO COM ESTA INSTRUÇÃO"]
[]
[null,"- Apresente somente orçamento de recursos necessários para a realização de pesquisa de campo, passagens, combustível, etc., para transporte de pessoas."]
[null,"- Inclua percurso, meio de transporte e nome do usuário dos recursos. Transporte de bens, são considerados Serviços de Terceiros.  "]
[null,"- Coluna (item) - cada viagem deve ser numerada seqüencialmente (ver exemplo abaixo).  "]
[null,"- Coluna (quant.) - quantidade de viagens a serem realizadas em um mesmo percurso, por uma mesma pessoa.  "]
[null,"- Coluna (descrição) - descreva o percurso a ser realizado, o meio de transporte a ser utilizado e indique quem realizará a viagem."]
[null,"- Coluna (preço unitário) - valor unitário em moeda nacional.  "]
[null,"- Coluna (custo do item) - custo total das viagens solicitadas em cada item, em moeda nacional. (a totalização desta coluna é automática)."]
[null,"- Coluna (FAPESP) - para uso exclusivo da FAPESP.  "]
[null," OBSERVAÇÕES:"]
[null,"1) Auxílios para a vinda de pesquisador visitante, realização de estágios, participação em reunião, etc., devem ser solicitados em processo separado, nas modalidades "]
[null,"    específicas para cada finalidade e de acordo com as regras em vigor."]
[null,"2) Para a contratação de recursos humanos de apoio à pesquisa, ver Programa FAPESP de Capacitação Técnica.  "]
[null,"3) Justifique em anexo a utilidade de cada item solicitado para o desenvolvimento do projeto de pesquisa proposto. "]
[null," EXEMPLO"]
[]
[]
[null,"item",null,"quant.","descrição (somente 1 linha para cada item)",null,null,null,null,null,null,null,null,null,"preço unitário","custo do item","FAPESP"]
[null,1,null,1,"Aluguel de ônibus, para o percurso São Carlos/São Paulo/São Carlos (Aux.Org.)",null,null,null,null,null,null,null,null,null,500,{"$f":"(O189*D189)","v":500},null,null,null,null,null,null,null,null,null,null,null,null,null,null,null,null,null,null,null,null,null,null,null,null,null,null,null,null,null,null,null,null,null,null,null,null,null,null,null,null,null,null,null,null,null,null,null,null,null,null,null,null,null,null,null,null,null,null,null,null,null,null,null,null,null,null,null,null,null,null,null,null,null,null,null,null,null,null,null,null,null,null,null,null,null,null,null,null,null,null,null,null,null,null,null,null,null,null,null,null,null,null,null,null,null,null,null,null,null,null,null,null,null,null,null,null,null,null,null,null,null,null,null,null,null,null,null,null,null,null,null,null,null,null,null,null,null,null,null,null,null,null,null,null,null,null,null,null,null,null,null,null,null,null,null,null,null,null,null,null,null,null,null,null,null,null,null,null,null,null,null,null,null,null,null,null,null,null,null,null,null,null,null,null,null,null,null,null,null,null,null,null,null,null,null,null,null,null,null,null,null,null,null,null,null,null,null,null,null,null,null,null,null,null,null,null,null,null,null,null,null,null,null,null,null,{"$f":"#REF!","v":{"$error":"#REF!"}},{"$f":"IF(IH189<>0,IH189,\"\")","v":{"$error":"#REF!"}}]
[null,2,null,2,"Passagens aéreas SP/Rio de Janeiro/SP a serem utilizadas por João da Silva, em pesquisa de campo.",null,null,null,null,null,null,null,null,null,200,{"$f":"(O190*D190)","v":400},null,null,null,null,null,null,null,null,null,null,null,null,null,null,null,null,null,null,null,null,null,null,null,null,null,null,null,null,null,null,null,null,null,null,null,null,null,null,null,null,null,null,null,null,null,null,null,null,null,null,null,null,null,null,null,null,null,null,null,null,null,null,null,null,null,null,null,null,null,null,null,null,null,null,null,null,null,null,null,null,null,null,null,null,null,null,null,null,null,null,null,null,null,null,null,null,null,null,null,null,null,null,null,null,null,null,null,null,null,null,null,null,null,null,null,null,null,null,null,null,null,null,null,null,null,null,null,null,null,null,null,null,null,null,null,null,null,null,null,null,null,null,null,null,null,null,null,null,null,null,null,null,null,null,null,null,null,null,null,null,null,null,null,null,null,null,null,null,null,null,null,null,null,null,null,null,null,null,null,null,null,null,null,null,null,null,null,null,null,null,null,null,null,null,null,null,null,null,null,null,null,null,null,null,null,null,null,null,null,null,null,null,null,null,null,null,null,null,null,null,null,null,null,null,null,{"$f":"#REF!","v":{"$error":"#REF!"}},{"$f":"IF(IH190<>0,IH190,\"\")","v":{"$error":"#REF!"}}]
[null,3,null,1,"Passagem aérea New York/SP/New York-palestrante Joseph Smith (Aux.Org.) ",null,null,null,null,null,null,null,null,null,2000,{"$f":"(O191*D191)","v":2000},null,null,null,null,null,null,null,null,null,null,null,null,null,null,null,null,null,null,null,null,null,null,null,null,null,null,null,null,null,null,null,null,null,null,null,null,null,null,null,null,null,null,null,null,null,null,null,null,null,null,null,null,null,null,null,null,null,null,null,null,null,null,null,null,null,null,null,null,null,null,null,null,null,null,null,null,null,null,null,null,null,null,null,null,null,null,null,null,null,null,null,null,null,null,null,null,null,null,null,null,null,null,null,null,null,null,null,null,null,null,null,null,null,null,null,null,null,null,null,null,null,null,null,null,null,null,null,null,null,null,null,null,null,null,null,null,null,null,null,null,null,null,null,null,null,null,null,null,null,null,null,null,null,null,null,null,null,null,null,null,null,null,null,null,null,null,null,null,null,null,null,null,null,null,null,null,null,null,null,null,null,null,null,null,null,null,null,null,null,null,null,null,null,null,null,null,null,null,null,null,null,null,null,null,null,null,null,null,null,null,null,null,null,null,null,null,null,null,null,null,null,null,null,null,null,{"$f":"#REF!","v":{"$error":"#REF!"}},{"$f":"IF(IH191<>0,IH191,\"\")","v":{"$error":"#REF!"}}]
[null,4,null,1,"Passagem aérea New York/SP/New York – palestrante John Thompson (Aux.Org.)",null,null,null,null,null,null,null,null,null,2000,{"$f":"(O192*D192)","v":2000},null,null,null,null,null,null,null,null,null,null,null,null,null,null,null,null,null,null,null,null,null,null,null,null,null,null,null,null,null,null,null,null,null,null,null,null,null,null,null,null,null,null,null,null,null,null,null,null,null,null,null,null,null,null,null,null,null,null,null,null,null,null,null,null,null,null,null,null,null,null,null,null,null,null,null,null,null,null,null,null,null,null,null,null,null,null,null,null,null,null,null,null,null,null,null,null,null,null,null,null,null,null,null,null,null,null,null,null,null,null,null,null,null,null,null,null,null,null,null,null,null,null,null,null,null,null,null,null,null,null,null,null,null,null,null,null,null,null,null,null,null,null,null,null,null,null,null,null,null,null,null,null,null,null,null,null,null,null,null,null,null,null,null,null,null,null,null,null,null,null,null,null,null,null,null,null,null,null,null,null,null,null,null,null,null,null,null,null,null,null,null,null,null,null,null,null,null,null,null,null,null,null,null,null,null,null,null,null,null,null,null,null,null,null,null,null,null,null,null,null,null,null,null,null,null,{"$f":"#REF!","v":{"$error":"#REF!"}},{"$f":"IF(IH192<>0,IH192,\"\")","v":{"$error":"#REF!"}}]
[null,null,null,null,null,null,null,null,null,null,null,null,null,null,"TOTAL",{"$f":"SUM(P189:Q192)","v":4900},null,null,null,null,null,null,null,null,null,null,null,null,null,null,null,null,null,null,null,null,null,null,null,null,null,null,null,null,null,null,null,null,null,null,null,null,null,null,null,null,null,null,null,null,null,null,null,null,null,null,null,null,null,null,null,null,null,null,null,null,null,null,null,null,null,null,null,null,null,null,null,null,null,null,null,null,null,null,null,null,null,null,null,null,null,null,null,null,null,null,null,null,null,null,null,null,null,null,null,null,null,null,null,null,null,null,null,null,null,null,null,null,null,null,null,null,null,null,null,null,null,null,null,null,null,null,null,null,null,null,null,null,null,null,null,null,null,null,null,null,null,null,null,null,null,null,null,null,null,null,null,null,null,null,null,null,null,null,null,null,null,null,null,null,null,null,null,null,null,null,null,null,null,null,null,null,null,null,null,null,null,null,null,null,null,null,null,null,null,null,null,null,null,null,null,null,null,null,null,null,null,null,null,null,null,null,null,null,null,null,null,null,null,null,null,null,null,null,null,null,null,null,null,null,null,{"$f":"IF(IG193<>0,IG193,\"\")","v":""}]
[]
[null,"- JUSTIFIQUE EM ANEXO A UTILIDADE DE CADA ITEM SOLICITADO PARA O DESENVOLVIMENTO DO PROJETO DE PESQUISA"]
[null,{"$f":"B111","v":"FAPESP, MARÇO DE 2017"}]

{"sheet":"8-DIP-DIE","index":7,"n_rows":194,"n_cols":240,"rows_kept":194,"cut":false,"hidden":false,"merged":[[186,1,186,2],[187,1,187,2],[68,3,68,11],[67,3,67,11],[48,3,48,11],[50,3,50,11],[49,3,49,11],[96,3,96,11],[100,3,100,11],[167,1,167,16],[187,4,187,11],[97,3,97,11],[91,3,91,11],[92,3,92,11],[188,1,188,2],[29,3,29,11],[63,3,63,11],[64,3,64,11],[65,3,65,11],[42,3,42,11],[11,7,11,9],[11,3,11,5],[56,3,56,11],[14,3,14,11],[73,3,73,11],[74,3,74,11],[75,3,75,11],[99,3,99,11],[87,3,87,11],[88,3,88,11],[72,3,72,11],[102,3,102,11],[93,3,93,11],[94,3,94,11],[98,3,98,11],[95,3,95,11],[66,3,66,11],[85,3,85,11],[192,1,192,16],[22,3,22,11],[24,3,24,11],[16,3,16,11],[17,3,17,11],[18,3,18,11],[36,3,36,11],[37,3,37,11],[38,3,38,11],[39,3,39,11],[40,3,40,11],[41,3,41,11],[20,3,20,11],[21,3,21,11],[33,3,33,11],[34,3,34,11],[35,3,35,11],[19,3,19,11],[32,3,32,11],[69,3,69,11],[58,1,58,16],[89,3,89,11],[84,3,84,11],[86,3,86,11],[1,14,1,16],[15,3,15,11],[31,3,31,11],[52,3,52,11],[53,3,53,11],[62,3,62,11],[54,3,54,11],[30,3,30,11],[11,1,11,2],[13,3,13,11],[25,3,25,11],[26,3,26,11],[43,3,43,11],[44,3,44,11],[45,3,45,11],[46,3,46,11],[47,3,47,11],[55,3,55,11],[27,3,27,11],[28,3,28,11],[9,14,11,16],[189,1,189,2],[7,1,7,4],[61,3,61,11],[104,1,104,16],[51,3,51,11],[9,1,9,2],[9,3,9,5],[11,10,11,12],[101,3,101,11],[90,3,90,11],[76,3,76,11],[77,3,77,11],[78,3,78,11],[79,3,79,11],[80,3,80,11],[81,3,81,11],[82,3,82,11],[83,3,83,11],[23,3,23,11],[7,5,7,16],[70,3,70,11],[71,3,71,11],[189,4,189,11],[186,4,186,11]]}
[]
[]
[]
[]
[]
[null,"8- DESPESAS COM DIÁRIAS NO PAÍS E NO EXTERIOR"]
[]
[null,"NOME DO INTERESSADO:"]
[]
[null,"PROCESSO: ",null,null,null,null,null,null,null,null,null,null,null,null,"Chamada FAPESP-FCT 2017"]
[]
[null,"TOTAL DIP:",null,{"$f":"IF(SUM(O15:O57,O63:O103)=0,\"\",SUM(O15:O57,O63:O103))","v":""},null,null,null,"TOTAL DIE:",null,null,{"$f":"IF(SUM(P15:P57,P63:P103)=0,\"\",SUM(P15:P57,P63:P103))","v":""}]
[]
[null,"item","quant.","descrição (somente 1 linha para cada item)",null,null,null,null,null,null,null,null,"item de despesa","preço unitário","total DIP","total DIE","FAPESP",null,"DIP"]
[null,null,null,null,null,null,null,null,null,null,null,null,null,null,{"$f":"IF(M15=\"DIP\",C15*N15,\"\")","v":""},{"$f":"IF(M15=\"DIE\",C15*N15,\"\")","v":""},null,null,"DIE"]
[null,null,null,null,null,null,null,null,null,null,null,null,null,null,"",""]
[null,null,null,null,null,null,null,null,null,null,null,null,null,null,"",""]
[null,null,null,null,null,null,null,null,null,null,null,null,null,null,"",""]
[null,null,null,null,null,null,null,null,null,null,null,null,null,null,"",""]
[null,null,null,null,null,null,null,null,null,null,null,null,null,null,"",""]
[null,null,null,null,null,null,null,null,null,null,null,null,null,null,"",""]
[null,null,null,null,null,null,null,null,null,null,null,null,null,null,"",""]
[null,null,null,null,null,null,null,null,null,null,null,null,null,null,"",""]
[null,null,null,null,null,null,null,null,null,null,null,null,null,null,"",""]
[null,null,null,null,null,null,null,null,null,null,null,null,null,null,"",""]
[null,null,null,null,null,null,null,null,null,null,null,null,null,null,"",""]
[null,null,null,null,null,null,null,null,null,null,null,null,null,null,"",""]
[null,null,null,null,null,null,null,null,null,null,null,null,null,null,"",""]
[null,null,null,null,null,null,null,null,null,null,null,null,null,null,"",""]
[null,null,null,null,null,null,null,null,null,null,null,null,null,null,"",""]
[null,null,null,null,null,null,null,null,null,null,null,null,null,null,"",""]
[null,null,null,null,null,null,null,null,null,null,null,null,null,null,"",""]
[null,null,null,null,null,null,null,null,null,null,null,null,null,null,{"$f":"IF(M33=\"DIP\",C33*N33,\"\")","v":""},{"$f":"IF(M33=\"DIE\",C33*N33,\"\")","v":""}]
[null,null,null,null,null,null,null,null,null,null,null,null,null,null,"",""]
[null,null,null,null,null,null,null,null,null,null,null,null,null,null,"",""]
[null,null,null,null,null,null,null,null,null,null,null,null,null,null,"",""]
[null,null,null,null,null,null,null,null,null,null,null,null,null,null,"",""]
[null,null,null,null,null,null,null,null,null,null,null,null,null,null,"",""]
[null,null,null,null,null,null,null,null,null,null,null,null,null,null,"",""]
[null,null,null,null,null,null,null,null,null,null,null,null,null,null,"",""]
[null,null,null,null,null,null,null,null,null,null,null,null,null,null,"",""]
[null,null,null,null,null,null,null,null,null,null,null,null,null,null,"",""]
[null,null,null,null,null,null,null,null,null,null,null,null,null,null,"",""]
[null,null,null,null,null,null,null,null,null,null,null,null,null,null,"",""]
[null,null,null,null,null,null,null,null,null,null,null,null,null,null,"",""]
[null,null,null,null,null,null,null,null,null,null,null,null,null,null,"",""]
[null,null,null,null,null,null,null,null,null,null,null,null,null,null,"",""]
[null,null,null,null,null,null,null,null,null,null,null,null,null,null,"",""]
[null,null,null,null,null,null,null,null,null,null,null,null,null,null,"",""]
[null,null,null,null,null,null,null,null,null,null,null,null,null,null,"",""]
[null,null,null,null,null,null,null,null,null,null,null,null,null,null,"",""]
[null,null,null,null,null,null,null,null,null,null,null,null,null,null,"",""]
[null,null,null,null,null,null,null,null,null,null,null,null,null,null,"",""]
[null,null,null,null,null,null,null,null,null,null,null,null,null,null,"",""]
[null,null,null,null,null,null,null,null,null,null,null,null,null,null,"",""]
[null,null,null,null,null,null,null,null,null,null,null,null,null,null,"",{"$f":"IF(M56=\"DIE\",C56*N56,\"\")","v":""}]
[null,null,null,null,null,null,null,null,null,null,null,null,null,null,"",{"$f":"IF(M57=\"DIE\",C57*N57,\"\")","v":""}]
[]
[null,"- JUSTIFIQUE EM ANEXO A UTILIDADE DE CADA ITEM SOLICITADO PARA O DESENVOLVIMENTO DO PROJETO DE PESQUISA"]
[null,{"$f":"'1-MPN'!$B$66","v":"FAPESP, MARÇO DE 2017"},null,null,null,null,null,null,null,null,null,null,null,null,null,null,1]
[null,{"$f":"B6","v":"8- DESPESAS COM DIÁRIAS NO PAÍS E NO EXTERIOR"}]
[null,"item","quant.","descrição (somente 1 linha para cada item)",null,null,null,null,null,null,null,null,"item de despesa","preço unitário","total DIP","total DIE","FAPESP"]
[null,null,null,null,null,null,null,null,null,null,null,null,null,null,{"$f":"IF(M63=\"DIP\",C63*N63,\"\")","v":""},{"$f":"IF(M63=\"DIE\",C63*N63,\"\")","v":""}]
[null,null,null,null,null,null,null,null,null,null,null,null,null,null,"",""]
[null,null,null,null,null,null,null,null,null,null,null,null,null,null,"",""]
[null,null,null,null,null,null,null,null,null,null,null,null,null,null,"",""]
[null,null,null,null,null,null,null,null,null,null,null,null,null,null,"",""]
[null,null,null,null,null,null,null,null,null,null,null,null,null,null,"",""]
[null,null,null,null,null,null,null,null,null,null,null,null,null,null,"",""]
[null,null,null,null,null,null,null,null,null,null,null,null,null,null,"",""]
[null,null,null,null,null,null,null,null,null,null,null,null,null,null,"",""]
[null,null,null,null,null,null,null,null,null,null,null,null,null,null,"",""]
[null,null,null,null,null,null,null,null,null,null,null,null,null,null,{"$f":"IF(M73=\"DIP\",C73*N73,\"\")","v":""},{"$f":"IF(M73=\"DIE\",C73*N73,\"\")","v":""}]
[null,null,null,null,null,null,null,null,null,null,null,null,null,null,"",""]
[null,null,null,null,null,null,null,null,null,null,null,null,null,null,"",""]
[null,null,null,null,null,null,null,null,null,null,null,null,null,null,"",""]
[null,null,null,null,null,null,null,null,null,null,null,null,null,null,"",""]
[null,null,null,null,null,null,null,null,null,null,null,null,null,null,"",""]
[null,null,null,null,null,null,null,null,null,null,null,null,null,null,"",""]
[null,null,null,null,null,null,null,null,null,null,null,null,null,null,"",""]
[null,null,null,null,null,null,null,null,null,null,null,null,null,null,"",""]
[null,null,null,null,null,null,null,null,null,null,null,null,null,null,"",""]
[null,null,null,null,null,null,null,null,null,null,null,null,null,null,"",""]
[null,null,null,null,null,null,null,null,null,null,null,null,null,null,"",""]
[null,null,null,null,null,null,null,null,null,null,null,null,null,null,"",""]
[null,null,null,null,null,null,null,null,null,null,null,null,null,null,"",""]
[null,null,null,null,null,null,null,null,null,null,null,null,null,null,"",""]
[null,null,null,null,null,null,null,null,null,null,null,null,null,null,"",""]
[null,null,null,null,null,null,null,null,null,null,null,null,null,null,"",""]
[null,null,null,null,null,null,null,null,null,null,null,null,null,null,"",""]
[null,null,null,null,null,null,null,null,null,null,null,null,null,null,"",""]
[null,null,null,null,null,null,null,null,null,null,null,null,null,null,"",""]
[null,null,null,null,null,null,null,null,null,null,null,null,null,null,"",""]
[null,null,null,null,null,null,null,null,null,null,null,null,null,null,"",""]
[null,null,null,null,null,null,null,null,null,null,null,null,null,null,"",""]
[null,null,null,null,null,null,null,null,null,null,null,null,null,null,"",""]
[null,null,null,null,null,null,null,null,null,null,null,null,null,null,"",""]
[null,null,null,null,null,null,null,null,null,null,null,null,null,null,"",""]
[null,null,null,null,null,null,null,null,null,null,null,null,null,null,"",""]
[null,null,null,null,null,null,null,null,null,null,null,null,null,null,"",""]
[null,null,null,null,null,null,null,null,null,null,null,null,null,null,"",""]
[null,null,null,null,null,null,null,null,null,null,null,null,null,null,"",""]
[null,null,null,null,null,null,null,null,null,null,null,null,null,null,"",""]
[]
[null,"- JUSTIFIQUE EM ANEXO A UTILIDADE DE CADA ITEM SOLICITADO PARA O DESENVOLVIMENTO DO PROJETO DE PESQUISA"]
[null,{"$f":"'1-MPN'!$B$66","v":"FAPESP, MARÇO DE 2017"},null,null,null,null,null,null,null,null,null,null,null,null,null,null,2]
[]
[]
[]
[]
[]
[]
[]
[]
[]
[]
[]
[]
[]
[]
[]
[]
[]
[]
[]
[]
[]
[]
[]
[]
[]
[]
[]
[]
[]
[]
[]
[]
[]
[]
[]
[]
[]
[]
[]
[]
[]
[]
[]
[]
[]
[]
[]
[]
[]
[]
[]
[]
[]
[null,"PARA IMPRIMIR A INSTRUÇÃO ABAIXO, SELECIONE A ÁREA A SER IMPRESSA"]
[null,"DIGITE \"CTRL\" P, E DEPOIS CLIQUE EM SELEÇÃO."]
[]
[]
[]
[null,"FORMULÁRIO 8- DESPESAS COM DIÁRIAS NO PAÍS E NO EXTERIOR"]
[null," INSTRUÇÕES PARA PREENCHIMENTO – LEIA ATENTAMENTE AS INSTRUÇÕES ABAIXO."]
[]
[null,"                               NÃO SERÃO ACEITOS FORMULÁRIOS PREENCHIDOS EM DESACORDO COM ESTA INSTRUÇÃO"]
[]
[null,"- Apresente somente orçamento de recursos necessários para a realização de viagens. Se Concedido, o valor de cada diária não poderá ultrapassar o limite da tabela da FAPESP."]
[null,"- Coluna (item) - cada viagem deve ser numerada seqüencialmente (ver exemplo abaixo).  "]
[null,"- Coluna (quantidade) - quantidade de diárias necessárias para cada viagem/usuário."]
[null,"- Coluna (descrição) - descreva a viagem que se pretende realizar e indique quem será o usuário das diárias (Toda a descrição deve ser feita em português)."]
[null,"- Coluna (item de despesa) - informe se é DIP ou DIE."]
[null,"- Coluna (preço unitário) - valor unitário em moeda nacional.  "]
[null,"- Coluna (total DIP) - cálculo automático do valor total das diárias solicitadas no PAÍS, conforme seleção da coluna (item de despesa)."]
[null,"- Coluna (total DIE) - cálculo automático do  valor total das diárias solicitadas no EXTERIOR, conforme seleção da coluna (item de despesa)."]
[null,"- Coluna () - para uso exclusivo da FAPESP.  "]
[null," "]
[null," OBSERVAÇÕES:  "]
[null,"1) Auxílios para a vinda de pesquisador visitante, realização de estágios, participação em reunião, etc. devem ser solicitados em formulários específicos"]
[null,"    para cada finalidade e de acordo com as regras em vigor.  "]
[null,"2) Para a contratação de recursos humanos de apoio à pesquisa, ver Programa FAPESP de Capacitação Técnica.  "]
[null,"3) Justifique em anexo a utilidade de cada item solicitado para o desenvolvimento do projeto de pesquisa proposto.  "]
[null," EXEMPLO"]
[]
[null,"item",null,"quant.","descrição (somente 1 linha para cada item)",null,null,null,null,null,null,null,"item de despesa","preço unitário","total DIP","total DIE","FAPESP"]
[null,1,null,3,"Pesquisa de campo a ser realizada por ......, na cidade de Brasília",null,null,null,null,null,null,null,"DIP",200,{"$f":"N188*D188","v":600},null,null,null,null,null,null,null,null,null,null,null,null,null,null,null,null,null,null,null,null,null,null,null,null,null,null,null,null,null,null,null,null,null,null,null,null,null,null,null,null,null,null,null,null,null,null,null,null,null,null,null,null,null,null,null,null,null,null,null,null,null,null,null,null,null,null,null,null,null,null,null,null,null,null,null,null,null,null,null,null,null,null,null,null,null,null,null,null,null,null,null,null,null,null,null,null,null,null,null,null,null,null,null,null,null,null,null,null,null,null,null,null,null,null,null,null,null,null,null,null,null,null,null,null,null,null,null,null,null,null,null,null,null,null,null,null,null,null,null,null,null,null,null,null,null,null,null,null,null,null,null,null,null,null,null,null,null,null,null,null,null,null,null,null,null,null,null,null,null,null,null,null,null,null,null,null,null,null,null,null,null,null,null,null,null,null,null,null,null,null,null,null,null,null,null,null,null,null,null,null,null,null,null,null,null,null,null,null,null,null,null,null,null,null,null,null,null,null,null,null,null,null,null,{"$f":"#REF!","v":{"$error":"#REF!"}},{"$f":"IF(IE188<>0,IE188,\"\")","v":{"$error":"#REF!"}}]
[null,2,null,2,"Pesquisa de campo a ser realizada por ......, na cidade do Rio de Janeiro",null,null,null,null,null,null,null,"DIP",200,{"$f":"N189*D189","v":400},null,null,null,null,null,null,null,null,null,null,null,null,null,null,null,null,null,null,null,null,null,null,null,null,null,null,null,null,null,null,null,null,null,null,null,null,null,null,null,null,null,null,null,null,null,null,null,null,null,null,null,null,null,null,null,null,null,null,null,null,null,null,null,null,null,null,null,null,null,null,null,null,null,null,null,null,null,null,null,null,null,null,null,null,null,null,null,null,null,null,null,null,null,null,null,null,null,null,null,null,null,null,null,null,null,null,null,null,null,null,null,null,null,null,null,null,null,null,null,null,null,null,null,null,null,null,null,null,null,null,null,null,null,null,null,null,null,null,null,null,null,null,null,null,null,null,null,null,null,null,null,null,null,null,null,null,null,null,null,null,null,null,null,null,null,null,null,null,null,null,null,null,null,null,null,null,null,null,null,null,null,null,null,null,null,null,null,null,null,null,null,null,null,null,null,null,null,null,null,null,null,null,null,null,null,null,null,null,null,null,null,null,null,null,null,null,null,null,null,null,null,null,null,{"$f":"#REF!","v":{"$error":"#REF!"}},{"$f":"IF(IE189<>0,IE189,\"\")","v":{"$error":"#REF!"}}]
[null,3,null,2,"Pesquisa de campo a ser realizada por ......, em New York City",null,null,null,null,null,null,null,"die",350,null,700]
[]
[]
[null,"- JUSTIFIQUE EM ANEXO A UTILIDADE DE CADA ITEM SOLICITADO PARA O DESENVOLVIMENTO DO PROJETO DE PESQUISA"]
[null,{"$f":"'1-MPN'!$B$66","v":"FAPESP, MARÇO DE 2017"},null,null,null,null,null,null,null,null,null,null,null,null,null,null,2]

{"sheet":"9a-BOLSAS - TT","index":8,"n_rows":128,"n_cols":237,"rows_kept":128,"cut":false,"hidden":false,"merged":[[8,6,8,11],[6,1,6,7],[6,8,6,11],[87,1,87,8],[88,1,88,5],[88,6,88,7],[12,4,12,6],[10,5,10,6],[88,9,88,10],[10,9,12,11],[92,6,92,11],[94,5,94,6],[96,4,96,6],[90,1,90,11],[89,1,89,11],[94,7,95,11],[96,7,96,11],[127,1,127,11],[119,6,119,11],[106,1,106,11],[107,1,107,11],[108,1,108,11],[122,1,122,11],[123,1,123,11],[124,1,124,11],[125,1,125,11],[126,1,126,11]]}
[]
[]
[]
[]
[]
[]
[null,"9A- BOLSAS DE CAPACITAÇÃO TÉCNICA VINCULADAS AO",null,null,null,null,null,null,{"$f":"'1-MPN'!B7","v":"AUXÍLIO À PESQUISA - REGULAR"}]
[]
[null,"NOME DO INTERESSADO:"]
[]
[null,"PROCESSO:   ",null,null,null,null,null,null,null,"Chamada FAPESP-FCT 2017"]
[]
[null,"TOTAL:",null,null,{"$f":"IF(SUM(K16:K49)=0,\"\",(SUM(K16:K49)))","v":""}]
[]
[null,"item",null,null,"modalidade","quantidade","duração (meses)","carga horária semanal","valor integral da bolsa","valor da mensalidade","custo total","FAPESP"]
[null,null,null,null,null,null,null,null,{"$f":"IF(E16=0,\"\",INDEX($O$16:$O$21,MATCH(E16,$N$16:$N$21,0)))","v":""},{"$f":"IF(ISERROR(K16/G16/F16),\"\",(K16/G16/F16))","v":""},{"$f":"IF(E16=0,\"\",IF(E16=\"TT-I\",F16*I16*G16,F16*I16*G16*(H16/40)))","v":""},null,null,{"$f":"DADOS!B4","v":"TT-I"},{"$f":"DADOS!C4","v":406.5},null,{"$f":"DADOS!N2","v":16},null,null,null,null,null,null,null,null,null,null,null,null,null,null,null,null,null,null,null,null,null,null,null,null,null,null,null,null,null,null,null,null,null,null,null,null,null,null,null,null,null,null,null,null,null,null,null,null,null,null,null,null,null,null,null,null,null,null,null,null,null,null,null,null,null,null,null,null,null,null,null,null,null,null,null,null,null,null,null,null,null,null,null,null,null,null,null,null,null,null,null,null,null,null,null,null,null,null,null,null,null,null,null,null,null,null,null,null,null,null,null,null,null,null,null,null,null,null,null,null,null,null,null,null,null,null,null,null,null,null,null,null,null,null,null,null,null,null,null,null,null,null,null,null,null,null,null,null,null,null,null,null,null,null,null,null,null,null,null,null,null,null,null,null,null,null,null,null,null,null,null,null,null,null,null,null,null,null,null,null,null,null,null,null,null,null,null,null,null,null,null,null,null,null,null,null,null,null,null,null,null,null,null,null,null,null,null,null,null,null,null,null,null,null,null,null,null,null,{"$f":"#REF!","v":{"$error":"#REF!"}},{"$f":"IF(IB16<>0,IB16,\"\")","v":{"$error":"#REF!"}}]
[null,null,null,null,null,null,null,null,"","","",null,null,{"$f":"DADOS!B5","v":"TT-II"},{"$f":"DADOS!C5","v":812.1},null,{"$f":"DADOS!N3","v":17},null,null,null,null,null,null,null,null,null,null,null,null,null,null,null,null,null,null,null,null,null,null,null,null,null,null,null,null,null,null,null,null,null,null,null,null,null,null,null,null,null,null,null,null,null,null,null,null,null,null,null,null,null,null,null,null,null,null,null,null,null,null,null,null,null,null,null,null,null,null,null,null,null,null,null,null,null,null,null,null,null,null,null,null,null,null,null,null,null,null,null,null,null,null,null,null,null,null,null,null,null,null,null,null,null,null,null,null,null,null,null,null,null,null,null,null,null,null,null,null,null,null,null,null,null,null,null,null,null,null,null,null,null,null,null,null,null,null,null,null,null,null,null,null,null,null,null,null,null,null,null,null,null,null,null,null,null,null,null,null,null,null,null,null,null,null,null,null,null,null,null,null,null,null,null,null,null,null,null,null,null,null,null,null,null,null,null,null,null,null,null,null,null,null,null,null,null,null,null,null,null,null,null,null,null,null,null,null,null,null,null,null,null,null,null,null,null,null,{"$f":"#REF!","v":{"$error":"#REF!"}},{"$f":"IF(IB17<>0,IB17,\"\")","v":{"$error":"#REF!"}}]
[null,null,null,null,null,null,null,null,"","","",null,null,{"$f":"DADOS!B6","v":"TT-III"},{"$f":"DADOS!C6","v":1136.4000000000001},null,{"$f":"DADOS!N4","v":18}]
[null,null,null,null,null,null,null,null,"","","",null,null,{"$f":"DADOS!B7","v":"TT-IV"},{"$f":"DADOS!C7","v":2871.9},null,{"$f":"DADOS!N5","v":19},null,null,null,null,null,null,null,null,null,null,null,null,null,null,null,null,null,null,null,null,null,null,null,null,null,null,null,null,null,null,null,null,null,null,null,null,null,null,null,null,null,null,null,null,null,null,null,null,null,null,null,null,null,null,null,null,null,null,null,null,null,null,null,null,null,null,null,null,null,null,null,null,null,null,null,null,null,null,null,null,null,null,null,null,null,null,null,null,null,null,null,null,null,null,null,null,null,null,null,null,null,null,null,null,null,null,null,null,null,null,null,null,null,null,null,null,null,null,null,null,null,null,null,null,null,null,null,null,null,null,null,null,null,null,null,null,null,null,null,null,null,null,null,null,null,null,null,null,null,null,null,null,null,null,null,null,null,null,null,null,null,null,null,null,null,null,null,null,null,null,null,null,null,null,null,null,null,null,null,null,null,null,null,null,null,null,null,null,null,null,null,null,null,null,null,null,null,null,null,null,null,null,null,null,null,null,null,null,null,null,null,null,null,null,null,null,null,null,{"$f":"#REF!","v":{"$error":"#REF!"}},{"$f":"IF(IB19<>0,IB19,\"\")","v":{"$error":"#REF!"}}]
[null,null,null,null,null,null,null,null,"","","",null,null,{"$f":"DADOS!B8","v":"TT-IV-A"},{"$f":"DADOS!C8","v":4705.2},null,{"$f":"DADOS!N6","v":20},null,null,null,null,null,null,null,null,null,null,null,null,null,null,null,null,null,null,null,null,null,null,null,null,null,null,null,null,null,null,null,null,null,null,null,null,null,null,null,null,null,null,null,null,null,null,null,null,null,null,null,null,null,null,null,null,null,null,null,null,null,null,null,null,null,null,null,null,null,null,null,null,null,null,null,null,null,null,null,null,null,null,null,null,null,null,null,null,null,null,null,null,null,null,null,null,null,null,null,null,null,null,null,null,null,null,null,null,null,null,null,null,null,null,null,null,null,null,null,null,null,null,null,null,null,null,null,null,null,null,null,null,null,null,null,null,null,null,null,null,null,null,null,null,null,null,null,null,null,null,null,null,null,null,null,null,null,null,null,null,null,null,null,null,null,null,null,null,null,null,null,null,null,null,null,null,null,null,null,null,null,null,null,null,null,null,null,null,null,null,null,null,null,null,null,null,null,null,null,null,null,null,null,null,null,null,null,null,null,null,null,null,null,null,null,null,null,null,{"$f":"#REF!","v":{"$error":"#REF!"}},{"$f":"IF(IB20<>0,IB20,\"\")","v":{"$error":"#REF!"}}]
[null,null,null,null,null,null,null,null,"","","",null,null,{"$f":"DADOS!B9","v":"TT-V"},{"$f":"DADOS!C9","v":6819.3},null,{"$f":"DADOS!N7","v":21},null,null,null,null,null,null,null,null,null,null,null,null,null,null,null,null,null,null,null,null,null,null,null,null,null,null,null,null,null,null,null,null,null,null,null,null,null,null,null,null,null,null,null,null,null,null,null,null,null,null,null,null,null,null,null,null,null,null,null,null,null,null,null,null,null,null,null,null,null,null,null,null,null,null,null,null,null,null,null,null,null,null,null,null,null,null,null,null,null,null,null,null,null,null,null,null,null,null,null,null,null,null,null,null,null,null,null,null,null,null,null,null,null,null,null,null,null,null,null,null,null,null,null,null,null,null,null,null,null,null,null,null,null,null,null,null,null,null,null,null,null,null,null,null,null,null,null,null,null,null,null,null,null,null,null,null,null,null,null,null,null,null,null,null,null,null,null,null,null,null,null,null,null,null,null,null,null,null,null,null,null,null,null,null,null,null,null,null,null,null,null,null,null,null,null,null,null,null,null,null,null,null,null,null,null,null,null,null,null,null,null,null,null,null,null,null,null,null,{"$f":"#REF!","v":{"$error":"#REF!"}},{"$f":"IF(IB21<>0,IB21,\"\")","v":{"$error":"#REF!"}}]
[null,null,null,null,null,null,null,null,"","","",null,null,null,null,null,{"$f":"DADOS!N8","v":22},null,null,null,null,null,null,null,null,null,null,null,null,null,null,null,null,null,null,null,null,null,null,null,null,null,null,null,null,null,null,null,null,null,null,null,null,null,null,null,null,null,null,null,null,null,null,null,null,null,null,null,null,null,null,null,null,null,null,null,null,null,null,null,null,null,null,null,null,null,null,null,null,null,null,null,null,null,null,null,null,null,null,null,null,null,null,null,null,null,null,null,null,null,null,null,null,null,null,null,null,null,null,null,null,null,null,null,null,null,null,null,null,null,null,null,null,null,null,null,null,null,null,null,null,null,null,null,null,null,null,null,null,null,null,null,null,null,null,null,null,null,null,null,null,null,null,null,null,null,null,null,null,null,null,null,null,null,null,null,null,null,null,null,null,null,null,null,null,null,null,null,null,null,null,null,null,null,null,null,null,null,null,null,null,null,null,null,null,null,null,null,null,null,null,null,null,null,null,null,null,null,null,null,null,null,null,null,null,null,null,null,null,null,null,null,null,null,null,{"$f":"#REF!","v":{"$error":"#REF!"}},{"$f":"IF(IB22<>0,IB22,\"\")","v":{"$error":"#REF!"}}]
[null,null,null,null,null,null,null,null,"","","",null,null,null,null,null,{"$f":"DADOS!N9","v":23},null,null,null,null,null,null,null,null,null,null,null,null,null,null,null,null,null,null,null,null,null,null,null,null,null,null,null,null,null,null,null,null,null,null,null,null,null,null,null,null,null,null,null,null,null,null,null,null,null,null,null,null,null,null,null,null,null,null,null,null,null,null,null,null,null,null,null,null,null,null,null,null,null,null,null,null,null,null,null,null,null,null,null,null,null,null,null,null,null,null,null,null,null,null,null,null,null,null,null,null,null,null,null,null,null,null,null,null,null,null,null,null,null,null,null,null,null,null,null,null,null,null,null,null,null,null,null,null,null,null,null,null,null,null,null,null,null,null,null,null,null,null,null,null,null,null,null,null,null,null,null,null,null,null,null,null,null,null,null,null,null,null,null,null,null,null,null,null,null,null,null,null,null,null,null,null,null,null,null,null,null,null,null,null,null,null,null,null,null,null,null,null,null,null,null,null,null,null,null,null,null,null,null,null,null,null,null,null,null,null,null,null,null,null,null,null,null,null,{"$f":"IF(IA23<>0,IA23,\"\")","v":""}]
[null,null,null,null,null,null,null,null,"","","",null,null,null,null,null,{"$f":"DADOS!N10","v":24}]
[null,null,null,null,null,null,null,null,"","","",null,null,null,null,null,{"$f":"DADOS!N11","v":25},null,null,null,null,null,null,null,null,null,null,null,null,null,null,null,null,null,null,null,null,null,null,null,null,null,null,null,null,null,null,null,null,null,null,null,null,null,null,null,null,null,null,null,null,null,null,null,null,null,null,null,null,null,null,null,null,null,null,null,null,null,null,null,null,null,null,null,null,null,null,null,null,null,null,null,null,null,null,null,null,null,null,null,null,null,null,null,null,null,null,null,null,null,null,null,null,null,null,null,null,null,null,null,null,null,null,null,null,null,null,null,null,null,null,null,null,null,null,null,null,null,null,null,null,null,null,null,null,null,null,null,null,null,null,null,null,null,null,null,null,null,null,null,null,null,null,null,null,null,null,null,null,null,null,null,null,null,null,null,null,null,null,null,null,null,null,null,null,null,null,null,null,null,null,null,null,null,null,null,null,null,null,null,null,null,null,null,null,null,null,null,null,null,null,null,null,null,null,null,null,null,null,null,null,null,null,null,null,null,null,null,null,null,null,null,null,null,null,{"$f":"IF(IA25<>0,IA25,\"\")","v":""}]
[null,null,null,null,null,null,null,null,"","","",null,null,null,null,null,{"$f":"DADOS!N12","v":26}]
[null,null,null,null,null,null,null,null,"","","",null,null,null,null,null,{"$f":"DADOS!N13","v":27}]
[null,null,null,null,null,null,null,null,"","","",null,null,null,null,null,{"$f":"DADOS!N14","v":28},null,null,null,null,null,null,null,null,null,null,null,null,null,null,null,null,null,null,null,null,null,null,null,null,null,null,null,null,null,null,null,null,null,null,null,null,null,null,null,null,null,null,null,null,null,null,null,null,null,null,null,null,null,null,null,null,null,null,null,null,null,null,null,null,null,null,null,null,null,null,null,null,null,null,null,null,null,null,null,null,null,null,null,null,null,null,null,null,null,null,null,null,null,null,null,null,null,null,null,null,null,null,null,null,null,null,null,null,null,null,null,null,null,null,null,null,null,null,null,null,null,null,null,null,null,null,null,null,null,null,null,null,null,null,null,null,null,null,null,null,null,null,null,null,null,null,null,null,null,null,null,null,null,null,null,null,null,null,null,null,null,null,null,null,null,null,null,null,null,null,null,null,null,null,null,null,null,null,null,null,null,null,null,null,null,null,null,null,null,null,null,null,null,null,null,null,null,null,null,null,null,null,null,null,null,null,null,null,null,null,null,null,null,null,null,null,null,null,{"$f":"IF(IA28<>0,IA28,\"\")","v":""}]
[null,null,null,null,null,null,null,null,"","","",null,null,null,null,null,{"$f":"DADOS!N15","v":29},null,null,null,null,null,null,null,null,null,null,null,null,null,null,null,null,null,null,null,null,null,null,null,null,null,null,null,null,null,null,null,null,null,null,null,null,null,null,null,null,null,null,null,null,null,null,null,null,null,null,null,null,null,null,null,null,null,null,null,null,null,null,null,null,null,null,null,null,null,null,null,null,null,null,null,null,null,null,null,null,null,null,null,null,null,null,null,null,null,null,null,null,null,null,null,null,null,null,null,null,null,null,null,null,null,null,null,null,null,null,null,null,null,null,null,null,null,null,null,null,null,null,null,null,null,null,null,null,null,null,null,null,null,null,null,null,null,null,null,null,null,null,null,null,null,null,null,null,null,null,null,null,null,null,null,null,null,null,null,null,null,null,null,null,null,null,null,null,null,null,null,null,null,null,null,null,null,null,null,null,null,null,null,null,null,null,null,null,null,null,null,null,null,null,null,null,null,null,null,null,null,null,null,null,null,null,null,null,null,null,null,null,null,null,null,null,null,null,{"$f":"#REF!","v":{"$error":"#REF!"}},{"$f":"IF(IB29<>0,IB29,\"\")","v":{"$error":"#REF!"}}]
[null,null,null,null,null,null,null,null,"","","",null,null,null,null,null,{"$f":"DADOS!N16","v":30},null,null,null,null,null,null,null,null,null,null,null,null,null,null,null,null,null,null,null,null,null,null,null,null,null,null,null,null,null,null,null,null,null,null,null,null,null,null,null,null,null,null,null,null,null,null,null,null,null,null,null,null,null,null,null,null,null,null,null,null,null,null,null,null,null,null,null,null,null,null,null,null,null,null,null,null,null,null,null,null,null,null,null,null,null,null,null,null,null,null,null,null,null,null,null,null,null,null,null,null,null,null,null,null,null,null,null,null,null,null,null,null,null,null,null,null,null,null,null,null,null,null,null,null,null,null,null,null,null,null,null,null,null,null,null,null,null,null,null,null,null,null,null,null,null,null,null,null,null,null,null,null,null,null,null,null,null,null,null,null,null,null,null,null,null,null,null,null,null,null,null,null,null,null,null,null,null,null,null,null,null,null,null,null,null,null,null,null,null,null,null,null,null,null,null,null,null,null,null,null,null,null,null,null,null,null,null,null,null,null,null,null,null,null,null,null,null,null,{"$f":"#REF!","v":{"$error":"#REF!"}},{"$f":"IF(IB30<>0,IB30,\"\")","v":{"$error":"#REF!"}}]
[null,null,null,null,null,null,null,null,"","","",null,null,null,null,null,{"$f":"DADOS!N17","v":31},null,null,null,null,null,null,null,null,null,null,null,null,null,null,null,null,null,null,null,null,null,null,null,null,null,null,null,null,null,null,null,null,null,null,null,null,null,null,null,null,null,null,null,null,null,null,null,null,null,null,null,null,null,null,null,null,null,null,null,null,null,null,null,null,null,null,null,null,null,null,null,null,null,null,null,null,null,null,null,null,null,null,null,null,null,null,null,null,null,null,null,null,null,null,null,null,null,null,null,null,null,null,null,null,null,null,null,null,null,null,null,null,null,null,null,null,null,null,null,null,null,null,null,null,null,null,null,null,null,null,null,null,null,null,null,null,null,null,null,null,null,null,null,null,null,null,null,null,null,null,null,null,null,null,null,null,null,null,null,null,null,null,null,null,null,null,null,null,null,null,null,null,null,null,null,null,null,null,null,null,null,null,null,null,null,null,null,null,null,null,null,null,null,null,null,null,null,null,null,null,null,null,null,null,null,null,null,null,null,null,null,null,null,null,null,null,null,null,{"$f":"#REF!","v":{"$error":"#REF!"}},{"$f":"IF(IB31<>0,IB31,\"\")","v":{"$error":"#REF!"}}]
[null,null,null,null,null,null,null,null,"","","",null,null,null,null,null,{"$f":"DADOS!N18","v":32},null,null,null,null,null,null,null,null,null,null,null,null,null,null,null,null,null,null,null,null,null,null,null,null,null,null,null,null,null,null,null,null,null,null,null,null,null,null,null,null,null,null,null,null,null,null,null,null,null,null,null,null,null,null,null,null,null,null,null,null,null,null,null,null,null,null,null,null,null,null,null,null,null,null,null,null,null,null,null,null,null,null,null,null,null,null,null,null,null,null,null,null,null,null,null,null,null,null,null,null,null,null,null,null,null,null,null,null,null,null,null,null,null,null,null,null,null,null,null,null,null,null,null,null,null,null,null,null,null,null,null,null,null,null,null,null,null,null,null,null,null,null,null,null,null,null,null,null,null,null,null,null,null,null,null,null,null,null,null,null,null,null,null,null,null,null,null,null,null,null,null,null,null,null,null,null,null,null,null,null,null,null,null,null,null,null,null,null,null,null,null,null,null,null,null,null,null,null,null,null,null,null,null,null,null,null,null,null,null,null,null,null,null,null,null,null,null,null,{"$f":"#REF!","v":{"$error":"#REF!"}},{"$f":"IF(IB32<>0,IB32,\"\")","v":{"$error":"#REF!"}}]
[null,null,null,null,null,null,null,null,"","","",null,null,null,null,null,{"$f":"DADOS!N19","v":33},null,null,null,null,null,null,null,null,null,null,null,null,null,null,null,null,null,null,null,null,null,null,null,null,null,null,null,null,null,null,null,null,null,null,null,null,null,null,null,null,null,null,null,null,null,null,null,null,null,null,null,null,null,null,null,null,null,null,null,null,null,null,null,null,null,null,null,null,null,null,null,null,null,null,null,null,null,null,null,null,null,null,null,null,null,null,null,null,null,null,null,null,null,null,null,null,null,null,null,null,null,null,null,null,null,null,null,null,null,null,null,null,null,null,null,null,null,null,null,null,null,null,null,null,null,null,null,null,null,null,null,null,null,null,null,null,null,null,null,null,null,null,null,null,null,null,null,null,null,null,null,null,null,null,null,null,null,null,null,null,null,null,null,null,null,null,null,null,null,null,null,null,null,null,null,null,null,null,null,null,null,null,null,null,null,null,null,null,null,null,null,null,null,null,null,null,null,null,null,null,null,null,null,null,null,null,null,null,null,null,null,null,null,null,null,null,null,null,{"$f":"IF(IA33<>0,IA33,\"\")","v":""}]
[null,null,null,null,null,null,null,null,"","","",null,null,null,null,null,{"$f":"DADOS!N20","v":34}]
[null,null,null,null,null,null,null,null,"","","",null,null,null,null,null,{"$f":"DADOS!N21","v":35},null,null,null,null,null,null,null,null,null,null,null,null,null,null,null,null,null,null,null,null,null,null,null,null,null,null,null,null,null,null,null,null,null,null,null,null,null,null,null,null,null,null,null,null,null,null,null,null,null,null,null,null,null,null,null,null,null,null,null,null,null,null,null,null,null,null,null,null,null,null,null,null,null,null,null,null,null,null,null,null,null,null,null,null,null,null,null,null,null,null,null,null,null,null,null,null,null,null,null,null,null,null,null,null,null,null,null,null,null,null,null,null,null,null,null,null,null,null,null,null,null,null,null,null,null,null,null,null,null,null,null,null,null,null,null,null,null,null,null,null,null,null,null,null,null,null,null,null,null,null,null,null,null,null,null,null,null,null,null,null,null,null,null,null,null,null,null,null,null,null,null,null,null,null,null,null,null,null,null,null,null,null,null,null,null,null,null,null,null,null,null,null,null,null,null,null,null,null,null,null,null,null,null,null,null,null,null,null,null,null,null,null,null,null,null,null,null,null,{"$f":"IF(IA35<>0,IA35,\"\")","v":""}]
[null,null,null,null,null,null,null,null,"","","",null,null,null,null,null,{"$f":"DADOS!N22","v":36}]
[null,null,null,null,null,null,null,null,"","","",null,null,null,null,null,{"$f":"DADOS!N23","v":37}]
[null,null,null,null,null,null,null,null,"","","",null,null,null,null,null,{"$f":"DADOS!N24","v":38}]
[null,null,null,null,null,null,null,null,"","","",null,null,null,null,null,{"$f":"DADOS!N25","v":39}]
[null,null,null,null,null,null,null,null,"","","",null,null,null,null,null,{"$f":"DADOS!N26","v":40},null,null,null,null,null,null,null,null,null,null,null,null,null,null,null,null,null,null,null,null,null,null,null,null,null,null,null,null,null,null,null,null,null,null,null,null,null,null,null,null,null,null,null,null,null,null,null,null,null,null,null,null,null,null,null,null,null,null,null,null,null,null,null,null,null,null,null,null,null,null,null,null,null,null,null,null,null,null,null,null,null,null,null,null,null,null,null,null,null,null,null,null,null,null,null,null,null,null,null,null,null,null,null,null,null,null,null,null,null,null,null,null,null,null,null,null,null,null,null,null,null,null,null,null,null,null,null,null,null,null,null,null,null,null,null,null,null,null,null,null,null,null,null,null,null,null,null,null,null,null,null,null,null,null,null,null,null,null,null,null,null,null,null,null,null,null,null,null,null,null,null,null,null,null,null,null,null,null,null,null,null,null,null,null,null,null,null,null,null,null,null,null,null,null,null,null,null,null,null,null,null,null,null,null,null,null,null,null,null,null,null,null,null,null,null,null,null,null,{"$f":"IF(IA40<>0,IA40,\"\")","v":""}]
[null,null,null,null,null,null,null,null,"","",""]
[null,null,null,null,null,null,null,null,"","",""]
[null,null,null,null,null,null,null,null,"","",""]
[null,null,null,null,null,null,null,null,"","",""]
[null,null,null,null,null,null,null,null,"","",""]
[null,null,null,null,null,null,null,null,"","",""]
[null,null,null,null,null,null,null,null,"","",""]
[null,null,null,null,null,null,null,null,"","",""]
[null,null,null,null,null,null,null,null,"","",""]
[null,{"$f":"'1-MPN'!B66","v":"FAPESP, MARÇO DE 2017"}]
[]
[]
[]
[]
[]
[]
[]
[]
[]
[]
[]
[]
[]
[]
[null,null,null,null,null,null,null,null,null,null,null,null,null,null,null,null,null,null,null,"Valores vigentes até 28/2/2010","Valores vigentes a partir de 1º/3/2010"]
[]
[null,null,null,null,null,null,null,null,null,null,null,null,null,null,null,null,null,null,null,424.8,474]
[null,null,null,null,null,null,null,null,null,null,null,null,null,null,null,null,null,null,null,1248.5999999999999,1392.9]
[null,null,null,null,null,null,null,null,null,null,null,null,null,null,null,null,null,null,null,1325.7,1478.7]
[null,null,null,null,null,null,null,null,null,null,null,null,null,null,null,null,null,null,null,1840.5,2053.1999999999998]
[null,null,null,null,null,null,null,null,null,null,null,null,null,null,null,null,null,null,null,2278.1999999999998,2541.3000000000002]
[null,null,null,null,null,null,null,null,null,null,null,null,null,null,null,null,null,null,null,4508.1000000000004,5028.8999999999996]
[]
[null,null,null,null,null,null,null,null,null,null,null,null,null,null,null,null,null,null,null,268.2,299.10000000000002]
[null,null,null,null,null,null,null,null,null,null,null,null,null,null,null,null,null,null,null,536.4,598.5]
[null,null,null,null,null,null,null,null,null,null,null,null,null,null,null,null,null,null,null,750.9,837.6]
[null,null,null,null,null,null,null,null,null,null,null,null,null,null,null,null,null,null,null,1898.4,2117.6999999999998]
[null,null,null,null,null,null,null,null,null,null,null,null,null,null,null,null,null,null,null,3110.4,3469.8]
[null,null,null,null,null,null,null,null,null,null,null,null,null,null,null,null,null,null,null,4508.1000000000004,5028.8999999999996]
[null,null,null,null,null,null,null,null,null,null,null,null,null,null,null,null,null,null,null,429,478.5]
[null,null,null,null,null,null,null,null,null,null,null,null,null,null,null,null,null,null,null,643.5,717.9]
[null,null,null,null,null,null,null,null,null,null,null,null,null,null,null,null,null,null,null,"US$ 1.200,00","US$ 1.200,00"]
[null,"PARA IMPRIMIR A INSTRUÇÃO ABAIXO, SELECIONE A ÁREA A SER IMPRESSA"]
[null,"DIGITE \"CTRL\" P, E DEPOIS CLIQUE EM SELEÇÃO.",null,null,null,null,null,null,null,null,null,null,null,null,null,null,null,null,null,5122.8,5714.4]
[]
[null,null,null,null,null,null,null,null,null,null,null,null,null,null,null,null,null,null,null,193.2,215.4]
[null,null,null,null,null,null,null,null,null,null,null,null,null,null,null,null,null,null,null,386.1,430.8]
[null,"9A- BOLSAS DE CAPACITAÇÃO TÉCNICA VINCULADAS A: ",null,null,null,null,null,null,null,null,null,null,null,null,null,null,null,null,null,579.29999999999995,646.20000000000005]
[null,null,null,null,null,null,null,null,null,null,null,null,null,null,null,null,null,null,null,772.2,861.3]
[null,"AS CAIXAS DE SELEÇÃO ACIMA, DEVEM SER CLICADAS DEPENDENDO DO PROGRAMA A QUE AS BOLSAS TT ESTÃO VINCULADAS.",null,null,null,null,null,null,null,null,null,null,null,null,null,null,null,null,null,965.4,1077]
[null,"SOMENTE É PERMITIDO A SELEÇÃO DE UMA DAS CAIXAS.",null,null,null,null,null,null,null,null,null,null,null,null,null,null,null,null,null,1544.4,1722.9]
[]
[null,"NOME DO INTERESSADO:",null,null,null,null,null,null,null,null,null,null,null,null,null,null,null,null,null,2475,2760.9]
[null,null,null,null,null,null,null,null,null,null,null,null,null,null,null,null,null,null,null,3662.7,4085.7]
[null,"PROCESSO:   ",null,null,null,null,null,"(PARA PEDIDOS INICIAIS, NÃO É NECESSÁRIO PREENCHER ESTE CAMPO, ELE DEVE SER PREENCHIDO EM CASOS DE RECONSIDERAÇÃO DO ORÇAMENTO PELA FAPESP.",null,null,null,null,null,null,null,null,null,null,null,5122.8,5714.4]
[]
[null,"TOTAL:",null,null,{"$f":"IF(SUM(K100:K105)=0,\"\",(SUM(K100:K105)))","v":200921.4},null,null,"(CÉLULA DE TOTALIZAÇÃO AUTOMÁTICA)",null,null,null,null,null,null,null,null,null,null,null,424.8,474]
[null,null,null,null,null,null,null,null,null,null,null,null,null,null,null,null,null,null,null,1248.5999999999999,1392.9]
[null,"item",null,null,"modalidade","quantidade","duração (meses)","carga horária semanal","valor integral da bolsa","valor da mensalidade","custo total","FAPESP",null,null,null,null,null,null,null,1840.5,2053.1999999999998]
[null,1,null,null,"TT-I",1,6,null,{"$f":"IF(E100=0,\"\",INDEX($O$16:$O$30,MATCH(E100,$N$16:$N$30,0)))","v":406.5},{"$f":"IF(ISERROR(K100/G100/F100),\"\",(K100/G100/F100))","v":406.5},{"$f":"IF(E100=0,\"\",IF(E100=\"TT-I\",F100*I100*G100,F100*I100*G100*(H100/40)))","v":2439},null,null,null,null,null,null,null,null,4508.1000000000004,5028.8999999999996,null,null,null,null,null,null,null,null,null,null,null,null,null,null,null,null,null,null,null,null,null,null,null,null,null,null,null,null,null,null,null,null,null,null,null,null,null,null,null,null,null,null,null,null,null,null,null,null,null,null,null,null,null,null,null,null,null,null,null,null,null,null,null,null,null,null,null,null,null,null,null,null,null,null,null,null,null,null,null,null,null,null,null,null,null,null,null,null,null,null,null,null,null,null,null,null,null,null,null,null,null,null,null,null,null,null,null,null,null,null,null,null,null,null,null,null,null,null,null,null,null,null,null,null,null,null,null,null,null,null,null,null,null,null,null,null,null,null,null,null,null,null,null,null,null,null,null,null,null,null,null,null,null,null,null,null,null,null,null,null,null,null,null,null,null,null,null,null,null,null,null,null,null,null,null,null,null,null,null,null,null,null,null,null,null,null,null,null,null,null,null,null,null,null,null,null,null,null,null,null,null,null,null,null,null,null,null,null,null,null,null,null,null,null,{"$f":"#REF!","v":{"$error":"#REF!"}},{"$f":"IF(IB100<>0,IB100,\"\")","v":{"$error":"#REF!"}}]
[null,2,null,null,"TT-I",1,12,null,406.5,406.5,4878,null,null,null,null,null,null,null,null,null,null,null,null,null,null,null,null,null,null,null,null,null,null,null,null,null,null,null,null,null,null,null,null,null,null,null,null,null,null,null,null,null,null,null,null,null,null,null,null,null,null,null,null,null,null,null,null,null,null,null,null,null,null,null,null,null,null,null,null,null,null,null,null,null,null,null,null,null,null,null,null,null,null,null,null,null,null,null,null,null,null,null,null,null,null,null,null,null,null,null,null,null,null,null,null,null,null,null,null,null,null,null,null,null,null,null,null,null,null,null,null,null,null,null,null,null,null,null,null,null,null,null,null,null,null,null,null,null,null,null,null,null,null,null,null,null,null,null,null,null,null,null,null,null,null,null,null,null,null,null,null,null,null,null,null,null,null,null,null,null,null,null,null,null,null,null,null,null,null,null,null,null,null,null,null,null,null,null,null,null,null,null,null,null,null,null,null,null,null,null,null,null,null,null,null,null,null,null,null,null,null,null,null,null,null,null,null,null,null,null,null,null,null,null,null,{"$f":"#REF!","v":{"$error":"#REF!"}},{"$f":"IF(IB101<>0,IB101,\"\")","v":{"$error":"#REF!"}}]
[null,3,null,null,"TT-II",2,12,16,812.1,324.84000000000003,7796.1600000000008,null,null,null,null,null,null,null,null,null,null,null,null,null,null,null,null,null,null,null,null,null,null,null,null,null,null,null,null,null,null,null,null,null,null,null,null,null,null,null,null,null,null,null,null,null,null,null,null,null,null,null,null,null,null,null,null,null,null,null,null,null,null,null,null,null,null,null,null,null,null,null,null,null,null,null,null,null,null,null,null,null,null,null,null,null,null,null,null,null,null,null,null,null,null,null,null,null,null,null,null,null,null,null,null,null,null,null,null,null,null,null,null,null,null,null,null,null,null,null,null,null,null,null,null,null,null,null,null,null,null,null,null,null,null,null,null,null,null,null,null,null,null,null,null,null,null,null,null,null,null,null,null,null,null,null,null,null,null,null,null,null,null,null,null,null,null,null,null,null,null,null,null,null,null,null,null,null,null,null,null,null,null,null,null,null,null,null,null,null,null,null,null,null,null,null,null,null,null,null,null,null,null,null,null,null,null,null,null,null,null,null,null,null,null,null,null,null,null,null,null,null,null,null,null,{"$f":"#REF!","v":{"$error":"#REF!"}},{"$f":"IF(IB102<>0,IB102,\"\")","v":{"$error":"#REF!"}}]
[null,4,null,null,"TT-III",1,12,40,1136.4000000000001,1136.4000000000001,13636.800000000001]
[null,5,null,null,"TT-IV-A",2,24,16,4705.2,1882.08,90339.839999999997,null,null,null,null,null,null,null,null,null,null,null,null,null,null,null,null,null,null,null,null,null,null,null,null,null,null,null,null,null,null,null,null,null,null,null,null,null,null,null,null,null,null,null,null,null,null,null,null,null,null,null,null,null,null,null,null,null,null,null,null,null,null,null,null,null,null,null,null,null,null,null,null,null,null,null,null,null,null,null,null,null,null,null,null,null,null,null,null,null,null,null,null,null,null,null,null,null,null,null,null,null,null,null,null,null,null,null,null,null,null,null,null,null,null,null,null,null,null,null,null,null,null,null,null,null,null,null,null,null,null,null,null,null,null,null,null,null,null,null,null,null,null,null,null,null,null,null,null,null,null,null,null,null,null,null,null,null,null,null,null,null,null,null,null,null,null,null,null,null,null,null,null,null,null,null,null,null,null,null,null,null,null,null,null,null,null,null,null,null,null,null,null,null,null,null,null,null,null,null,null,null,null,null,null,null,null,null,null,null,null,null,null,null,null,null,null,null,null,null,null,null,null,null,null,{"$f":"#REF!","v":{"$error":"#REF!"}},{"$f":"IF(IB104<>0,IB104,\"\")","v":{"$error":"#REF!"}}]
[null,6,null,null,"TT-V",1,12,40,6819.3,6819.3,81831.600000000006,null,null,null,null,null,null,null,null,null,null,null,null,null,null,null,null,null,null,null,null,null,null,null,null,null,null,null,null,null,null,null,null,null,null,null,null,null,null,null,null,null,null,null,null,null,null,null,null,null,null,null,null,null,null,null,null,null,null,null,null,null,null,null,null,null,null,null,null,null,null,null,null,null,null,null,null,null,null,null,null,null,null,null,null,null,null,null,null,null,null,null,null,null,null,null,null,null,null,null,null,null,null,null,null,null,null,null,null,null,null,null,null,null,null,null,null,null,null,null,null,null,null,null,null,null,null,null,null,null,null,null,null,null,null,null,null,null,null,null,null,null,null,null,null,null,null,null,null,null,null,null,null,null,null,null,null,null,null,null,null,null,null,null,null,null,null,null,null,null,null,null,null,null,null,null,null,null,null,null,null,null,null,null,null,null,null,null,null,null,null,null,null,null,null,null,null,null,null,null,null,null,null,null,null,null,null,null,null,null,null,null,null,null,null,null,null,null,null,null,null,null,null,null,null,{"$f":"#REF!","v":{"$error":"#REF!"}},{"$f":"IF(IB105<>0,IB105,\"\")","v":{"$error":"#REF!"}}]
[]
[null,"Coluna (item) - as bolsas solicitadas devem ser numeradas sequencialmente."]
[null,"Coluna (modalidade) - Selecione a modalidade de bolsa TT, veja acima todas as opções disponíveis."]
[null,"Coluna (quantidade) - Digite  a quantidade de bolsas (bolsistas) referente a modalidade solicitada."]
[null,"Coluna (duração (meses)) - Digite  a duração da bolsa solicitada, se houver mais de um bolsista de uma mesma modalidade com duração"]
[null,"diferente, deve ser preenchida outra linha nesta modalidade, conforme exemplo nos itens 1 e 2 acima."]
[null,"Coluna (carga horária semanal) - As bolsas de TT-I tem carga horária semanal de 15 horas, por isso quando é selecionada esta "]
[null,"modalidade a caixa de seleção desta coluna fica com fundo preto (automático), para as outras bolsas, é possível selecionar de "]
[null,"16 a 40 horas semanais, veja abaixo os níveis de bolsas TT disponíveis."]
[null,"Coluna (valor integral da bolsa) - Esta coluna é automática de acordo com a modalidade de bolsa TT selecionada."]
[null,"Coluna (valor da mensalidade) - Esta coluna é automática e pode variar de acordo com a carga horária semanal selecionada para as ","Coluna (valor integral da bolsa) - Esta coluna é automática de acordo com a modalidade de bolsa TT selecionada."]
[null,"bolsa de TT-II, TT-III, TT-IV ou TT-V."]
[null,"Coluna (custo total) -  Coluna de totalização automática."]
[]
[null,"Níveis de Bolsas TT",null,null,null,null,"http://www.fapesp.br/materia/3098/capacitacao-tecnica/niveis-de-bolsas-tt.htm "]
[]
[null,"Os níveis de Bolsas TT são: "]
[null,"i) Bolsa TT-1, para alunos de graduação, sem reprovações em seu histórico escolar e sem vínculo empregatício, com dedicação de 15 horas semanais às atividades de apoio ao projeto de pesquisa, sem que haja prejuízo em seu desempenho acadêmico;"]
[null,"ii) Bolsa TT-2, para alunos do último ano ou egressos do nível médio técnico, sem reprovações em seu histórico escolar e sem vínculo empregatício, com dedicação de 16 a 40 horas semanais (o valor da Bolsa a ser paga será proporcional ao número de horas semanais) às atividades de apoio ao projeto de pesquisa;"]
[null,"iii) Bolsa TT-3, para alunos graduados do nível superior, sem reprovações em seu histórico escolar e sem vínculo empregatício, com dedicação de 16 a 40 horas semanais (o valor da Bolsa a ser paga será proporcional ao número de horas semanais) às atividades de apoio ao projeto de pesquisa. O tempo de bolsa TT-3 será descontado no caso do interessado vir a usufruir de Bolsa de Mestrado ou Doutorado Direto."]
[null,"iv) Bolsa TT-4, para graduado, especialista em Tecnologia de Informação (TI), com dois anos de experiência após a graduação ou título de mestrado na área de TI, sem vínculo empregatício, com dedicação de 16 a 40 horas semanais (o valor da Bolsa a ser paga será proporcional ao número de horas semanais) às atividades de apoio ao projeto de pesquisa;"]
[null,"v) Bolsa TT-4A, para graduado, especialista em TI com pelo menos quatro anos de experiência após a graduação, sem vínculo empregatício, com dedicação de 16 a 40 horas semanais (o valor da Bolsa a ser paga será proporcional ao número de horas semanais) às atividades de apoio ao projeto de pesquisa;"]
[null,"vi) Bolsa TT-5, para graduado, especialista em TI com pelo menos cinco anos de experiência após a graduação ou título de doutorado, sem vínculo empregatício, com dedicação de 16 a 40 horas semanais (o valor da Bolsa a ser paga será proporcional ao número de horas semanais) às atividades de apoio ao projeto de pesquisa."]

{"sheet":"9b-BOLSA PD - APR","index":9,"n_rows":31,"n_cols":177,"rows_kept":31,"cut":false,"hidden":false,"merged":[[29,10,29,12],[7,176,7,232],[5,1,5,7],[7,3,7,8],[11,2,11,3],[9,2,9,3],[23,10,23,11],[9,6,11,8]]}
[]
[]
[]
[]
[]
[null,"9B- BOLSAS DE PÓS-DOUTORADO - AUXÍLIO À PESQUISA REGULAR"]
[]
[null,"NOME DO INTERESSADO:",null,null,null,null,null,null,null,null,null,null,null,null,null,null,null,null,null,null,null,null,null,null,null,null,null,null,null,null,null,null,null,null,null,null,null,null,null,null,null,null,null,null,null,null,null,null,null,null,null,null,null,null,null,null,null,null,null,null,null,null,null,null,null,null,null,null,null,null,null,null,null,null,null,null,null,null,null,null,null,null,null,null,null,null,null,null,null,null,null,null,null,null,null,null,null,null,null,null,null,null,null,null,null,null,null,null,null,null,null,null,null,null,null,null,null,null,null,null,null,null,null,null,null,null,null,null,null,null,null,null,null,null,null,null,null,null,null,null,null,null,null,null,null,null,null,null,null,null,null,null,null,null,null,null,null,null,null,null,null,null,null,null,null,null,null,null,null,null,null,null,null,null,null,null,"SE(E(C15=\"\";D15=0;E15=0);\"\";SE(C15=\"IC\";$N$15*E15;SE(C15=\"PD\";$N$17*E15;SE(E(C15=\"DD\";E15<=12);$L$16*0,3*E15;SE(E(C15=\"DD\";E15>12;E15<=24);($L$18*0,3*(E15-12)+($L$16*0,3*12));SE(E(C15=\"DD\";E15>24;E15<=36);($L$19*0,3*(E15-24)+($L$18*0,3*12))+($L$16*0,3*12);SE(E(C15=\"DD\";E15>36;E15<=48);($L$20*0,3*(E156)+($L$19*0,3*12))+($L$18*0,3*12)+($L$16*0,3*12))))))))"]
[]
[null,"PROCESSO:   ",null,null,null,null,"Chamada FAPESP-FCT 2017"]
[]
[null,"TOTAL:",{"$f":"IF(SUM(H15:H30)=0,\"\",(SUM(H15:H30)))","v":""}]
[]
[null,"item","modalidade","quantidade","duração (meses)","valor da bolsa","Reserva Técnica da bolsa","custo total","FAPESP",null,"MODALIDADE","VALOR BOLSA","RT ANUAL","RT MENSAL","%"]
[null,null,null,null,null,{"$f":"IF(C15=0,\"\",INDEX($L$15:$L$20,MATCH(C15,$K$15:$K$20,0)))","v":""},{"$f":"IF(C15=\"\",\"\",IF(C15=\"IC\",$N$15*E15,IF(C15=\"PD\",$N$17*E15,IF(AND(C15=\"DD\",E15<=12),$L$16*0.3*E15,\nIF(AND(C15=\"DD\",E15>12,E15<=24),($L$18*0.3*(E15-12)+($L$16*0.3*12)),\nIF(AND(C15=\"DD\",E15>24,E15<=36),($L$19*0.3*(E15-24)+($L$18*0.3*12))+($L$16*0.3*12),\nIF(AND(C15=\"DD\",E15>36,E15<=48),($L$20*0.3*(E15-36)+($L$19*0.3*12))+($L$18*0.3*12)+($L$16*0.3*12)))))))*D15)","v":""},{"$f":"IF(ISERROR(D15*F15*E15),\"\",D15*F15*E15)","v":""},null,null,{"$f":"DADOS!B16","v":"IC"},{"$f":"DADOS!C16","v":643.20000000000005},{"$f":"L15*12*O15","v":771.84000000000015},{"$f":"M15/12","v":64.320000000000007},0.1]
[null,null,null,null,null,"","","",null,null,{"$f":"DADOS!B17","v":"DD"},{"$f":"DADOS!C17","v":1889.4},6801.8400000000011,566.82000000000005,0.3]
[null,null,null,null,null,"","","",null,null,{"$f":"DADOS!B18","v":"PD"},{"$f":"DADOS!C18","v":6819.3},12274.74,1022.895,0.15]
[null,null,null,null,null,"","","",null,null,{"$f":"DADOS!B19","v":"DD2"},{"$f":"DADOS!C19","v":2005.5},7219.8,601.65,0.3]
[null,null,null,null,null,"","","",null,null,{"$f":"DADOS!B20","v":"DD3"},{"$f":"DADOS!C20","v":2784.6},10024.56,835.38,0.3]
[null,null,null,null,null,"","","",null,null,{"$f":"DADOS!B21","v":"DD4"},{"$f":"DADOS!C21","v":3446.4},12407.04,1033.92,0.3]
[null,null,null,null,null,"","",""]
[null,null,null,null,null,"","",""]
[null,null,null,null,null,"","","",null,null,"TOTAL DA RESERVA TÉCNICA TEMÁTICO - ESTA ABA"]
[null,null,null,null,null,"","","",null,null,{"$f":"SUM(G15:G30)","v":0}]
[null,null,null,null,null,"","",""]
[null,null,null,null,null,"","",""]
[null,null,null,null,null,"","",""]
[null,null,null,null,null,"","",""]
[null,null,null,null,null,"","","",null,null,"TOTAL GERAL DA RESERVA TÉCNICA DA BOLSAS"]
[null,null,null,null,null,"","","",null,null,{"$f":"K24+K27","v":0}]
[null,{"$f":"'9a-BOLSAS - TT'!B50","v":"FAPESP, MARÇO DE 2017"}]

{"sheet":"CONSOLIDADA","index":10,"n_rows":36,"n_cols":35,"rows_kept":36,"cut":false,"hidden":false,"merged":[[21,4,21,6],[14,8,14,10],[16,8,16,10],[17,8,17,10],[15,8,15,10],[35,2,35,3],[35,11,35,18],[29,11,29,19],[32,5,32,10],[33,5,33,10],[34,11,34,18],[35,5,35,10],[32,2,32,3],[33,2,33,3],[34,2,34,3],[34,5,34,10],[33,11,33,18],[32,11,32,18],[31,11,31,18],[30,11,30,18],[31,5,31,10],[29,2,29,4],[29,5,30,10],[30,2,30,3],[31,2,31,3],[13,4,13,6],[28,2,28,19],[13,8,13,10],[18,4,18,6],[16,4,16,6],[19,4,19,6],[15,4,15,6],[5,2,22,2],[22,4,22,6],[11,4,11,6],[5,5,5,10],[10,4,10,6],[6,8,6,10],[7,8,7,10],[8,8,8,10],[22,7,22,10],[18,8,18,10],[19,8,19,10],[21,8,21,10],[9,8,9,10],[10,8,10,10],[11,8,11,10],[12,8,12,10],[14,4,14,6],[7,4,7,6],[6,4,6,6],[9,4,9,6],[8,4,8,6],[12,4,12,6],[1,7,1,9],[1,19,1,21],[2,19,2,21],[3,19,3,21],[4,19,4,21],[3,7,3,8]]}
[]
["    ",null,null,null,null,null,null,"Chamada FAPESP-FCT 2017",null,null,null,null,null,null,null,null,null,null,null,{"$f":"'1-MPN'!B7","v":"AUXÍLIO À PESQUISA - REGULAR"},null,null,"CÉLULA VARIÁVEL"]
[null,null,null,null,null,null,null,null,null,null,null,null,null,null,null,null,null,null,null,{"$f":"'1-MPN'!R46","v":"AUXÍLIO À PESQUISA - PROJETO TEMÁTICO"},null,null,"CÉLULAS FIXAS",null,"BC"]
[null,null,null,null,null,null,null,"Taxa do dólar do Banco Central do dia:",null,{"$f":"NOW()","v":"2017-03-09T13:38:45.470"},null,null,null,null,null,null,null,null,null,{"$f":"'1-MPN'!R47","v":"AUXÍLIO À PESQUISA - JOVENS PESQUISADORES"},null,null,null,null,{"$f":"DADOS!K3","v":1}]
[null,null,null,null,null,null,null,null,null,null,null,null,null,null,null,null,null,null,null,{"$f":"'1-MPN'!R49","v":"AUXÍLIO À PESQUISA - POLÍTICAS PÚBLICAS"},null,null,null,null,2]
[null,null,"IMPRESSÃO OBRIGATÓRIA",null,"PLANILHA DE TOTALIZAÇÃO DOS RECURSOS SOLICITADOS À FAPESP",{"$f":"\"MODALIDADE: \"&('1-MPN'!B7)","v":"MODALIDADE: AUXÍLIO À PESQUISA - REGULAR"},null,null,null,null,null,null,null,null,null,null,null,null,null,{"$f":"'1-MPN'!R50","v":"AUXÍLIO À PESQUISA - REGULAR"},null,null,null,null,{"$f":"DADOS!K5","v":3},null,null,null,null,null,null,null,null,null,""]
[null,null,null,null,"ITENS SOLICITADOS                                                 ",null,null," Nacional","Importado",null,null,null,null,null,null,null,null,null,null,null,null,null,null,null,{"$f":"DADOS!K6","v":4}]
["  ",null,null,null,"MATERIAL PERMANENTE",null,null,{"$f":"'1-MPN'!D15","v":""},{"$f":"'2-MPI'!D18","v":""},null,null,null,null,null,null,null,null,null,null,"BENEFÍCIOS COMPLEMENTARES",null,null,null,null,{"$f":"DADOS!K7","v":5}]
[null,null,null,null,"MATERIAL DE CONSUMO",null,null,{"$f":"'3-MCN'!D12","v":""},{"$f":"'4-MCI'!D18","v":""},null,null,null,null,null,null,null,null,null,null,8000,"OUTROS AUXÍLIOS",null,null,null,{"$f":"DADOS!K8","v":6}]
[null,null,null,null,"SERVIÇOS DE TERCEIROS",null,null,{"$f":"'5-STB'!D12","v":""},{"$f":"'6-STE'!D18","v":""},null,null,null,null,null,null,null,null,null,null,12000,"TEMATICO/JP",null,null,null,{"$f":"DADOS!K9","v":7}]
[null,null,null,null,"DESPESAS COM DIÁRIAS NO PAÍS E NO EXTERIOR",null,null,{"$f":"'8-DIP-DIE'!D12","v":""},{"$f":"'8-DIP-DIE'!K12","v":""},null,null,null,null,null,null,null,null,null,null,null,null,null,null,null,{"$f":"DADOS!K10","v":8}]
[null,null,null,null,"DESPESAS DE TRANSPORTE",null,null,{"$f":"'7-TRAN'!D13","v":""},null,null,null,null,null,null,null,null,null,null,null,null,null,null,null,null,{"$f":"DADOS!K11","v":9}]
[null,null,null,null,"BOLSAS DE CAPACITAÇÃO TÉCNICA",null,null,{"$f":"'9a-BOLSAS - TT'!E13","v":""},null,null,null,null,null,null,null,null,null,null,null,null,null,null,null,null,{"$f":"DADOS!K12","v":10}]
[null,null,null,null,"BOLSA PD -  VINCULADAS AO PROJETO AUXÍLIO À PESQUISA REGULAR",null,null,{"$f":"'9b-BOLSA PD - APR'!C12","v":""}]
[null,null,null,null,"RESERVA TÉCNICA DE IMPORTAÇÃO",null,null,null,{"$f":"IF(F6=\"MODALIDADE: CLIQUE AQUI E SELECIONE A MODALIDADE DO AUXÍLIO SOLICITADO\",\"\",SUM(I8:K10)*0.15)","v":0}]
[null,null,null,null,"RESERVA TÉCNICA PARA INFRAESTRUTURA DIRETA DO PROJETO",null,null,{"$f":"IF(ISERROR(IF($S$6=\"MODALIDADE: CLIQUE AQUI E SELECIONE A MODALIDADE DO AUXÍLIO SOLICITADO\",0,IF($S$6=$S$7,SUM($H$7:$H$11)*0.2,SUM($H$7:$H$11)*0.15))),0,IF($S$6=\"MODALIDADE: CLIQUE AQUI E SELECIONE A MODALIDADE DO AUXÍLIO SOLICITADO\",\"\",IF($S$6=$S$7,SUM($H$7:$H$11)*0.2,SUM($H$7:$H$11)*0.15)))","v":0},{"$f":"IF(F6=\"MODALIDADE: CLIQUE AQUI E SELECIONE A MODALIDADE DO AUXÍLIO SOLICITADO\",\"\",IF(T2=T3,SUM(I8:K11)*0.2,SUM(I8:K11)*0.15))","v":0}]
[null,null,null,null,"RESERVA TÉCNICA DAS BOLSAS ACADÊMICAS SOLICITADAS",null,null,{"$f":"IF('9b-BOLSA PD - APR'!$K$30=0,\"\",'9b-BOLSA PD - APR'!$K$30)","v":""}]
[null,null,null,null,{"$f":"IF($F$6=\"MODALIDADE: CLIQUE AQUI E SELECIONE A MODALIDADE DO AUXÍLIO SOLICITADO\",\"Selecione o tipo de Auxílio na aba 1-MPN, onde está escrito: Clique Aqui e Selecione a Modalidade do Auxílio Solicitado.\",IF(T2=T3,\"Benefícios Complementares para PROJETOS TEMÁTICOS indique ao lado a quantidade de Pesquisadores Principais e na sequência, a duração do auxílio solicitado.\",\"Benefícios Complementares para: AUXÍLIO REGULAR, indique apenas a duração em anos.\"))","v":"Benefícios Complementares para: AUXÍLIO REGULAR, indique apenas a duração em anos."},null,null,{"$f":"IF(T2=T3,SUM(T10*G18*F18),IF(T2=T4,SUM(T10*G18),SUM(T9*G18)))","v":0}]
[null,null,null,null,"TOTAL DO PROCESSO",null,null,{"$f":"SUM(H8:H18)","v":0},{"$f":"SUM(I8:K18)","v":0}]
[null,null,null,null,"RESERVA TÉCNICA PARA INFRAESTRUTURA INSTITUCIONAL DE PESQUISA",null,null,{"$f":"IF(ISERROR(IF(F6=\"MODALIDADE: CLIQUE AQUI E SELECIONE A MODALIDADE DO AUXÍLIO SOLICITADO\",\"\",IF($T$2=$T$3,SUM($H$8:$H$12)*0.2,SUM($H$8:$H$12)*0.1))),\"\",IF(F6=\"MODALIDADE: G17CLIQUE AQUI E SELECIONE A MODALIDADE DO AUXÍLIO SOLICITADO\",\"\",IF($T$2=$T$3,SUM($H$8:$H$12)*0.2,SUM($H$8:$H$12)*0.1)))","v":0},{"$f":"IF(ISERROR(IF(F6=\"MODALIDADE: CLIQUE AQUI E SELECIONE A MODALIDADE DO AUXÍLIO SOLICITADO\",\"\",IF($T$2=$T$3,SUM(I8:K11)*0.2,SUM($I$8:$K$11)*0.1))),\"\",IF(F6=\"MODALIDADE: CLIQUE AQUI E SELECIONE A MODALIDADE DO AUXÍLIO SOLICITADO\",\"\",IF($T$2=$T$3,SUM($I$8:$K$11)*0.2,SUM($I$8:$K$11)*0.1)))","v":0}]
[]
[null,null,null,null,"TOTAL COM CONVERSÃO DO DÓLAR PARA REAL",null,null,{"$f":"H19+H20","v":0},{"$f":"(I19+I20)*K4","v":0}]
[null,null,null,null,"TOTAL GERAL (GRAND TOTAL)",null,null,{"$f":"IF(H22+I22=0,\"\",H22+I22)","v":""}]
[null,null,null,null,{"$f":"'9b-BOLSA PD - APR'!B31","v":"FAPESP, MARÇO DE 2017"}]
[]
[]
[]
[]
[null,null,"TABELA INFORMATIVA PARA OS CÁLCULOS (www.fapesp.br/rt) "]
[null,null,"Reserva Técnica para infraestrutura Direta do Projeto",null,null,"MODALIDADE",null,null,null,null,null,"Reserva Técnica para Infraestrutura Institucional de Pesquisa"]
[null,null,"Valor",null,"Desembolso",null,null,null,null,null,null,"Valor",null,null,null,null,null,null,null,"Desembolso"]
[null,null,0.15,null,"Na outorga","Auxílio à Pesquisa – Regular",null,null,null,null,null,0.1,null,null,null,null,null,null,null,"Anual consolidado"]
[null,null,0.2,null,"Na outorga","Auxílio à Pesquisa – Temático",null,null,null,null,null,0.2,null,null,null,null,null,null,null,"Anual consolidado"]
[null,null,0.15,null,"Na outorga","Auxílio à Pesquisa – Jovem Pesquisador",null,null,null,null,null,0.1,null,null,null,null,null,null,null,"Anual consolidado"]
[null,null,0.15,null,"Na outorga","Auxílio à Pesquisa – Pesq. em Políticas Públicas",null,null,null,null,null,0.1,null,null,null,null,null,null,null,"Anual consolidado"]
[null,null,0.15,null,"Na outorga","Auxílio à Pesquisa – Pesquisa para Melhoria do Ensino Público",null,null,null,null,null,0.1,null,null,null,null,null,null,null,"Anual consolidado"]

{"sheet":"DADOS","index":11,"n_rows":26,"n_cols":24,"rows_kept":26,"cut":false,"hidden":true,"merged":[[3,15,3,16],[1,15,1,17],[1,1,2,1],[13,1,14,1],[1,12,25,12],[4,15,4,16],[5,15,5,16],[6,15,6,16],[2,15,2,16],[1,2,2,2]]}
[]
[null,"BOLSAS","A PARTIR DE 1º/4/2016","ATÉ","ATÉ","ATÉ","ATÉ","ATÉ ","ATÉ ",null,"CALCULO BC",null,"HORAS SEMANAIS - BOLSAS TT",16,null,"Bolsas no País",null,null,null,"BOLSAS","Valores vigentes até 31/3/2016","partir de 1º/4/2016",null,"TABELA DE VALORES"]
[null,null,null,"2016-03-31","2013-04-01","2012-04-01","2011-04-01","2011-03-31","2010-02-28",null,1,null,null,{"$f":"N2+1","v":17},null,"Modalidade da Bolsa",null,"Valor",null,"IC",579.29999999999995,643.20000000000005,null,"WWW.FAPESP.BR/3162"]
[null,"TT-I",{"$f":"V10","v":406.5},366,351.9,332.1,317.39999999999998,299.10000000000002,268.2,null,2,null,null,{"$f":"N3+1","v":18},null,"Iniciação Científica",null,0.1,null,"DD I",1701.9,1889.4,null,"PLANILHAS 4523"]
[null,"TT-II",{"$f":"V11","v":812.1},731.4,703.2,663.9,634.79999999999995,598.5,536.4,null,3,null,null,19,null,"Mestrado",null,0.1,null,"DD II",1806.6,2005.5,null,"WWW.FAPESP.BR/4523"]
[null,"TT-III",1136.4000000000001,1023.6,984.3,929.1,888.3,837.6,750.9,null,4,null,null,20,null,"Doutorado e Doutorado Direto",null,0.3,null,"DD III",2508.6,2784.6]
[null,"TT-IV",2871.9,2587.1999999999998,2488.1999999999998,2349.3000000000002,2246.1,2117.6999999999998,1898.4,null,5,null,null,21,null,"Pós-Doutorado",null,0.15,null,"DD IV",3104.7,3446.4]
[null,"TT-IV-A",4705.2,4238.7,4076.7,3849,3679.8,3469.8,3110.4,null,6,null,null,22,null,null,null,null,null,"PD",6143.4,6819.3]
[null,"TT-V",6819.3,6143.4,5908.8,5578.8,5333.4,5028.8999999999996,4508.1000000000004,null,7,null,null,23,null,null,null,null,null,null,"Valores vigentes até 31/3/2016"," a partir de 1º/4/2016"]
[null,null,null,null,null,null,null,null,null,null,8,null,null,24,null,null,null,null,null,"TT-I",366,406.5]
[null,null,null,null,null,null,null,null,null,null,9,null,null,25,null,null,null,null,null,"TT-II",731.4,812.1]
[null,null,null,null,null,null,null,null,null,null,10,null,null,26,null,null,null,null,null,"TT-III",1023.6,1136.4000000000001]
[null,null,null,null,null,null,null,null,null,null,null,null,null,27,null,null,null,null,null,"TT-IV",2587.1999999999998,2871.9,null,""]
[null,"BOLSAS","A PARTIR","A PARTIR","ATÉ","A PARTIR","ATÉ","ATÉ ","ATÉ ","ATÉ","ATÉ",null,null,28,null,null,null,null,null,"TT-IV A",4238.7,4705.2]
[null,null,"1º/4/2016","2014-04-02","2013-04-01","2012-04-01","2011-04-01","2011-03-31","2010-02-28",2009,2003,null,null,29,null,null,null,null,null,"TT-5",6143.4,6819.3]
[null,"IC",{"$f":"V3","v":643.20000000000005},579.29999999999995,557.1,525.9,502.8,474,424.8,396,330,null,null,30]
[null,"DD",{"$f":"V4","v":1889.4},1701.9,1636.8,"R$1.545,30   ",1477.2,1392.9,1248.5999999999999,1164,970,null,null,31]
[null,"PD",{"$f":"V8","v":6819.3},6143.4,5908.8,5578.8,5333.4,5028.8999999999996,4508.1000000000004,4203.1400000000003,2570,null,null,32]
[null,"DD2",{"$f":"V5","v":2005.5},1806.6,1737.6,1640.4,1568.4,1478.7,1325.7,1236,1030,null,null,33]
[null,"DD3",{"$f":"V6","v":2784.6},2508.6,2412.6,2277.9,2177.701,2053.1999999999998,1840.5,1716,1430,null,null,34]
[null,"DD4",{"$f":"V7","v":3446.4},3104.7,2985.9,2819.1,2695.2,2541.3000000000002,2278.1999999999998,2124,1770,null,null,35]
[null,null,null,null,null,null,null,null,null,null,null,null,null,36]
[null,null,null,null,null,null,null,null,null,null,null,null,null,37]
[null,null,null,null,null,null,null,null,null,null,null,null,null,38]
[null,null,null,null,null,null,null,null,null,null,null,null,null,39]
[null,null,null,null,null,null,null,null,null,null,null,null,null,40]